Workbook

Sheet 全日制
CE1: アクティブセル
BT2: ✓ | BU2: 〇
E5: ◎ 用意するもの ・・・・・ | T5: 進 学 届
AC6: （借入手続き書類 | AL6: B | AN6: 様式第16号）
C12: １．進学する学校を検索し、選択欄に ✓ を入れてください。（表示されない場合は、下の手動入力へ。）
E15: ※ 近年、当会奨学生が進学した実績のある学校内で検索できます。
E18: ★ 進学する学校が表示されない場合は、手動で入力してください。
E20: ・学校名の一部入力で検索できます。 検索結果が多いときは、入力文字を増やしてください。 ・アルファベットは、全角大文字で入力してください。
AQ22: 最新欄に『〇』が表示されている場合は、令和５年度（最新）の情報です。
AQ23: 表示されていない場合は、令和４年度以前の情報です。進学校に問い合わせ
AQ24: するなどして最新の情報をご確認ください。
E25: 学 校 検 索 | AQ25: 随時、最新の情報に更新いたします。
D27: =COUNTA(E30:G44) -> 0 | BH27: ↓
E28: 選択↓ | H28: 学 校 名 | AA28: 学 科 等 | AO28: 地 域 | AS28: 学校区分 | AY28: 年間授業料 | BH28: 最新 | BQ28: 学番
H30: ='学校検索（全日制用）'!C2 ->  | AA30: ='学校検索（全日制用）'!D2 ->  | AO30: ='学校検索（全日制用）'!B2 ->  | AS30: ='学校検索（全日制用）'!E2 ->  | AY30: ='学校検索（全日制用）'!F2 ->  | BH30: ='学校検索（全日制用）'!G2 ->  | BQ30: ='学校検索（全日制用）'!H2 ->  | BY30: ✓ | BZ30: =VLOOKUP(BY30,$E$30:$BG$44,41,FALSE) -> 
H31: ='学校検索（全日制用）'!C3 ->  | AA31: ='学校検索（全日制用）'!D3 ->  | AO31: ='学校検索（全日制用）'!B3 ->  | AS31: ='学校検索（全日制用）'!E3 ->  | AY31: ='学校検索（全日制用）'!F3 ->  | BH31: ='学校検索（全日制用）'!G3 ->  | BQ31: ='学校検索（全日制用）'!H3 -> 
H32: ='学校検索（全日制用）'!C4 ->  | AA32: ='学校検索（全日制用）'!D4 ->  | AO32: ='学校検索（全日制用）'!B4 ->  | AS32: ='学校検索（全日制用）'!E4 ->  | AY32: ='学校検索（全日制用）'!F4 ->  | BH32: ='学校検索（全日制用）'!G4 ->  | BQ32: ='学校検索（全日制用）'!H4 -> 
H33: ='学校検索（全日制用）'!C5 ->  | AA33: ='学校検索（全日制用）'!D5 ->  | AO33: ='学校検索（全日制用）'!B5 ->  | AS33: ='学校検索（全日制用）'!E5 ->  | AY33: ='学校検索（全日制用）'!F5 ->  | BH33: ='学校検索（全日制用）'!G5 ->  | BQ33: ='学校検索（全日制用）'!H5 -> 
H34: ='学校検索（全日制用）'!C6 ->  | AA34: ='学校検索（全日制用）'!D6 ->  | AO34: ='学校検索（全日制用）'!B6 ->  | AS34: ='学校検索（全日制用）'!E6 ->  | AY34: ='学校検索（全日制用）'!F6 ->  | BH34: ='学校検索（全日制用）'!G6 ->  | BQ34: ='学校検索（全日制用）'!H6 -> 
H35: ='学校検索（全日制用）'!C7 ->  | AA35: ='学校検索（全日制用）'!D7 ->  | AO35: ='学校検索（全日制用）'!B7 ->  | AS35: ='学校検索（全日制用）'!E7 ->  | AY35: ='学校検索（全日制用）'!F7 ->  | BH35: ='学校検索（全日制用）'!G7 ->  | BQ35: ='学校検索（全日制用）'!H7 -> 
H36: ='学校検索（全日制用）'!C8 ->  | AA36: ='学校検索（全日制用）'!D8 ->  | AO36: ='学校検索（全日制用）'!B8 ->  | AS36: ='学校検索（全日制用）'!E8 ->  | AY36: ='学校検索（全日制用）'!F8 ->  | BH36: ='学校検索（全日制用）'!G8 ->  | BQ36: ='学校検索（全日制用）'!H8 -> 
H37: ='学校検索（全日制用）'!C9 ->  | AA37: ='学校検索（全日制用）'!D9 ->  | AO37: ='学校検索（全日制用）'!B9 ->  | AS37: ='学校検索（全日制用）'!E9 ->  | AY37: ='学校検索（全日制用）'!F9 ->  | BH37: ='学校検索（全日制用）'!G9 ->  | BQ37: ='学校検索（全日制用）'!H9 -> 
H38: ='学校検索（全日制用）'!C10 ->  | AA38: ='学校検索（全日制用）'!D10 ->  | AO38: ='学校検索（全日制用）'!B10 ->  | AS38: ='学校検索（全日制用）'!E10 ->  | AY38: ='学校検索（全日制用）'!F10 ->  | BH38: ='学校検索（全日制用）'!G10 ->  | BQ38: ='学校検索（全日制用）'!H10 -> 
H39: ='学校検索（全日制用）'!C11 ->  | AA39: ='学校検索（全日制用）'!D11 ->  | AO39: ='学校検索（全日制用）'!B11 ->  | AS39: ='学校検索（全日制用）'!E11 ->  | AY39: ='学校検索（全日制用）'!F11 ->  | BH39: ='学校検索（全日制用）'!G11 ->  | BQ39: ='学校検索（全日制用）'!H11 -> 
H40: ='学校検索（全日制用）'!C12 ->  | AA40: ='学校検索（全日制用）'!D12 ->  | AO40: ='学校検索（全日制用）'!B12 ->  | AS40: ='学校検索（全日制用）'!E12 ->  | AY40: ='学校検索（全日制用）'!F12 ->  | BH40: ='学校検索（全日制用）'!G12 ->  | BQ40: ='学校検索（全日制用）'!H12 -> 
H41: ='学校検索（全日制用）'!C13 ->  | AA41: ='学校検索（全日制用）'!D13 ->  | AO41: ='学校検索（全日制用）'!B13 ->  | AS41: ='学校検索（全日制用）'!E13 ->  | AY41: ='学校検索（全日制用）'!F13 ->  | BH41: ='学校検索（全日制用）'!G13 ->  | BQ41: ='学校検索（全日制用）'!H13 -> 
H42: ='学校検索（全日制用）'!C14 ->  | AA42: ='学校検索（全日制用）'!D14 ->  | AO42: ='学校検索（全日制用）'!B14 ->  | AS42: ='学校検索（全日制用）'!E14 ->  | AY42: ='学校検索（全日制用）'!F14 ->  | BH42: ='学校検索（全日制用）'!G14 ->  | BQ42: ='学校検索（全日制用）'!H14 -> 
H43: ='学校検索（全日制用）'!C15 ->  | AA43: ='学校検索（全日制用）'!D15 ->  | AO43: ='学校検索（全日制用）'!B15 ->  | AS43: ='学校検索（全日制用）'!E15 ->  | AY43: ='学校検索（全日制用）'!F15 ->  | BH43: ='学校検索（全日制用）'!G15 ->  | BQ43: ='学校検索（全日制用）'!H15 -> 
H44: ='学校検索（全日制用）'!C16 ->  | AA44: ='学校検索（全日制用）'!D16 ->  | AO44: ='学校検索（全日制用）'!B16 ->  | AS44: ='学校検索（全日制用）'!E16 ->  | AY44: ='学校検索（全日制用）'!F16 ->  | BH44: ='学校検索（全日制用）'!G16 ->  | BQ44: ='学校検索（全日制用）'!H16 -> 
E45: ↑ひとつだけ選択してください！
E51: 学 校 区 分 | AT51: 年 間 授 業 料
E53: 大 阪 府 内 校 | M53: 私立高校生等就学支援推進校 (※) に | AG53: 指 定 | AM53: =IF(ISERROR(IF(BZ30="指定","〇","")),"",IF(BZ30="指定","〇","")) ->  | AT53: =IF(ISERROR(VLOOKUP(BY30,$E$30:$BG$44,47,FALSE)),"",VLOOKUP(BY30,$E$30:$BG$44,47,FALSE)) ->  | BD53: 円
AG55: 未 指 定 | AM55: =IF(ISERROR(IF(BZ30="未指定","〇","")),"",IF(BZ30="未指定","〇","")) ->  | BV55: =SUM(BV56:BV59) -> 0
BS56: 指定 | BV56: =IF(OR(AM53="〇",AM71="〇"),1,"") -> 
E57: 大 阪 府 外 校 | AM57: =IF(ISERROR(IF(BZ30="大阪府外","〇","")),"",IF(BZ30="大阪府外","〇","")) ->  | BS57: 未指定 | BV57: =IF(OR(AM55="〇",AM72="〇"),1,"") -> 
BS58: 府外 | BV58: =IF(OR(AM57="〇",AM73="〇"),1,"") -> 
E59: 朝 鮮 高 級 学 校 | AM59: =IF(ISERROR(IF(BZ30="朝鮮高級","〇","")),"",IF(BZ30="朝鮮高級","〇","")) ->  | BS59: 朝鮮 | BV59: =IF(AM59="〇",1,"") -> 
BS61: =IF(AND(AT53="",AT71=""),"",IF(AT53<>"",AT53,AT71)) -> 
D64: ★ 進学する学校が表示されない場合は、こちらに入力してください。
F66: （ | H66: 上の ✓ は外してください！ | Z66: ）
E69: 学 校 区 分 | AM69: 選択↓ | AT69: 年 間 授 業 料
E71: 大 阪 府 内 校 | M71: 私立高校生等就学支援推進校 (※) に | AG71: 指 定 | BD71: 円
AG72: 未 指 定 | AQ72: 〇が２つ以上です！
E73: 大 阪 府 外 校
AN74: =COUNTA(AM71:AO73) -> 0
D76: （※）推進校とは、大阪府教育庁が指定する、高校生等の就学支援に積極的に協力する私立高等学校等や専修学校高等課程等で、
D78: 授業料支援補助金の対象となる学校です。
D80: 大阪府のホームページに推進校の一覧が掲載されています。
H82: ・私立高校生等就学支援推進校の一覧（全日制高校・通信制高校・中等教育学校）
H84: ・私立高校生等就学支援推進校の一覧（専修学校高等課程等）
C89: ２．『進学届』に印字されている金額と同じ箇所を選択してください。
E94: 国 就学支援金見込額 | Q94: 大阪府 授業料支援補助金見込額 | AC94: 合 計 | AO94: 選択↓
BV97: =SUM(BV98:BV101) -> 0
E98: 396000 | N98: 円 | Q98: 204000 | Z98: 円 | AC98: 600000 | AL98: 円 | AS98: 〇が２つ以上です！ | BV98: =IF(AO98="〇",1,"") -> 
E99: 118800 | N99: 円 | Q99: 281200 | Z99: 円 | AC99: 400000 | AL99: 円 | BV99: =IF(AO99="〇",1,"") -> 
E100: 118800 | N100: 円 | Q100: 0 | Z100: 円 | AC100: 118800 | AL100: 円 | BV100: =IF(AO100="〇",1,"") -> 
E101: 0 | N101: 円 | Q101: 0 | Z101: 円 | AC101: 0 | AL101: 円 | BV101: =IF(AO101="〇",1,"") -> 
AP102: =COUNTA(AO98:AR101) -> 0
C108: ３．扶養するこどもの人数を入力してください。
C112: ★扶養する子どもは以下の通りです。 ・令和６年４月１日時点で、１８歳以下（平成１７年４月２日以降生まれ）。 在学の有無は問いません。 ・令和６年４月１日時点で、１９歳以上（平成１７年４月１日以前生まれ）。 次に示す学校に在籍していることが必要です。 ≪高校段階≫ 国の就学支援金の支給対象となる以下の学校 ○ 国公私立高等学校、中等教育学校（後期課程）及び特別支援学校（高等部） （専攻科を含む。別科の生徒、科目履修生、聴講生は除く。） ○ 公私立専修学校（高等課程） ○ 国公私立高等専門学校 ○「保健師助産師看護師法」に定める学校又は准看護師養成所（※） ○「調理師法」に基づく調理師養成施設（※） ○「製菓衛生師法」基づく製菓衛生師養成施設（※） ○「理容師法」に基づく理容師養成施設（※） ○「美容師法」に基づく理容師養成施設（※） ○ 各種学校のうち一定の要件を満たす外国人学校（文部科学省告示で指定） （※）専修学校一般課程又は各種学校の認可を受けている学校に限る。 ≪大学段階≫ 学校教育法で定める大学、短期大学、高等専門学校、専修学校（専門課程） ※浪人生については、高等学校等卒業後１年間に限り人数に含めます。 ※大学院、海外の学校は対象外です。
AU116: 人 数
AZ118: 人
AR122: ※ 申込生徒を含む２人以上の子どもを扶養する
AR124: 世帯に該当する場合は、大阪府の授業料支援
AR126: 補助金、貸付限度額が異なる、もしくは貸付
AR128: 対象外となります。
C153: 貸付額シミュレーション結果
D157: =IF(AND(BV55=0,BS61="",BV97=0),"・１の［学校区分］［年間授業料］、２の［進学届金額欄］が未入力です！",IF(AND(BV55=0,BS61<>0,BV97=0),"・１の［学校区分］、２の［進学届金額欄］が未入力です！",IF(AND(BV55>0,BS61="",BV97=0),"・１の［年間授業料］、２の［進学届金額欄］が未入力です！",IF(AND(BV55=0,BS61="",BV97<>0),"・１の［学校区分］［年間授業料］が未入力です！",IF(AND(BV55>0,BS61<>"",BV97=0),"・２の［進学届金額欄］が未入力です！",IF(AND(BV55=0,BS61<>"",BV97>0),"・１の［学校区分］が未入力です！",IF(AND(BV55>0,BS61="",BV97>0),"・１の［年間授業料］が未入力です！",""))))))) -> ・１の［学校区分］［年間授業料］、２の［進学届金額欄］が未入力です！
D159: ="・扶養する子どもの人数を "&IF(AU118=0,TEXT("１","##0人"),IF(AU118>2,TEXT("３人以上","####"),TEXT(AU118,"##0人")))&"として算定しています。" -> ・扶養する子どもの人数を 1人として算定しています。
CF160: 1 | CG160: 2 | CH160: 3
D161: 世帯年収めやすは、 | Q161: =IF(AO98="〇","５９０万円未満",IF(AO99="〇","590万円以上、800万円未満",IF(AO100="〇","800万円以上、910万円未満",IF(AO101="〇","910万円以上、1,000万円未満","")))) ->  | CB161: 590 | CF161: =IF(AO98="〇",1,"") -> 
CB162: 800 | CF162: =IF(AO99="〇",1,"") -> 
CB163: 910 | CF163: =IF(AND(AO100="〇",AU118<=1),1,"") ->  | CG163: =IF(AND(AO100="〇",AU118=2),1,"") ->  | CH163: =IF(AND(AO100="〇",AU118>=3),1,"") -> 
CB164: 1000 | CF164: =IF(AO101="〇",1,"") -> 
K165: 年間授業料は、 | U165: =BS61 ->  | AG165: 円
I168: 国の就学支援金は、 | U168: =IF(OR(BS61=0,AND(BV56="",BV57="",BV58="",BV59=""),AND(AO98="",AO99="",AO101="",AO100="")),"",IF(BV59=1,VLOOKUP(1,$T$215:$AB$218,3,FALSE),IF(AND(BV56=1,AU118<=1),VLOOKUP(1,$T$195:$AB$198,3,FALSE),IF(AND(BV56=1,AU118=2),VLOOKUP(1,$T$200:$AB$203,3,FALSE),IF(AND(BV56=1,AU118>=3),VLOOKUP(1,$T$205:$AB$208,3,FALSE),VLOOKUP(1,$T$210:$AB$213,3,FALSE)))))) ->  | AG168: 円
C171: 大阪府の授業料支援補助金は、 | U171: =IF(OR(BS61=0,AND(BV56="",BV57="",BV58="",BV59=""),AND(AO98="",AO99="",AO101="",AO100="")),"",IF(BV59=1,VLOOKUP(1,$T$215:$AQ$218,19,FALSE),IF(AND(BV56=1,AU118<=1),VLOOKUP(1,$T$195:$AQ$198,19,FALSE),IF(AND(BV56=1,AU118=2),VLOOKUP(1,$T$200:$AQ$203,19,FALSE),IF(AND(BV56=1,AU118>=3),VLOOKUP(1,$T$205:$AQ$208,19,FALSE),VLOOKUP(1,$T$210:$AQ$213,19,FALSE)))))) ->  | AG171: 円 | AJ171: ="（うち、"&TEXT(U165-600000,"#,##0")&"円（年間授業料の60万円を超える額）は、学校が負担します。）" -> 
J174: 保護者負担額は、 | U174: =IF(OR(BS61=0,AND(BV56="",BV57="",BV58="",BV59=""),AND(AO98="",AO99="",AO100="",AO101="")),"",IF(BV59=1,VLOOKUP(1,$T$215:$BK$218,39,FALSE),IF(AND(BV56=1,AU118<=1),VLOOKUP(1,$T$195:$BK$198,39,FALSE),IF(AND(BV56=1,AU118=2),VLOOKUP(1,$T$200:$BK$203,39,FALSE),IF(AND(BV56=1,AU118>=3),VLOOKUP(1,$T$205:$BK$208,39,FALSE),VLOOKUP(1,$T$210:$BK$213,39,FALSE)))))) ->  | AG174: 円 | AK174: 私立高校生等就学支援推進校に進学した場合、 年収めやす５９０万円未満世帯の保護者負担額は、０円です。
E179: 貸付限度額（年額）は、 | U179: =IF(OR(BS61=0,AND(BV56="",BV57="",BV58="",BV59=""),AND(AO98="",AO99="",AO100="",AO101="")),"",ROUNDUP(IF(BV59=1,VLOOKUP(1,T215:CC218,57,FALSE),IF(AND(BV56=1,AU118<=1),VLOOKUP(1,T195:CC198,57,FALSE),IF(AND(BV56=1,AU118=2),VLOOKUP(1,T200:CC203,57,FALSE),IF(AND(BV56=1,AU118>2),VLOOKUP(1,T205:CC208,57,FALSE),VLOOKUP(1,T210:CC213,57,FALSE))))),-3)) ->  | AG179: 円 | AK179: =IF(OR(CF161=1,CF162=1),"※貸付限度額は、保護者負担額（千円未満は千円単位に切り上げ）に「その他教育費１０万円」を加えた額です。",IF(OR(CF163=1,CF164=1),"※貸付限度額は、保護者負担額（千円未満は千円単位に切り上げ）または２４万円です。",IF(CG163=1,"※貸付限度額は、保護者負担額（千円未満は千円単位に切り上げ）または１０万円です。",IF(CH163=1,"※貸付対象外です。","")))) -> 
F183: ※希望する借入金額（年額）が貸付限度額未満の場合は、１万円単位でご記入ください。
D194: 1 人 | F194: 年 収 め や す | M194: 所 得 判 定 額 | T194: 所得 | V194: 国就学支援金 | AC194: 大阪府支援補助金 | AR194: 保護者負担 | BF194: ＜算出結果＞ | BL194: 貸付限度額 | BX194: ＜算出結果＞
F195: 590万円未満 | M195: 154,500円未満 | T195: =IF($AO$98="〇",1,0) -> 0 | V195: =IF(U165<396000,U165,396000) -> 396000 | AC195: 授業料残り全額 | AL195: =IF($BS$61>V195,$BS$61-V195,0) ->  | AR195: なし | BF195: 0 | BL195: その他教育費のみ | BX195: 100000
F196: 800万円未満 | M196: 251,100円未満 | T196: =IF($AO$99="〇",1,0) -> 0 | V196: =IF(U165<118800,U165,118800) -> 118800 | AC196: 残額－200,000円 | AL196: =IF($BS$61>318800,$BS$61-V196-200000,0) ->  | AR196: 最大200,000円 | BF196: =IF($BS$61>318800,200000,$BS$61-V196) -> 200000 | BL196: 授業料負担額＋100,000円 | BX196: =IF(BF196<200000,BF196+100000,300000) -> 300000
F197: 910万円未満 | M197: 304,200円未満 | T197: =IF($AO$100="〇",1,0) -> 0 | V197: =IF(U165<118800,U165,118800) -> 118800 | AC197: なし | AL197: 0 | AR197: 授業料－118,800円 | BF197: =BS61-V197 ->  | BL197: 授業料負担額内（上限24万円） | BX197: =IF((BS61-118800)<0,0,IF((BS61-118800)<240000,(BS61-118800),240000)) -> 
F198: 1,000万円未満 | M198: 347,100円未満 | T198: =IF($AO$101="〇",1,0) -> 0 | V198: 0 | AC198: なし | AL198: 0 | AR198: 授業料全額 | BF198: =BS61 ->  | BL198: 授業料負担額内（上限24万円） | BX198: =IF($BS$61<240000,$BS$61,240000) -> 240000
D199: ２ 人 | F199: 年 収 め や す | M199: 所 得 判 定 額 | T199: 所得 | V199: 国就学支援金 | AC199: 大阪府支援補助金 | AR199: 保護者負担 | BF199: ＜算出結果＞ | BL199: 貸付限度額 | BX199: ＜算出結果＞
F200: 590万円未満 | M200: 154,500円未満 | T200: =IF($AO$98="〇",1,0) -> 0 | V200: =IF(U165<396000,U165,396000) -> 396000 | AC200: 授業料残り全額 | AL200: =IF($BS$61>V200,$BS$61-V200,0) ->  | AR200: なし | BF200: 0 | BL200: その他教育費のみ | BX200: 100000
F201: 800万円未満 | M201: 251,100円未満 | T201: =IF($AO$99="〇",1,0) -> 0 | V201: =IF(U165<118800,U165,118800) -> 118800 | AC201: 残額－100,000円 | AL201: =IF($BS$61>218800,$BS$61-V201-100000,0) ->  | AR201: 最大100,000円 | BF201: =IF($BS$61>218800,100000,$BS$61-V201) -> 100000 | BL201: 授業料負担額＋100,000円 | BX201: =IF(BF201<100000,BF201+100000,200000) -> 200000
F202: 910万円未満 | M202: 304,200円未満 | T202: =IF($AO$100="〇",1,0) -> 0 | V202: =IF(U165<118800,U165,118800) -> 118800 | AC202: 最大181,200円 | AL202: =IF($BS$61<=418800,0,IF(AND($BS$61>418800,$BS$61<=600000),$BS$61-V202-300000,181200)) -> 181200 | AR202: 300,000円＋60万超えの授業料部分 | BF202: =IF($BS$61<418800,$BS$61-$V$202,IF(AND($BS$61>=418800,$BS$61<=600000),300000,$BS$61-V202-AL202)) ->  | BL202: 授業料負担額内（上限10万円） | BX202: =IF(BF202>=100000,100000,BF202) -> 
F203: 1,000万円未満 | M203: 347,100円未満 | T203: =IF($AO$101="〇",1,0) -> 0 | V203: 0 | AC203: なし | AL203: 0 | AR203: 授業料全額 | BF203: =BS61 ->  | BL203: 授業料負担額内（上限24万円） | BX203: =IF($BS$61<240000,$D$59,240000) -> 240000
D204: 3 人 | F204: 年 収 め や す | M204: 所 得 判 定 額 | T204: 所得 | V204: 国就学支援金 | AC204: 大阪府支援補助金 | AR204: 保護者負担 | BF204: ＜算出結果＞ | BL204: 貸付限度額 | BX204: ＜算出結果＞
F205: 590万円未満 | M205: 154,500円未満 | T205: =IF($AO$98="〇",1,0) -> 0 | V205: =IF(U165<396000,U165,396000) -> 396000 | AC205: 授業料残り全額 | AL205: =IF($BS$61>V205,$BS$61-V205,0) ->  | AR205: なし | BF205: 0 | BL205: その他教育費のみ | BX205: 100000
F206: 800万円未満 | M206: 251,100円未満 | T206: =IF($AO$99="〇",1,0) -> 0 | V206: =IF(U165<118800,U165,118800) -> 118800 | AC206: 授業料残り全額 | AL206: =IF($BS$61>V206,$BS$61-V206,0) ->  | AR206: なし | BF206: 0 | BL206: その他教育費のみ | BX206: 100000
F207: 910万円未満 | M207: 304,200円未満 | T207: =IF($AO$100="〇",1,0) -> 0 | V207: =IF(U165<118800,U165,118800) -> 118800 | AC207: 最大３81,200円 | AL207: =IF($BS$61<=218800,0,IF(AND($BS$61>218800,$BS$61<=600000),$BS$61-V207-100000,381200)) -> 381200 | AR207: 100,000円＋60万超えの授業料部分 | BF207: =IF($BS$61<218800,$BS$61-$V$207,IF(AND($BS$61>=218800,$BS$61<=600000),100000,$BS$61-V207-AL207)) ->  | BL207: 0円（貸付対象外） | BX207: 0
F208: 1,000万円未満 | M208: 347,100円未満 | T208: =IF($AO$101="〇",1,0) -> 0 | V208: 0 | AC208: なし | AL208: 0 | AR208: 授業料全額 | BF208: =BS61 ->  | BL208: 授業料負担額内（上限24万円） | BX208: =IF($BS$61<240000,$BS$61,240000) -> 240000
D209: 府 外 他 | F209: 年 収 め や す | M209: 所 得 判 定 額 | T209: 所得 | V209: 国就学支援金 | AC209: 大阪府支援補助金 | AR209: 保護者負担 | BF209: ＜算出結果＞ | BL209: 貸付限度額 | BX209: ＜算出結果＞
F210: 590万円未満 | M210: 154,500円未満 | T210: =IF($AO$98="〇",1,0) -> 0 | V210: =IF(U165<396000,U165,396000) -> 396000 | AC210: なし | AL210: 0 | AR210: 授業料－396,000円 | BF210: =IF(BS61<=V210,0,(BS61-V210)) ->  | BL210: 授業料負担額＋100,000円 | BX210: =BF210+100000 -> 
F211: 800万円未満 | M211: 251,100円未満 | T211: =IF($AO$99="〇",1,0) -> 0 | V211: =IF(U165<118800,U165,118800) -> 118800 | AC211: なし | AL211: 0 | AR211: 授業料－118,800円 | BF211: =IF(BS61<=V211,0,(BS61-V211)) ->  | BL211: 授業料負担額＋100,000円 | BX211: =BF211+100000 -> 
F212: 910万円未満 | M212: 304,200円未満 | T212: =IF($AO$100="〇",1,0) -> 0 | V212: =IF(U165<118800,U165,118800) -> 118800 | AC212: なし | AL212: 0 | AR212: 授業料－118,800円 | BF212: =IF(BS61<=V212,0,(BS61-V212)) ->  | BL212: 授業料負担額内（上限24万円） | BX212: =IF(BF212<240000,BF212,240000) -> 
F213: 1,000万円未満 | M213: 347,100円未満 | T213: =IF($AO$101="〇",1,0) -> 0 | V213: 0 | AC213: なし | AL213: 0 | AR213: 授業料全額 | BF213: =BS61 ->  | BL213: 授業料負担額内（上限24万円） | BX213: =IF($BS$61<240000,$BS$61,240000) -> 240000
D214: 朝鮮高級 | F214: 年 収 め や す | M214: 所 得 判 定 額 | T214: 所得 | V214: 国就学支援金 | AC214: 大阪府支援補助金 | AR214: 保護者負担 | BF214: ＜算出結果＞ | BL214: 貸付限度額 | BX214: ＜算出結果＞
F215: 590万円未満 | M215: 154,500円未満 | T215: =IF($AO$98="〇",1,0) -> 0 | V215: 0 | AC215: なし | AL215: 0 | AR215: 授業料全額 | BF215: =BS61 ->  | BL215: 授業料負担額＋100,000円 | BX215: =BF215+100000 -> 
F216: 800万円未満 | M216: 251,100円未満 | T216: =IF($AO$99="〇",1,0) -> 0 | V216: 0 | AC216: なし | AL216: 0 | AR216: 授業料全額 | BF216: =BS61 ->  | BL216: 授業料負担額＋100,000円 | BX216: =BF216+100000 -> 
F217: 910万円未満 | M217: 304,200円未満 | T217: =IF($AO$100="〇",1,0) -> 0 | V217: 0 | AC217: なし | AL217: 0 | AR217: 授業料全額 | BF217: =BS61 ->  | BL217: 授業料負担額内（上限24万円） | BX217: =IF(BF217<240000,BF217,240000) -> 240000
F218: 1,000万円未満 | M218: 347,100円未満 | T218: =IF($AO$101="〇",1,0) -> 0 | V218: 0 | AC218: なし | AL218: 0 | AR218: 授業料全額 | BF218: =BS61 ->  | BL218: 授業料負担額内（上限24万円） | BX218: =IF($BS$61<240000,$BS$61,240000) -> 240000

Sheet 学校検索（全日制用） (hidden)
A1: 検索文字列 | B1: 地域 | C1: 学 校 名 | D1: 学科等 | E1: 区分 | F1: 年間授業料 | G1: 最新 | H1: 学番 | J1: 学 校 名 | K1: 照合用 | L1: 学番・枝番 ・学科 | M1: 種別 | N1: 学科等 | O1: 授業料 | P1: 照合用 | Q1: 増減 | R1: 最新 | S1: 順番 | T1: 区分 | V1: 作業列 | X1: NO | Y1: 学校名 | Z1: 学科名 | AA1: 1年生 | AC1: 学番 | AD1: 枝 | AE1: 学校名 | AF1: 学科 | AG1: 学科名 | AH1: 1年生 | AI1: 👈貼付け
A2: =全日制!M25 -> 0 | B2: =IF(OR($A$2="",COUNT($V$2:$V$490)<ROW(A1)),"",INDEX($U$2:$U$496,SMALL($V$2:$V$490,ROW(A1)))) ->  | C2: =IF(OR($A$2="",COUNT($V$2:$V$490)<ROW(A1)),"",INDEX($J$2:$J$496,SMALL($V$2:$V$490,ROW(A1)))) ->  | D2: =IF(OR($A$2="",COUNT($V$2:$V$490)<ROW(A1)),"",INDEX($N$2:$N$496,SMALL($V$2:$V$490,ROW(A1)))) ->  | E2: =IF(OR($A$2="",COUNT($V$2:$V$490)<ROW(A1)),"",INDEX($T$2:$T$496,SMALL($V$2:$V$490,ROW(A1)))) ->  | F2: =IF(OR($A$2="",COUNT($V$2:$V$490)<ROW(A1)),"",INDEX($O$2:$O$496,SMALL($V$2:$V$490,ROW(A1)))) ->  | G2: =IF(OR($A$2="",COUNT($V$2:$V$490)<ROW(B1)),"",INDEX($R$2:$R$496,SMALL($V$2:$V$490,ROW(B1)))) ->  | H2: =IF(OR($A$2="",COUNT($V$2:$V$490)<ROW(C1)),"",INDEX($L$2:$L$496,SMALL($V$2:$V$490,ROW(C1)))) ->  | J2: 藍野 | K2: =VLOOKUP(L2,$X$2:$AA$1419,2,FALSE) -> 藍野 | L2: 47105-0-1 | M2: 私立高校 | N2: 衛生看護コース | O2: 550000 | P2: =VLOOKUP(L2,$X$2:$AA$1419,4,FALSE) -> 550000 | Q2: =P2-O2 -> 0 | R2: 〇 | S2: 1 | T2: 指定 | U2: 大 阪 | V2: =IF($A$2="","",IF(ISNUMBER(FIND($A$2,J2)),ROW(A1),"")) ->  | X2: =AC2&"-"&AD2&"-"&AF2 -> 31301-0-0 | Y2: =AE2 -> 富山 | Z2: =AG2 ->  | AA2: =AH2 -> 0 | AC2: 31301 | AD2: 0 | AE2: 富山 | AF2: 0 | AH2: 0
J3: アイム近畿理容美容専門 | K3: アイム近畿理容美容 | L3: 87507-0-0 | M3: 私立専修学校 | O3: 396000 | P3: 396000 | Q3: 0 | R3: 〇 | S3: 2 | T3: 指定 | U3: 大 阪 | V3: =IF($A$2="","",IF(ISNUMBER(FIND($A$2,J3)),ROW(A2),"")) ->  | X3: 31401-0-0 | Y3: 鳥羽商船 | Z3: =AG3 ->  | AA3: 234600 | AC3: 31401 | AD3: 0 | AE3: 鳥羽商船 | AF3: 0 | AH3: 234600
J4: アサンプション国際 | K4: アサンプション国際 | L4: 47046-0-0 | M4: 私立高校 | O4: 564000 | P4: 564000 | Q4: 0 | R4: 〇 | S4: 3 | T4: 指定 | U4: 大 阪 | X4: 31402-0-0 | Y4: 豊田工業 | AA4: 0 | AC4: 31402 | AD4: 0 | AE4: 豊田工業 | AF4: 0 | AH4: 0
J5: アナン学園 | K5: アナン学園 | L5: 47072-0-0 | M5: 私立高校 | O5: 600000 | P5: 600000 | Q5: 0 | R5: 〇 | S5: 4 | T5: 指定 | U5: 大 阪 | X5: 31501-0-0 | Y5: 明石工業 | AA5: 0 | AC5: 31501 | AD5: 0 | AE5: 明石工業 | AF5: 0 | AH5: 0
J6: あべの翔学 | K6: あべの翔学 | L6: 47028-0-0 | M6: 私立高校 | O6: 600000 | P6: 600000 | Q6: 0 | R6: 〇 | S6: 5 | T6: 指定 | U6: 大 阪 | X6: 31502-0-0 | Y6: 奈良工業 | AA6: 234600 | AC6: 31502 | AD6: 0 | AE6: 奈良工業 | AF6: 0 | AH6: 234600
J7: 泉大津市医師会附属看護高等専修 | K7: 泉大津市医師会附属看護 | L7: 88036-0-0 | M7: 私立専修学校 | O7: 204000 | P7: 204000 | Q7: 0 | R7: 〇 | S7: 6 | T7: 指定 | U7: 大 阪 | X7: 31503-0-0 | Y7: 和歌山工業 | AA7: 234600 | AC7: 31503 | AD7: 0 | AE7: 和歌山工業 | AF7: 0 | AH7: 234600
J8: 上宮 | K8: 上宮 | L8: 47009-0-0 | M8: 私立高校 | O8: 636000 | P8: 636000 | Q8: 0 | R8: 〇 | S8: 7 | T8: 指定 | U8: 大 阪 | X8: 31504-0-0 | Y8: 舞鶴工業 | AA8: 234600 | AC8: 31504 | AD8: 0 | AE8: 舞鶴工業 | AF8: 0 | AH8: 234600
J9: 上宮太子 | K9: 上宮太子 | L9: 47009-2-0 | M9: 私立高校 | O9: 636000 | P9: 636000 | Q9: 0 | R9: 〇 | S9: 8 | T9: 指定 | U9: 大 阪 | X9: 31601-0-0 | Y9: 広島商船 | AA9: 234600 | AC9: 31601 | AD9: 0 | AE9: 広島商船 | AF9: 0 | AH9: 234600
J10: 英真学園 | K10: 英真学園 | L10: 47019-0-0 | M10: 私立高校 | O10: 576000 | P10: 576000 | Q10: 0 | R10: 〇 | S10: 9 | T10: 指定 | U10: 大 阪 | X10: 31602-0-0 | Y10: 松江工業 | AA10: 0 | AC10: 31602 | AD10: 0 | AE10: 松江工業 | AF10: 0 | AH10: 0
J11: 英風女子高等専修 | K11: 英風女子高等専修 | L11: 86506-0-0 | M11: 私立専修学校 | O11: 420000 | P11: 420000 | Q11: 0 | R11: 〇 | S11: 10 | T11: 指定 | U11: 大 阪 | X11: 31603-0-0 | Y11: 大島商船 | AA11: 0 | AC11: 31603 | AD11: 0 | AE11: 大島商船 | AF11: 0 | AH11: 0
J12: ＮＲＢ日本理容美容専門 | K12: ＮＲＢ日本理容美容 | L12: 87509-0-1 | M12: 私立専修学校 | N12: 夜間課程 | O12: 360000 | P12: 360000 | Q12: 0 | R12: 〇 | S12: 11 | T12: 指定 | U12: 大 阪 | X12: 31701-0-0 | Y12: 香川 詫間キャンパス | AA12: 234600 | AC12: 31701 | AD12: 0 | AE12: 香川 詫間キャンパス | AF12: 0 | AH12: 234600
J13: ＮＲＢ日本理容美容専門 | K13: ＮＲＢ日本理容美容 | L13: 87509-0-0 | M13: 私立専修学校 | N13: 昼間課程 | O13: 456000 | P13: 456000 | Q13: 0 | R13: 〇 | S13: 12 | T13: 指定 | U13: 大 阪 | X13: 31701-1-0 | Y13: 香川 高松キャンパス | AA13: 234600 | AC13: 31701 | AD13: 1 | AE13: 香川 高松キャンパス | AF13: 0 | AH13: 234600
J14: 大阪 | K14: 大阪 | L14: 47017-0-0 | M14: 私立高校 | O14: 606000 | P14: 606000 | Q14: 0 | R14: 〇 | S14: 13 | T14: 指定 | U14: 大 阪 | X14: 31702-0-0 | Y14: 弓削商船 | AA14: 234600 | AC14: 31702 | AD14: 0 | AE14: 弓削商船 | AF14: 0 | AH14: 234600
J15: 大阪偕星学園 | K15: 大阪偕星学園 | L15: 47020-0-0 | M15: 私立高校 | O15: 580000 | P15: 580000 | Q15: 0 | R15: 〇 | S15: 14 | T15: 指定 | U15: 大 阪 | X15: 31801-0-0 | Y15: 鹿児島工業 | AA15: 234600 | AC15: 31801 | AD15: 0 | AE15: 鹿児島工業 | AF15: 0 | AH15: 234600
J16: 大阪学院大学 | K16: 大阪学院大学 | L16: 47048-0-0 | M16: 私立高校 | O16: 594000 | P16: 594000 | Q16: 0 | R16: 〇 | S16: 15 | T16: 指定 | U16: 大 阪 | X16: 31803-0-0 | Y16: 東京工業 | AA16: 0 | AC16: 31803 | AD16: 0 | AE16: 東京工業 | AF16: 0 | AH16: 0
J17: 大阪学芸 （３年制） | K17: 大阪学芸 | L17: 47034-0-0 | M17: 私立高校 | N17: 普通科 | O17: 538000 | P17: 538000 | Q17: 0 | R17: 〇 | S17: 16 | T17: 指定 | U17: 大 阪 | X17: 31804-0-0 | Y17: 福島工業 | AA17: 0 | AC17: 31804 | AD17: 0 | AE17: 福島工業 | AF17: 0 | AH17: 0
J18: 大阪学芸 （３年制） | K18: 大阪学芸 | L18: 47034-0-1 | M18: 私立高校 | N18: 国際科 | O18: 538000 | P18: 538000 | Q18: 0 | R18: 〇 | S18: 17 | T18: 指定 | U18: 大 阪 | X18: 31805-0-0 | Y18: 新居浜工業 | AA18: 0 | AC18: 31805 | AD18: 0 | AE18: 新居浜工業 | AF18: 0 | AH18: 0
J19: 大阪学芸 （６年制） | K19: 大阪学芸中等教育 | L19: 47034-1-2 | M19: 私立中等教育学校 | N19: ６年制 | O19: 534000 | P19: 534000 | Q19: 0 | R19: 〇 | S19: 18 | T19: 指定 | U19: 大 阪 | X19: 31806-0-0 | Y19: 一関工業 | AA19: 0 | AC19: 31806 | AD19: 0 | AE19: 一関工業 | AF19: 0 | AH19: 0
J20: 大阪技能専門 | K20: 大阪技能 | L20: 88520-0-0 | M20: 私立専修学校 | O20: 444000 | P20: 444000 | Q20: 0 | R20: 〇 | S20: 19 | T20: 指定 | U20: 大 阪 | X20: 31807-0-0 | Y20: 米子工業 | AA20: 0 | AC20: 31807 | AD20: 0 | AE20: 米子工業 | AF20: 0 | AH20: 0
J21: 大阪暁光 | K21: 大阪暁光 | L21: 47078-0-1 | M21: 私立高校 | N21: 普通科 | O21: 570000 | P21: 570000 | Q21: 0 | R21: 〇 | S21: 20 | T21: 指定 | U21: 大 阪 | X21: 31808-0-0 | Y21: 長岡工業 | AA21: 234600 | AC21: 31808 | AD21: 0 | AE21: 長岡工業 | AF21: 0 | AH21: 234600
J22: 大阪暁光 | K22: 大阪暁光 | L22: 47078-0-2 | M22: 私立高校 | N22: 看護科 | O22: 570000 | P22: 570000 | Q22: 0 | R22: 〇 | S22: 21 | T22: 指定 | U22: 大 阪 | X22: 32501-0-0 | Y22: 大阪公立大学工業 | AA22: 234600 | AC22: 32501 | AD22: 0 | AE22: 大阪公立大学工業 | AF22: 0 | AH22: 234600
J23: 大阪薫英女学院 | K23: 大阪薫英女学院 | L23: 47051-0-0 | M23: 私立高校 | O23: 620000 | P23: 620000 | Q23: 0 | R23: 〇 | S23: 22 | T23: 指定 | U23: 大 阪 | X23: 37801-0-0 | Y23: 近畿大学工業 | AA23: 520000 | AC23: 37801 | AD23: 0 | AE23: 近畿大学工業 | AF23: 0 | AH23: 520000
J24: 大阪国際 | K24: 大阪国際 | L24: 47060-0-0 | M24: 私立高校 | O24: 564000 | P24: 564000 | Q24: 0 | R24: 〇 | S24: 23 | T24: 指定 | U24: 大 阪 | X24: 37801-0-1 | Y24: 近畿大学工業 | Z24: ４年生からの編入生 | AA24: 0 | AC24: 37801 | AD24: 0 | AE24: 近畿大学工業 | AF24: 1 | AG24: ４年生からの編入生 | AH24: 0
J25: 大阪国際 | K25: 大阪国際 | L25: 47060-1-0 | M25: 私立高校 | N25: 国際バカロレアコース | O25: 564000 | P25: 564000 | Q25: =P25-O25 -> 0 | R25: 〇 | S25: 24 | T25: 未指定 | U25: 大 阪 | X25: 37802-0-0 | Y25: 国際 金沢キャンパス | AA25: 0 | AC25: 37802 | AD25: 0 | AE25: 国際 金沢キャンパス | AF25: 0 | AH25: 0
J26: 大阪産業大学附属 | K26: 大阪産業大学附属 | L26: 47025-0-0 | M26: 私立高校 | O26: 540000 | P26: 540000 | Q26: 0 | R26: 〇 | S26: 25 | T26: 指定 | U26: 大 阪 | X26: 41001-0-0 | Y26: 大阪教育大学附属天王寺校舎 | AA26: 115200 | AC26: 41001 | AD26: 0 | AE26: 大阪教育大学附属天王寺校舎 | AF26: 0 | AH26: 115200
J27: 大阪商業大学 | K27: 大阪商業大学 | L27: 47069-0-0 | M27: 私立高校 | O27: 600000 | P27: 600000 | Q27: 0 | R27: 〇 | S27: 26 | T27: 指定 | U27: 大 阪 | X27: 41002-0-0 | Y27: 大阪教育大学附属池田校舎 | AA27: 115200 | AC27: 41002 | AD27: 0 | AE27: 大阪教育大学附属池田校舎 | AF27: 0 | AH27: 115200
J28: 大阪商業大学堺 | K28: 大阪商業大学堺 | L28: 47083-0-0 | M28: 私立高校 | O28: 600000 | P28: 600000 | Q28: 0 | R28: 〇 | S28: 27 | T28: 指定 | U28: 大 阪 | X28: 41003-0-0 | Y28: 大阪教育大学附属平野校舎 | AA28: 115200 | AC28: 41003 | AD28: 0 | AE28: 大阪教育大学附属平野校舎 | AF28: 0 | AH28: 115200
J29: 大阪情報コンピュータ高等専修 | K29: 大阪情報コンピュータ高等専修 | L29: 86022-0-0 | M29: 私立専修学校 | O29: 480000 | P29: 480000 | Q29: 0 | R29: 〇 | S29: 28 | T29: 指定 | U29: 大 阪 | X29: 41101-0-0 | Y29: 京都教育大学附属 | AA29: 115200 | AC29: 41101 | AD29: 0 | AE29: 京都教育大学附属 | AF29: 0 | AH29: 115200
J30: 大阪女学院 | K30: 大阪女学院 | L30: 47003-0-0 | M30: 私立高校 | O30: 663000 | P30: 663000 | Q30: 0 | R30: 〇 | S30: 29 | T30: 指定 | U30: 大 阪 | X30: 41102-0-0 | Y30: 奈良女子大学附属中等教育 | AA30: 115200 | AC30: 41102 | AD30: 0 | AE30: 奈良女子大学附属中等教育 | AF30: 0 | AH30: 115200
J31: 大阪信愛学院 | K31: 大阪信愛学院 | L31: 47024-0-0 | M31: 私立高校 | O31: 594000 | P31: 594000 | Q31: 0 | R31: 〇 | S31: 30 | T31: 指定 | U31: 大 阪 | X31: 42001-0-0 | Y31: 大阪府立北野 | AA31: 118800 | AC31: 42001 | AD31: 0 | AE31: 大阪府立北野 | AF31: 0 | AH31: 118800
J32: 大阪成蹊女子 | K32: 大阪成蹊女子 | L32: 47018-0-0 | M32: 私立高校 | O32: 594000 | P32: 594000 | Q32: 0 | R32: 〇 | S32: 31 | T32: 指定 | U32: 大 阪 | X32: 42002-0-0 | Y32: 大阪府立東淀川 | AA32: 118800 | AC32: 42002 | AD32: 0 | AE32: 大阪府立東淀川 | AF32: 0 | AH32: 118800
J33: 大阪星光学院 | K33: 大阪星光学院 | L33: 47010-0-0 | M33: 私立高校 | O33: 540000 | P33: 540000 | Q33: 0 | R33: 〇 | S33: 32 | T33: 指定 | U33: 大 阪 | X33: 42004-0-0 | Y33: 大阪府立柴島 | AA33: 118800 | AC33: 42004 | AD33: 0 | AE33: 大阪府立柴島 | AF33: 0 | AH33: 118800
J34: 大阪青凌 | K34: 大阪青凌 | L34: 47090-0-0 | M34: 私立高校 | O34: 600000 | P34: 600000 | Q34: 0 | R34: 〇 | S34: 33 | T34: 指定 | U34: 大 阪 | X34: 42006-0-0 | Y34: 大阪府立大手前 | AA34: 118800 | AC34: 42006 | AD34: 0 | AE34: 大阪府立大手前 | AF34: 0 | AH34: 118800
J35: 大阪体育大学浪商 | K35: 大阪体育大学浪商 | L35: 47053-1-0 | M35: 私立高校 | O35: 600000 | P35: 600000 | Q35: 0 | R35: 〇 | S35: 34 | T35: 指定 | U35: 大 阪 | X35: 42006-1-0 | Y35: 大阪府立大手前 | AA35: 118800 | AC35: 42006 | AD35: 1 | AE35: 大阪府立大手前 | AF35: 0 | AH35: 118800
J36: 大阪中央理容美容専門 | K36: 大阪中央理容美容 | L36: 87503-0-0 | M36: 私立専修学校 | O36: 408000 | P36: 408000 | Q36: 0 | R36: 〇 | S36: 35 | T36: 指定 | U36: 大 阪 | X36: 42007-0-0 | Y36: 大阪府立港 | AA36: 118800 | AC36: 42007 | AD36: 0 | AE36: 大阪府立港 | AF36: 0 | AH36: 118800
J37: 大阪電気通信大学 | K37: 大阪電気通信大学 | L37: 47058-0-0 | M37: 私立高校 | O37: 600000 | P37: 600000 | Q37: 0 | R37: 〇 | S37: 36 | T37: 指定 | U37: 大 阪 | X37: 42008-0-0 | Y37: 大阪府立市岡 | AA37: 118800 | AC37: 42008 | AD37: 0 | AE37: 大阪府立市岡 | AF37: 0 | AH37: 118800
J38: 大阪桐蔭 | K38: 大阪桐蔭 | L38: 47091-0-0 | M38: 私立高校 | O38: 620000 | P38: 620000 | Q38: 0 | R38: 〇 | S38: 37 | T38: 指定 | U38: 大 阪 | X38: 42011-0-0 | Y38: 大阪府立清水谷 | AA38: 118800 | AC38: 42011 | AD38: 0 | AE38: 大阪府立清水谷 | AF38: 0 | AH38: 118800
J39: 大阪美容専門 | K39: 大阪美容 | L39: 87505-0-0 | M39: 私立専修学校 | O39: 576000 | P39: 576000 | Q39: 0 | R39: 〇 | S39: 38 | T39: 指定 | U39: 大 阪 | X39: 42012-0-0 | Y39: 大阪府立高津 | AA39: 118800 | AC39: 42012 | AD39: 0 | AE39: 大阪府立高津 | AF39: 0 | AH39: 118800
J40: 大阪夕陽丘学園 | K40: 大阪夕陽丘学園 | L40: 47013-0-0 | M40: 私立高校 | O40: 588000 | P40: 588000 | Q40: 0 | R40: 〇 | S40: 39 | T40: 指定 | U40: 大 阪 | X40: 42013-0-0 | Y40: 大阪府立夕陽丘 | AA40: 118800 | AC40: 42013 | AD40: 0 | AE40: 大阪府立夕陽丘 | AF40: 0 | AH40: 118800
J41: 大阪緑涼 | K41: 大阪緑涼 | L41: 47076-0-0 | M41: 私立高校 | N41: 普通科 | O41: 600000 | P41: 600000 | Q41: 0 | R41: 〇 | S41: 40 | T41: 指定 | U41: 大 阪 | X41: 42014-0-0 | Y41: 大阪府立今宮 | AA41: 118800 | AC41: 42014 | AD41: 0 | AE41: 大阪府立今宮 | AF41: 0 | AH41: 118800
J42: 大阪緑涼 | K42: 大阪緑涼 | L42: 47076-0-1 | M42: 私立高校 | N42: 調理製菓科 | O42: 600000 | P42: 600000 | Q42: 0 | R42: 〇 | S42: 41 | T42: 指定 | U42: 大 阪 | X42: 42016-0-0 | Y42: 大阪府立旭 | AA42: 118800 | AC42: 42016 | AD42: 0 | AE42: 大阪府立旭 | AF42: 0 | AH42: 118800
J43: 大阪ＹＭＣＡ国際専門 | K43: 大阪ＹＭＣＡ国際 | L43: 88521-0-1 | M43: 私立専修学校 | N43: 表現・コミュニケーション学科 | O43: 497000 | P43: 497000 | Q43: 0 | R43: 〇 | S43: 42 | T43: 指定 | U43: 大 阪 | X43: 42017-0-0 | Y43: 大阪府立茨田 | AA43: 118800 | AC43: 42017 | AD43: 0 | AE43: 大阪府立茨田 | AF43: 0 | AH43: 118800
J44: 大阪ＹＭＣＡ国際専門 | K44: 大阪ＹＭＣＡ国際 | L44: 88521-0-2 | M44: 私立専修学校 | N44: 国際学科 | O44: 677000 | P44: 677000 | Q44: 0 | R44: 〇 | S44: 43 | T44: 指定 | U44: 大 阪 | X44: 42018-0-0 | Y44: 大阪府立天王寺 | AA44: 118800 | AC44: 42018 | AD44: 0 | AE44: 大阪府立天王寺 | AF44: 0 | AH44: 118800
J45: 大谷 | K45: 大谷 | L45: 47029-0-0 | M45: 私立高校 | O45: 612000 | P45: 612000 | Q45: 0 | R45: 〇 | S45: 44 | T45: 指定 | U45: 大 阪 | X45: 42019-0-0 | Y45: 大阪府立阿倍野 | AA45: 118800 | AC45: 42019 | AD45: 0 | AE45: 大阪府立阿倍野 | AF45: 0 | AH45: 118800
J46: 追手門学院 （茨木学舎） | K46: 追手門学院 | L46: 47005-0-0 | M46: 私立高校 | O46: 537000 | P46: 537000 | Q46: 0 | R46: 〇 | S46: 45 | T46: 指定 | U46: 大 阪 | X46: 42020-0-0 | Y46: 大阪府立住吉 | AA46: 118800 | AC46: 42020 | AD46: 0 | AE46: 大阪府立住吉 | AF46: 0 | AH46: 118800
J47: 追手門学院大手前 | K47: 追手門学院大手前 | L47: 47004-0-0 | M47: 私立高校 | O47: 609000 | P47: 609000 | Q47: 0 | R47: 〇 | S47: 46 | T47: 指定 | U47: 大 阪 | X47: 42022-0-0 | Y47: 大阪府立阪南 | AA47: 118800 | AC47: 42022 | AD47: 0 | AE47: 大阪府立阪南 | AF47: 0 | AH47: 118800
J48: 開明 | K48: 開明 | L48: 47026-0-0 | M48: 私立高校 | O48: 650000 | P48: 650000 | Q48: 0 | R48: 〇 | S48: 47 | T48: 指定 | U48: 大 阪 | X48: 42024-0-0 | Y48: 大阪府立東住吉 | AA48: 118800 | AC48: 42024 | AD48: 0 | AE48: 大阪府立東住吉 | AF48: 0 | AH48: 118800
J49: 香ヶ丘リベルテ | K49: 香ヶ丘リベルテ | L49: 47081-0-0 | M49: 私立高校 | O49: 580000 | P49: 580000 | Q49: 0 | R49: 〇 | S49: 48 | T49: 指定 | U49: 大 阪 | X49: 42025-0-0 | Y49: 大阪府立長吉 | AA49: 118800 | AC49: 42025 | AD49: 0 | AE49: 大阪府立長吉 | AF49: 0 | AH49: 118800
J50: 河崎会看護専門 | K50: 河崎会看護 | L50: 88039-0-0 | M50: 私立専修学校 | O50: 260000 | P50: 260000 | Q50: 0 | R50: 〇 | S50: 49 | T50: 指定 | U50: 大 阪 | X50: 42026-0-0 | Y50: 大阪府立西成 | AA50: 118800 | AC50: 42026 | AD50: 0 | AE50: 大阪府立西成 | AF50: 0 | AH50: 118800
J51: 関西大倉 | K51: 関西大倉 | L51: 47052-0-0 | M51: 私立高校 | O51: 620000 | P51: 620000 | Q51: 0 | R51: 〇 | S51: 50 | T51: 指定 | U51: 大 阪 | X51: 42027-0-0 | Y51: 大阪府立平野 | AA51: 118800 | AC51: 42027 | AD51: 0 | AE51: 大阪府立平野 | AF51: 0 | AH51: 118800
J52: 関西外語専門 （国際高等課程） | K52: 関西外語 | L52: 88522-0-0 | M52: 私立専修学校 | O52: 540000 | P52: 540000 | Q52: 0 | R52: 〇 | S52: 51 | T52: 指定 | U52: 大 阪 | X52: 42029-0-0 | Y52: 大阪府教育センター付属 | Z52: 0 | AA52: 118800 | AC52: 42029 | AD52: 0 | AE52: 大阪府教育センター付属 | AF52: 0 | AH52: 118800
J53: 関西情報工学院専門 | K53: 関西情報工学院 | L53: 86021-0-1 | M53: 私立専修学校 | N53: 情報処理 | O53: 360000 | P53: 360000 | Q53: 0 | R53: 〇 | S53: 52 | T53: 指定 | U53: 大 阪 | X53: 42030-0-0 | Y53: 大阪府立淀川清流 | Z53: 0 | AA53: 118800 | AC53: 42030 | AD53: 0 | AE53: 大阪府立淀川清流 | AF53: 0 | AH53: 118800
J54: 関西情報工学院専門 | K54: 関西情報工学院 | L54: 86021-0-2 | M54: 私立専修学校 | N54: 国際情報 | O54: 360000 | P54: 360000 | Q54: 0 | R54: 〇 | S54: 53 | T54: 指定 | U54: 大 阪 | X54: 42031-0-0 | Y54: 大阪府立大正白稜 | Z54: 0 | AA54: 118800 | AC54: 42031 | AD54: 0 | AE54: 大阪府立大正白稜 | AF54: 0 | AH54: 118800
J55: 関西情報工学院専門 | K55: 関西情報工学院 | L55: 86021-0-4 | M55: 私立専修学校 | N55: マンガ・美術 | O55: 396000 | P55: 396000 | Q55: 0 | R55: 〇 | S55: 54 | T55: 指定 | U55: 大 阪 | X55: 42032-0-0 | Y55: 大阪府立 桜和 | Z55: 0 | AA55: 118800 | AC55: 42032 | AD55: 0 | AE55: 大阪府立 桜和 | AF55: 0 | AH55: 118800
J56: 関西創価 | K56: 関西創価 | L56: 47066-0-0 | M56: 私立高校 | O56: 468000 | P56: 468000 | Q56: 0 | R56: 〇 | S56: 55 | T56: 指定 | U56: 大 阪 | X56: 42201-0-0 | Y56: 大阪府立豊中 | AA56: 118800 | AC56: 42201 | AD56: 0 | AE56: 大阪府立豊中 | AF56: 0 | AH56: 118800
J57: 関西大学高等部 | K57: 関西大学高等部 | L57: 47106-0-0 | M57: 私立高校 | O57: 700000 | P57: 700000 | Q57: 0 | R57: 〇 | S57: 56 | T57: 指定 | U57: 大 阪 | X57: 42201-1-0 | Y57: 大阪府立豊中 | Z57: 能勢分校 | AA57: 118800 | AC57: 42201 | AD57: 1 | AE57: 大阪府立豊中 | AF57: 0 | AG57: 能勢分校 | AH57: 118800
J58: 関西大学第一 | K58: 関西大学第一 | L58: 47047-0-0 | M58: 私立高校 | O58: 640000 | P58: 640000 | Q58: 0 | R58: 〇 | S58: 57 | T58: 指定 | U58: 大 阪 | X58: 42202-0-0 | Y58: 大阪府立桜塚 | AA58: 118800 | AC58: 42202 | AD58: 0 | AE58: 大阪府立桜塚 | AF58: 0 | AH58: 118800
J59: 関西大学北陽 | K59: 関西大学北陽 | L59: 47016-0-0 | M59: 私立高校 | O59: 640000 | P59: 640000 | Q59: 0 | R59: 〇 | S59: 58 | T59: 指定 | U59: 大 阪 | X59: 42202-1-0 | Y59: 大阪府立桜塚 | AA59: 32400 | AC59: 42202 | AD59: 1 | AE59: 大阪府立桜塚 | AF59: 0 | AH59: 32400
J60: 関西テレビ電気専門 | K60: 関西テレビ電気 | L60: 86001-0-0 | M60: 私立専修学校 | N60: 電気テレビ科（昼） | O60: 650000 | P60: 650000 | Q60: 0 | R60: 〇 | S60: 59 | T60: 指定 | U60: 大 阪 | X60: 42204-0-0 | Y60: 大阪府立豊島 | AA60: 118800 | AC60: 42204 | AD60: 0 | AE60: 大阪府立豊島 | AF60: 0 | AH60: 118800
J61: 関西テレビ電気専門 | K61: 関西テレビ電気 | L61: 86001-0-1 | M61: 私立専修学校 | N61: ＣＧアニメーション科 | O61: 650000 | P61: 650000 | Q61: 0 | R61: 〇 | S61: 60 | T61: 指定 | U61: 大 阪 | X61: =AC61&"-"&AD61&"-"&AF61 -> 42205-0-0 | Y61: =AE61 -> 大阪府立刀根山 | Z61: =AG61 ->  | AA61: =AH61 -> 118800 | AC61: 42205 | AD61: 0 | AE61: 大阪府立刀根山 | AF61: 0 | AH61: 118800
J62: 関西テレビ電気専門 | K62: 関西テレビ電気 | L62: 86001-0-2 | M62: 私立専修学校 | N62: 電気テレビ科（夜） | O62: 400000 | P62: 400000 | Q62: 0 | R62: 〇 | S62: 61 | T62: 指定 | U62: 大 阪 | X62: 42206-0-0 | Y62: 大阪府立池田 | AA62: 118800 | AC62: 42206 | AD62: 0 | AE62: 大阪府立池田 | AF62: 0 | AH62: 118800
J63: 関西福祉科学大学 | K63: 関西福祉科学大学 | L63: 47073-0-0 | M63: 私立高校 | O63: 608000 | P63: 608000 | Q63: 0 | R63: 〇 | S63: 62 | T63: 指定 | U63: 大 阪 | X63: 42207-0-0 | Y63: 大阪府立渋谷 | AA63: 118800 | AC63: 42207 | AD63: 0 | AE63: 大阪府立渋谷 | AF63: 0 | AH63: 118800
J64: 清教学園 | K64: 清教学園 | L64: 47079-0-0 | M64: 私立高校 | O64: 648000 | P64: 648000 | Q64: 0 | R64: 〇 | S64: 63 | T64: 指定 | U64: 大 阪 | X64: 42208-0-0 | Y64: 大阪府立箕面 | AA64: 118800 | AC64: 42208 | AD64: 0 | AE64: 大阪府立箕面 | AF64: 0 | AH64: 118800
J65: 近畿情報高等専修 | K65: 近畿情報高等専修 | L65: 86018-0-0 | M65: 私立専修学校 | O65: 396000 | P65: 396000 | Q65: =P65-O65 -> 0 | R65: 〇 | S65: 64 | T65: 指定 | U65: 大 阪 | X65: 42209-2-0 | Y65: 大阪府立箕面東 | Z65: 0 | AA65: 118800 | AC65: 42209 | AD65: 2 | AE65: 大阪府立箕面東 | AF65: 0 | AH65: 118800
J66: 近畿大学泉州 | K66: =VLOOKUP(L66,$X$2:$AA$1419,2,FALSE) -> 近畿大学泉州 | L66: 47086-0-0 | M66: 私立高校 | O66: 500000 | P66: =VLOOKUP(L66,$X$2:$AA$1419,4,FALSE) -> 500000 | Q66: 0 | R66: 〇 | S66: 65 | T66: 指定 | U66: 大 阪 | X66: 42209-2-1 | Y66: 大阪府立箕面東 | Z66: クリエイティブ | AA66: 118800 | AC66: 42209 | AD66: 2 | AE66: 大阪府立箕面東 | AF66: 1 | AG66: クリエイティブ | AH66: 118800
J67: 近畿大学附属 | K67: 近畿大学附属 | L67: 47067-0-0 | M67: 私立高校 | O67: 600000 | P67: 600000 | Q67: 0 | R67: 〇 | S67: 66 | T67: 指定 | U67: 大 阪 | V67: =IF($A$2="","",IF(ISNUMBER(FIND($A$2,J67)),ROW(A66),"")) ->  | X67: =AC67&"-"&AD67&"-"&AF67 -> 42209-2-2 | Y67: =AE67 -> 大阪府立箕面東 | Z67: クリエイティブ | AA67: 118800 | AC67: 42209 | AD67: 2 | AE67: 大阪府立箕面東 | AF67: 2 | AG67: クリエイティブ | AH67: 118800
J68: 錦秀会看護専門 | K68: 錦秀会看護 | L68: 88059-0-0 | M68: 私立専修学校 | O68: 360000 | P68: 360000 | Q68: 0 | R68: 〇 | S68: 67 | T68: 指定 | U68: 大 阪 | X68: 42212-0-0 | Y68: 大阪府立吹田 | Z68: =AG68 ->  | AA68: 118800 | AC68: 42212 | AD68: 0 | AE68: 大阪府立吹田 | AF68: 0 | AH68: 118800
J69: 金蘭会 | K69: 金蘭会 | L69: 47014-0-0 | M69: 私立高校 | O69: 550000 | P69: 550000 | Q69: 0 | R69: 〇 | S69: 68 | T69: 指定 | U69: 大 阪 | X69: 42213-0-0 | Y69: 大阪府立千里 | AA69: 118800 | AC69: 42213 | AD69: 0 | AE69: 大阪府立千里 | AF69: 0 | AH69: 118800
J70: 金蘭千里 | K70: 金蘭千里 | L70: 47049-0-0 | M70: 私立高校 | O70: 630000 | P70: 630000 | Q70: 0 | R70: 〇 | S70: 69 | T70: 指定 | U70: 大 阪 | X70: 42214-0-0 | Y70: 大阪府立吹田東 | AA70: 118800 | AC70: 42214 | AD70: 0 | AE70: 大阪府立吹田東 | AF70: 0 | AH70: 118800
J71: 専修学校クラーク高等学院 （天王寺校） | K71: クラーク高等学院（天王寺校） | L71: 88525-0-0 | M71: 私立専修学校 | O71: 400000 | P71: 400000 | Q71: 0 | R71: 〇 | S71: 70 | T71: 指定 | U71: 大 阪 | X71: 42215-0-0 | Y71: 大阪府立北千里 | AA71: 118800 | AC71: 42215 | AD71: 0 | AE71: 大阪府立北千里 | AF71: 0 | AH71: 118800
J72: 建国 | K72: 建国 | L72: 47035-0-0 | M72: 私立高校 | O72: 402000 | P72: 402000 | Q72: 0 | R72: 〇 | S72: 71 | T72: 指定 | U72: 大 阪 | X72: 42216-0-0 | Y72: 大阪府立摂津 | AA72: 118800 | AC72: 42216 | AD72: 0 | AE72: 大阪府立摂津 | AF72: 0 | AH72: 118800
J73: 賢明学院 | K73: 賢明学院 | L73: 47082-0-0 | M73: 私立高校 | O73: 588000 | P73: 588000 | Q73: 0 | R73: 〇 | S73: 72 | T73: 指定 | U73: 大 阪 | X73: 42217-0-0 | Y73: 大阪府立春日丘 | AA73: 118800 | AC73: 42217 | AD73: 0 | AE73: 大阪府立春日丘 | AF73: 0 | AH73: 118800
J74: 小出美容専門 | K74: 小出美容 | L74: 87510-0-0 | M74: 私立専修学校 | O74: 480000 | P74: 480000 | Q74: 0 | R74: 〇 | S74: 73 | T74: 指定 | U74: 大 阪 | X74: 42217-1-0 | Y74: 大阪府立春日丘 | AA74: 32400 | AC74: 42217 | AD74: 1 | AE74: 大阪府立春日丘 | AF74: 0 | AH74: 32400
J75: 興國 | K75: 興國 | L75: 47011-0-0 | M75: 私立高校 | O75: 610000 | P75: 610000 | Q75: 0 | R75: 〇 | S75: 74 | T75: 指定 | U75: 大 阪 | X75: 42218-0-0 | Y75: 大阪府立茨木 | AA75: 118800 | AC75: 42218 | AD75: 0 | AE75: 大阪府立茨木 | AF75: 0 | AH75: 118800
J76: 鴻池学園高等専修 | K76: 鴻池学園高等専修 | L76: 86529-0-0 | M76: 私立専修学校 | O76: 480000 | P76: 480000 | Q76: 0 | R76: 〇 | S76: 75 | T76: 指定 | U76: 大 阪 | X76: 42219-0-0 | Y76: 大阪府立茨木西 | AA76: 118800 | AC76: 42219 | AD76: 0 | AE76: 大阪府立茨木西 | AF76: 0 | AH76: 118800
J77: 好文学園女子 | K77: 好文学園女子 | L77: 47015-0-0 | M77: 私立高校 | O77: 580000 | P77: 580000 | Q77: 0 | R77: 〇 | S77: 76 | T77: 指定 | U77: 大 阪 | X77: 42220-0-0 | Y77: 大阪府立三島 | AA77: 118800 | AC77: 42220 | AD77: 0 | AE77: 大阪府立三島 | AF77: 0 | AH77: 118800
J78: 香里ヌヴェール学院 | K78: 香里ヌヴェール学院 | L78: 47062-0-0 | M78: 私立高校 | N78: ＳＡ・GＳコース | O78: 504000 | P78: 504000 | Q78: 0 | R78: 〇 | S78: 77 | T78: 指定 | U78: 大 阪 | X78: 42221-2-0 | Y78: 大阪府立大冠 | AA78: 118800 | AC78: 42221 | AD78: 2 | AE78: 大阪府立大冠 | AF78: 0 | AH78: 118800
J79: 香里ヌヴェール学院 | K79: 香里ヌヴェール学院 | L79: 47062-0-1 | M79: 私立高校 | N79: ＳＥコース | O79: 624000 | P79: 624000 | Q79: 0 | R79: 〇 | S79: 78 | T79: 指定 | U79: 大 阪 | X79: 42223-0-0 | Y79: 大阪府立高槻北 | AA79: 118800 | AC79: 42223 | AD79: 0 | AE79: 大阪府立高槻北 | AF79: 0 | AH79: 118800
J80: コリア国際学園 （高等部） | K80: コリア国際学園 | L80: 89002-0-0 | M80: 私立各種学校 | O80: 456000 | P80: 456000 | Q80: 0 | R80: 〇 | S80: 79 | T80: 指定 | U80: 大 阪 | X80: 42224-0-0 | Y80: 大阪府立島本 | AA80: 118800 | AC80: 42224 | AD80: 0 | AE80: 大阪府立島本 | AF80: 0 | AH80: 118800
J81: 金光大阪 | K81: 金光大阪 | L81: 47087-0-0 | M81: 私立高校 | O81: 594000 | P81: 594000 | Q81: 0 | R81: 〇 | S81: 80 | T81: 指定 | U81: 大 阪 | X81: 42228-0-0 | Y81: 大阪府立門真西 | AA81: 118800 | AC81: 42228 | AD81: 0 | AE81: 大阪府立門真西 | AF81: 0 | AH81: 118800
J82: 大阪金剛インターナショナル | K82: 大阪金剛インターナショナル | L82: 47097-0-0 | M82: 私立高校 | O82: 483360 | P82: 483360 | Q82: 0 | R82: 〇 | S82: 81 | T82: 指定 | U82: 大 阪 | X82: 42229-0-0 | Y82: 大阪府立寝屋川 | AA82: 118800 | AC82: 42229 | AD82: 0 | AE82: 大阪府立寝屋川 | AF82: 0 | AH82: 118800
J83: 金光藤蔭 | K83: 金光藤蔭 | L83: 47022-0-0 | M83: 私立高校 | O83: 581400 | P83: 581400 | Q83: 0 | R83: 〇 | S83: 82 | T83: 指定 | U83: 大 阪 | X83: 42229-1-0 | Y83: 大阪府立寝屋川 | AA83: 32400 | AC83: 42229 | AD83: 1 | AE83: 大阪府立寝屋川 | AF83: 0 | AH83: 32400
J84: 金光八尾 | K84: 金光八尾 | L84: 47095-0-0 | M84: 私立高校 | O84: 594000 | P84: 594000 | Q84: 0 | R84: 〇 | S84: 83 | T84: 指定 | U84: 大 阪 | X84: 42233-0-0 | Y84: 大阪府立野崎 | AA84: 118800 | AC84: 42233 | AD84: 0 | AE84: 大阪府立野崎 | AF84: 0 | AH84: 118800
J85: 堺リベラル | K85: 堺リベラル | L85: 47110-0-0 | M85: 私立高校 | O85: 580000 | P85: 580000 | Q85: 0 | R85: 〇 | S85: 84 | T85: 指定 | U85: 大 阪 | X85: 42234-0-0 | Y85: 大阪府立枚方 | AA85: 118800 | AC85: 42234 | AD85: 0 | AE85: 大阪府立枚方 | AF85: 0 | AH85: 118800
J86: 四條畷学園 | K86: 四條畷学園 | L86: 47065-0-0 | M86: 私立高校 | O86: 600000 | P86: 600000 | Q86: 0 | R86: 〇 | S86: 85 | T86: 指定 | U86: 大 阪 | X86: 42234-2-0 | Y86: 大阪府立枚方津田 | AA86: 118800 | AC86: 42234 | AD86: 2 | AE86: 大阪府立枚方津田 | AF86: 0 | AH86: 118800
J87: 四天王寺 | K87: 四天王寺 | L87: 47012-0-0 | M87: 私立高校 | O87: 565200 | P87: 565200 | Q87: 0 | R87: 〇 | S87: 86 | T87: 指定 | U87: 大 阪 | X87: 42235-0-0 | Y87: 大阪府立長尾 | AA87: 118800 | AC87: 42235 | AD87: 0 | AE87: 大阪府立長尾 | AF87: 0 | AH87: 118800
J88: 四天王寺東 | K88: 四天王寺東 | L88: 47109-0-0 | M88: 私立高校 | O88: 540000 | P88: 540000 | Q88: 0 | R88: 〇 | S88: 87 | T88: 指定 | U88: 大 阪 | X88: 42236-0-0 | Y88: 大阪府立牧野 | AA88: 118800 | AC88: 42236 | AD88: 0 | AE88: 大阪府立牧野 | AF88: 0 | AH88: 118800
J89: 樟蔭 | K89: 樟蔭 | L89: 47071-0-0 | M89: 私立高校 | O89: 612000 | P89: 612000 | Q89: 0 | R89: 〇 | S89: 88 | T89: 指定 | U89: 大 阪 | X89: 42237-0-0 | Y89: 大阪府立四條畷 | AA89: 118800 | AC89: 42237 | AD89: 0 | AE89: 大阪府立四條畷 | AF89: 0 | AH89: 118800
J90: 常翔学園 | K90: 常翔学園 | L90: 47023-0-0 | M90: 私立高校 | O90: 618000 | P90: 618000 | Q90: 0 | R90: 〇 | S90: 89 | T90: 指定 | U90: 大 阪 | X90: 42238-0-0 | Y90: 大阪府立交野 | AA90: 118800 | AC90: 42238 | AD90: 0 | AE90: 大阪府立交野 | AF90: 0 | AH90: 118800
J91: 常翔啓光学園 | K91: 常翔啓光学園 | L91: 47063-0-0 | M91: 私立高校 | O91: 618000 | P91: 618000 | Q91: 0 | R91: 〇 | S91: 90 | T91: 指定 | U91: 大 阪 | X91: 42239-0-0 | Y91: 大阪府立布施 | AA91: 118800 | AC91: 42239 | AD91: 0 | AE91: 大阪府立布施 | AF91: 0 | AH91: 118800
J92: 城南学園 | K92: 城南学園 | L92: 47038-0-0 | M92: 私立高校 | O92: 600000 | P92: 600000 | Q92: 0 | R92: 〇 | S92: 91 | T92: 指定 | U92: 大 阪 | X92: 42239-1-0 | Y92: 大阪府立布施 | AA92: 32400 | AC92: 42239 | AD92: 1 | AE92: 大阪府立布施 | AF92: 0 | AH92: 32400
J93: 昇陽 | K93: 昇陽 | L93: 47001-0-0 | M93: 私立高校 | O93: 600000 | P93: 600000 | Q93: 0 | R93: 〇 | S93: 92 | T93: 指定 | U93: 大 阪 | X93: 42240-0-0 | Y93: 大阪府立花園 | AA93: 32400 | AC93: 42240 | AD93: 0 | AE93: 大阪府立花園 | AF93: 0 | AH93: 32400
J94: 精華 | K94: 精華 | L94: 47089-0-0 | M94: 私立高校 | O94: 576000 | P94: 576000 | Q94: 0 | R94: 〇 | S94: 93 | T94: 指定 | U94: 大 阪 | X94: 42243-0-0 | Y94: 大阪府立布施北 | AA94: 32400 | AC94: 42243 | AD94: 0 | AE94: 大阪府立布施北 | AF94: 0 | AH94: 32400
J95: 清恵会医療専門学院 | K95: 清恵会医療専門 | L95: 88034-0-0 | M95: 私立専修学校 | O95: 360000 | P95: 360000 | Q95: 0 | R95: 〇 | S95: 94 | T95: 指定 | U95: 大 阪 | X95: 42244-0-0 | Y95: 大阪府立山本 | AA95: 32400 | AC95: 42244 | AD95: 0 | AE95: 大阪府立山本 | AF95: 0 | AH95: 32400
J96: 星翔 | L96: 47050-0-0 | M96: 私立高校 | O96: 600000 | R96: 〇 | S96: 95 | T96: 指定 | U96: 大 阪 | X96: 42245-0-0 | Y96: 大阪府立八尾 | AA96: 32400 | AC96: 42245 | AD96: 0 | AE96: 大阪府立八尾 | AF96: 0 | AH96: 32400
J97: 清風 | K97: 清風 | L97: 47008-0-0 | M97: 私立高校 | O97: 670000 | P97: 670000 | Q97: 0 | R97: 〇 | S97: 96 | T97: 指定 | U97: 大 阪 | X97: 42248-0-0 | Y97: 大阪府立生野 | AA97: 32400 | AC97: 42248 | AD97: 0 | AE97: 大阪府立生野 | AF97: 0 | AH97: 32400
J98: 清風南海 | K98: 清風南海 | L98: 47085-0-0 | M98: 私立高校 | O98: 640000 | P98: 640000 | Q98: 0 | R98: 〇 | S98: 97 | T98: 指定 | U98: 大 阪 | X98: 42249-0-0 | Y98: 大阪府立松原 | AA98: 32400 | AC98: 42249 | AD98: 0 | AE98: 大阪府立松原 | AF98: 0 | AH98: 32400
J99: 清明学院 | K99: 清明学院 | L99: 47037-0-0 | M99: 私立高校 | O99: 570000 | P99: 570000 | Q99: 0 | R99: 〇 | S99: 98 | T99: 指定 | U99: 大 阪 | X99: 42250-0-0 | Y99: 大阪府立藤井寺 | AA99: 32400 | AC99: 42250 | AD99: 0 | AE99: 大阪府立藤井寺 | AF99: 0 | AH99: 32400
J100: 専修学校クラーク高等学院 （大阪梅田校） | K100: クラーク高等学院（大阪梅田校） | L100: 88527-0-0 | M100: 私立専修学校 | O100: 400000 | P100: 400000 | Q100: 0 | R100: 〇 | S100: 99 | T100: 指定 | U100: 大 阪 | X100: 42253-0-0 | Y100: 大阪府立河南 | AA100: 32400 | AC100: 42253 | AD100: 0 | AE100: 大阪府立河南 | AF100: 0 | AH100: 32400
J101: 宣真 | K101: 宣真 | L101: 47044-0-0 | M101: 私立高校 | O101: 582000 | P101: 582000 | Q101: 0 | R101: 〇 | S101: 100 | T101: 指定 | U101: 大 阪 | X101: 42254-0-0 | Y101: 大阪府立富田林 | AA101: 32400 | AC101: 42254 | AD101: 0 | AE101: 大阪府立富田林 | AF101: 0 | AH101: 32400
J102: 相愛 | K102: 相愛 | L102: 47002-0-1 | M102: 私立高校 | N102: 普通科 | O102: 480000 | P102: 480000 | Q102: 0 | R102: 〇 | S102: 101 | T102: 指定 | U102: 大 阪 | X102: 42255-0-0 | Y102: 大阪府立長野 | AA102: 32400 | AC102: 42255 | AD102: 0 | AE102: 大阪府立長野 | AF102: 0 | AH102: 32400
J103: 相愛 | K103: 相愛 | L103: 47002-0-2 | M103: 私立高校 | N103: 音楽科 | O103: 648000 | P103: 648000 | Q103: 0 | R103: 〇 | S103: 102 | T103: 指定 | U103: 大 阪 | X103: 42257-0-0 | Y103: 大阪府立美原 | AA103: 32400 | AC103: 42257 | AD103: 0 | AE103: 大阪府立美原 | AF103: 0 | AH103: 32400
J104: 大商学園 | K104: 大商学園 | L104: 47040-0-0 | M104: 私立高校 | O104: 550000 | P104: 550000 | Q104: 0 | R104: 〇 | S104: 103 | T104: 指定 | U104: 大 阪 | X104: 42258-0-0 | Y104: 大阪府立登美丘 | AA104: 32400 | AC104: 42258 | AD104: 0 | AE104: 大阪府立登美丘 | AF104: 0 | AH104: 32400
J105: 太成学院大学 | K105: 太成学院大学 | L105: 47064-0-1 | M105: 私立高校 | N105: 普通科 | O105: 598000 | P105: 598000 | Q105: 0 | R105: 〇 | S105: 104 | T105: 指定 | U105: 大 阪 | X105: 42259-0-0 | Y105: 大阪府立泉陽 | AA105: 32400 | AC105: 42259 | AD105: 0 | AE105: 大阪府立泉陽 | AF105: 0 | AH105: 32400
J106: 太成学院大学 | K106: 太成学院大学 | L106: 47064-0-4 | M106: 私立高校 | N106: スポーツ科 | O106: 598000 | P106: 598000 | Q106: 0 | R106: 〇 | S106: 105 | T106: 指定 | U106: 大 阪 | X106: 42260-0-0 | Y106: 大阪府立三国丘 | AA106: 32400 | AC106: 42260 | AD106: 0 | AE106: 大阪府立三国丘 | AF106: 0 | AH106: 32400
J107: 大精協看護専門 | K107: 大精協看護 | L107: 88046-0-0 | M107: 私立専修学校 | O107: 312000 | P107: 312000 | Q107: 0 | R107: 〇 | S107: 106 | T107: 指定 | U107: 大 阪 | X107: 42260-1-0 | Y107: 大阪府立三国丘 | AA107: 32400 | AC107: 42260 | AD107: 1 | AE107: 大阪府立三国丘 | AF107: 0 | AH107: 32400
J108: 高槻 | K108: 高槻 | L108: 47056-0-0 | M108: 私立高校 | O108: 678000 | P108: 678000 | Q108: 0 | R108: 〇 | S108: 107 | T108: 指定 | U108: 大 阪 | X108: 42261-0-0 | Y108: 大阪府立泉北 | AA108: 118800 | AC108: 42261 | AD108: 0 | AE108: 大阪府立泉北 | AF108: 0 | AH108: 118800
J109: 高槻市医師会看護 | K109: 高槻市医師会看護 | L109: 88057-0-0 | M109: 私立専修学校 | O109: 300000 | P109: 300000 | Q109: 0 | R109: 〇 | S109: 108 | T109: 未指定 | U109: 大 阪 | X109: 42262-0-0 | Y109: 大阪府立鳳 | AA109: 118800 | AC109: 42262 | AD109: 0 | AE109: 大阪府立鳳 | AF109: 0 | AH109: 118800
J110: 中央学園高等専修 | K110: 中央学園 | L110: 86519-0-0 | M110: 私立専修学校 | O110: 384000 | P110: 384000 | Q110: 0 | R110: 〇 | S110: 109 | T110: 指定 | U110: 大 阪 | X110: 42263-0-0 | Y110: 大阪府立堺東 | AA110: 118800 | AC110: 42263 | AD110: 0 | AE110: 大阪府立堺東 | AF110: 0 | AH110: 118800
J111: 帝塚山学院 | K111: 帝塚山学院 | L111: 47036-0-0 | M111: 私立高校 | O111: 615600 | P111: 615600 | Q111: 0 | R111: 〇 | S111: 110 | T111: 指定 | U111: 大 阪 | X111: 42264-0-0 | Y111: 大阪府立金岡 | AA111: 118800 | AC111: 42264 | AD111: 0 | AE111: 大阪府立金岡 | AF111: 0 | AH111: 118800
J112: 帝塚山学院泉ケ丘 | K112: 帝塚山学院泉ケ丘 | L112: 47088-0-0 | M112: 私立高校 | O112: 615600 | P112: 615600 | Q112: 0 | R112: 〇 | S112: 111 | T112: 指定 | U112: 大 阪 | X112: 42265-0-0 | Y112: 大阪府立東百舌鳥 | AA112: 118800 | AC112: 42265 | AD112: 0 | AE112: 大阪府立東百舌鳥 | AF112: 0 | AH112: 118800
J113: 東海大学付属大阪仰星 | K113: 東海大学付属大阪仰星 | L113: 47092-0-0 | M113: 私立高校 | O113: 600000 | P113: 600000 | Q113: 0 | R113: 〇 | S113: 112 | T113: 指定 | U113: 大 阪 | X113: 42267-0-0 | Y113: 大阪府立伯太 | AA113: 118800 | AC113: 42267 | AD113: 0 | AE113: 大阪府立伯太 | AF113: 0 | AH113: 118800
J114: 同志社香里 | K114: 同志社香里 | L114: 47061-0-0 | M114: 私立高校 | O114: 644000 | P114: 644000 | Q114: 0 | R114: 〇 | S114: 113 | T114: 指定 | U114: 大 阪 | X114: 42268-0-0 | Y114: 大阪府立高石 | AA114: 118800 | AC114: 42268 | AD114: 0 | AE114: 大阪府立高石 | AF114: 0 | AH114: 118800
J115: 東朋高等専修 | K115: 東朋高等専修 | L115: 86509-0-0 | M115: 私立専修学校 | N115: 普通科 | O115: 576000 | P115: 576000 | Q115: 0 | R115: 〇 | S115: 114 | T115: 指定 | U115: 大 阪 | X115: 42269-0-0 | Y115: 大阪府立泉大津 | AA115: 118800 | AC115: 42269 | AD115: 0 | AE115: 大阪府立泉大津 | AF115: 0 | AH115: 118800
J116: 東朋高等専修 | K116: 東朋高等専修 | L116: 86509-0-1 | M116: 私立専修学校 | N116: 総合教育学科 | O116: 576000 | P116: 576000 | Q116: 0 | R116: 〇 | S116: 115 | T116: 指定 | U116: 大 阪 | X116: 42270-0-0 | Y116: 大阪府立和泉 | AA116: 118800 | AC116: 42270 | AD116: 0 | AE116: 大阪府立和泉 | AF116: 0 | AH116: 118800
J117: 東洋学園高等専修 | K117: 東洋学園高等専修 | L117: 86515-0-0 | M117: 私立専修学校 | O117: 405000 | P117: 405000 | Q117: 0 | R117: 〇 | S117: 116 | T117: 指定 | U117: 大 阪 | X117: 42271-0-0 | Y117: 大阪府立岸和田 | AA117: 118800 | AC117: 42271 | AD117: 0 | AE117: 大阪府立岸和田 | AF117: 0 | AH117: 118800
J118: 浪速 | K118: 浪速 | L118: 47033-0-0 | M118: 私立高校 | O118: 628000 | P118: 628000 | Q118: 0 | R118: 〇 | S118: 117 | T118: 指定 | U118: 大 阪 | X118: 42272-0-0 | Y118: 大阪府立久米田 | AA118: 118800 | AC118: 42272 | AD118: 0 | AE118: 大阪府立久米田 | AF118: 0 | AH118: 118800
J119: 梅花 | K119: 梅花 | L119: 47042-0-0 | M119: 私立高校 | O119: 594000 | P119: 594000 | Q119: 0 | R119: 〇 | S119: 118 | T119: 指定 | U119: 大 阪 | X119: 42273-0-0 | Y119: 大阪府立貝塚 | AA119: 118800 | AC119: 42273 | AD119: 0 | AE119: 大阪府立貝塚 | AF119: 0 | AH119: 118800
J120: 羽衣学園 | K120: 羽衣学園 | L120: 47084-0-0 | M120: 私立高校 | O120: 550000 | P120: 550000 | Q120: 0 | R120: 〇 | S120: 119 | T120: 指定 | U120: 大 阪 | X120: 42274-0-0 | Y120: 大阪府立貝塚南 | AA120: 118800 | AC120: 42274 | AD120: 0 | AE120: 大阪府立貝塚南 | AF120: 0 | AH120: 118800
J121: 初芝富田林 | K121: 初芝富田林 | L121: 47094-0-0 | M121: 私立高校 | O121: 630000 | P121: 630000 | Q121: 0 | R121: 〇 | S121: 120 | T121: 指定 | U121: 大 阪 | X121: 42275-0-0 | Y121: 大阪府立佐野 | AA121: 118800 | AC121: 42275 | AD121: 0 | AE121: 大阪府立佐野 | AF121: 0 | AH121: 118800
J122: 初芝立命館 | K122: 初芝立命館 | L122: 47080-0-1 | M122: 私立高校 | N122: 普通科（立命館コース） | O122: 650000 | P122: 650000 | Q122: 0 | R122: 〇 | S122: 121 | T122: 指定 | U122: 大 阪 | X122: 42275-2-0 | Y122: 大阪府立日根野 | AA122: 118800 | AC122: 42275 | AD122: 2 | AE122: 大阪府立日根野 | AF122: 0 | AH122: 118800
J123: 初芝立命館 | K123: 初芝立命館 | L123: 47080-0-3 | M123: 私立高校 | N123: 体育科 | O123: 630000 | P123: 630000 | Q123: 0 | R123: 〇 | S123: 122 | T123: 指定 | U123: 大 阪 | X123: 42277-0-0 | Y123: 大阪府立泉鳥取 | AA123: 118800 | AC123: 42277 | AD123: 0 | AE123: 大阪府立泉鳥取 | AF123: 0 | AH123: 118800
J124: 初芝立命館 | K124: 初芝立命館 | L124: 47080-0-4 | M124: 私立高校 | N124: 普通科 | O124: 630000 | P124: 630000 | Q124: 0 | R124: 〇 | S124: 123 | T124: 指定 | U124: 大 阪 | X124: 42278-0-0 | Y124: 大阪府立堺西 | AA124: 118800 | AC124: 42278 | AD124: 0 | AE124: 大阪府立堺西 | AF124: 0 | AH124: 118800
J125: 阪南大学 | K125: 阪南大学 | L125: 47075-0-0 | M125: 私立高校 | O125: 600000 | P125: 600000 | Q125: 0 | R125: 〇 | S125: 124 | T125: 指定 | U125: 大 阪 | X125: 42283-0-0 | Y125: 大阪府立岬 | AA125: 118800 | AC125: 42283 | AD125: 0 | AE125: 大阪府立岬 | AF125: 0 | AH125: 118800
J126: ＰＬ学園 | K126: ＰＬ学園 | L126: 47077-0-0 | M126: 私立高校 | O126: 504000 | P126: 504000 | Q126: 0 | R126: 〇 | S126: 125 | T126: 指定 | U126: 大 阪 | X126: 42284-0-0 | Y126: 大阪府立芥川 | AA126: 118800 | AC126: 42284 | AD126: 0 | AE126: 大阪府立芥川 | AF126: 0 | AH126: 118800
J127: 東大阪大学柏原 | K127: 東大阪大学柏原 | L127: 47074-0-0 | M127: 私立高校 | O127: 600000 | P127: 600000 | Q127: 0 | R127: 〇 | S127: 126 | T127: 指定 | U127: 大 阪 | X127: 42286-0-0 | Y127: 大阪府立香里丘 | AA127: 118800 | AC127: 42286 | AD127: 0 | AE127: 大阪府立香里丘 | AF127: 0 | AH127: 118800
J128: 東大阪大学敬愛 | K128: 東大阪大学敬愛 | L128: 47070-0-0 | M128: 私立高校 | O128: 600000 | P128: 600000 | Q128: 0 | R128: 〇 | S128: 127 | T128: 指定 | U128: 大 阪 | X128: 42287-0-0 | Y128: 大阪府立西寝屋川 | AA128: 118800 | AC128: 42287 | AD128: 0 | AE128: 大阪府立西寝屋川 | AF128: 0 | AH128: 118800
J129: 東大谷 | K129: 東大谷 | L129: 47030-0-0 | M129: 私立高校 | O129: 612000 | P129: 612000 | Q129: =P129-O129 -> 0 | R129: 〇 | S129: 128 | T129: 指定 | U129: 大 阪 | X129: 42290-0-0 | Y129: 大阪府立金剛 | AA129: 118800 | AC129: 42290 | AD129: 0 | AE129: 大阪府立金剛 | AF129: 0 | AH129: 118800
J130: ヴェリタス城星学園 | K130: =VLOOKUP(L130,$X$2:$AA$1419,2,FALSE) -> ヴェリタス城星学園 | L130: 47006-0-0 | M130: 私立高校 | O130: 570000 | P130: =VLOOKUP(L130,$X$2:$AA$1419,4,FALSE) -> 570000 | Q130: 0 | R130: 〇 | S130: 129 | T130: 指定 | U130: 大 阪 | X130: 42291-0-0 | Y130: 大阪府立狭山 | AA130: 118800 | AC130: 42291 | AD130: 0 | AE130: 大阪府立狭山 | AF130: 0 | AH130: 118800
J131: プール学院 | K131: プール学院 | L131: 47021-0-0 | M131: 私立高校 | O131: 570000 | P131: 570000 | Q131: 0 | R131: 〇 | S131: 130 | T131: 指定 | U131: 大 阪 | V131: =IF($A$2="","",IF(ISNUMBER(FIND($A$2,J131)),ROW(A130),"")) ->  | X131: =AC131&"-"&AD131&"-"&AF131 -> 42295-0-0 | Y131: =AE131 -> 大阪府立阿武野 | AA131: 118800 | AC131: 42295 | AD131: 0 | AE131: 大阪府立阿武野 | AF131: 0 | AH131: 118800
J132: 箕面学園 | K132: 箕面学園 | L132: 47045-0-0 | M132: 私立高校 | O132: 600000 | P132: 600000 | Q132: 0 | R132: 〇 | S132: 131 | T132: 指定 | U132: 大 阪 | X132: 42296-0-0 | Y132: 大阪府立守口東 | Z132: =AG132 ->  | AA132: 118800 | AC132: 42296 | AD132: 0 | AE132: 大阪府立守口東 | AF132: 0 | AH132: 118800
J133: 箕面自由学園 | K133: 箕面自由学園 | L133: 47043-0-0 | M133: 私立高校 | O133: 564000 | P133: 564000 | Q133: 0 | R133: 〇 | S133: 132 | T133: 指定 | U133: 大 阪 | X133: 42299-0-0 | Y133: 大阪府立八尾北 | AA133: 118800 | AC133: 42299 | AD133: 0 | AE133: 大阪府立八尾北 | AF133: 0 | AH133: 118800
J134: 明浄学院 | K134: 明浄学院 | L134: 47032-0-0 | M134: 私立高校 | N134: 全コース共通 | O134: 600000 | P134: 600000 | Q134: 0 | R134: 〇 | S134: 133 | T134: 指定 | U134: 大 阪 | X134: 42300-0-0 | Y134: 大阪府立大塚 | AA134: 118800 | AC134: 42300 | AD134: 0 | AE134: 大阪府立大塚 | AF134: 0 | AH134: 118800
J135: 明星 | K135: 明星 | L135: 47007-0-0 | M135: 私立高校 | O135: 648000 | P135: 648000 | Q135: 0 | R135: 〇 | S135: 134 | T135: 指定 | U135: 大 阪 | X135: 42301-0-0 | Y135: 大阪府立福泉 | AA135: 118800 | AC135: 42301 | AD135: 0 | AE135: 大阪府立福泉 | AF135: 0 | AH135: 118800
J136: 桃山学院 | K136: 桃山学院 | L136: 47027-0-0 | M136: 私立高校 | N136: 全コース共通 | O136: 620000 | P136: 620000 | Q136: 0 | R136: 〇 | S136: 135 | T136: 指定 | U136: 大 阪 | X136: 42302-0-0 | Y136: 大阪府立信太 | AA136: 118800 | AC136: 42302 | AD136: 0 | AE136: 大阪府立信太 | AF136: 0 | AH136: 118800
J137: 桃山学院 | K137: 桃山学院 | L137: 47027-0-2 | M137: 私立高校 | N137: 中高一貫 | O137: 620000 | P137: 620000 | Q137: 0 | R137: 〇 | S137: 136 | T137: 指定 | U137: 大 阪 | X137: 42305-0-0 | Y137: 大阪府立山田 | AA137: 118800 | AC137: 42305 | AD137: 0 | AE137: 大阪府立山田 | AF137: 0 | AH137: 118800
J138: 八洲学園高等専修 | K138: 八洲学園高等専修 | L138: 87009-0-0 | M138: 私立専修学校 | O138: 480000 | P138: 480000 | Q138: 0 | R138: 〇 | S138: 137 | T138: 指定 | U138: 大 阪 | X138: 42307-0-0 | Y138: 大阪府立堺上 | AA138: 118800 | AC138: 42307 | AD138: 0 | AE138: 大阪府立堺上 | AF138: 0 | AH138: 118800
J139: 履正社 | K139: 履正社 | L139: 47041-0-0 | M139: 私立高校 | O139: 560000 | P139: 560000 | Q139: 0 | R139: 〇 | S139: 138 | T139: 指定 | U139: 大 阪 | X139: 42308-0-0 | Y139: 大阪府立福井 | AA139: 118800 | AC139: 42308 | AD139: 0 | AE139: 大阪府立福井 | AF139: 0 | AH139: 118800
J140: 早稲田摂陵 | K140: 早稲田摂陵 | L140: 47054-0-0 | M140: 私立高校 | O140: 600000 | P140: 600000 | Q140: 0 | R140: 〇 | S140: 139 | T140: 指定 | U140: 大 阪 | X140: 42309-0-0 | Y140: 大阪府立門真なみはや | AA140: 118800 | AC140: 42309 | AD140: 0 | AE140: 大阪府立門真なみはや | AF140: 0 | AH140: 118800
J141: 早稲田摂陵 | K141: 早稲田摂陵 | L141: 47054-0-1 | M141: 私立高校 | N141: 吹奏楽コース | O141: 520000 | P141: 520000 | Q141: 0 | R141: 〇 | S141: 140 | T141: 指定 | U141: 大 阪 | X141: 42310-0-0 | Y141: 大阪府立枚岡樟風 | AA141: 118800 | AC141: 42310 | AD141: 0 | AE141: 大阪府立枚岡樟風 | AF141: 0 | AH141: 118800
J142: 大阪学芸 | K142: 大阪学芸 | L142: 47034-2-0 | M142: 私立高校 | N142: ダブル・ディプロマコース | O142: 838000 | P142: 838000 | Q142: 0 | R142: 〇 | S142: 141 | T142: 未指定 | U142: 大 阪 | X142: 42311-0-0 | Y142: 大阪府立八尾翠翔 | AA142: 118800 | AC142: 42311 | AD142: 0 | AE142: 大阪府立八尾翠翔 | AF142: 0 | AH142: 118800
J143: 大阪スクールオブミュージック高等専修 | K143: 大阪スクールオブミュージック | L143: 88524-0-0 | M143: 私立専修学校 | N143: （※２年次から授業料増） | O143: 400000 | P143: 400000 | Q143: 0 | R143: 〇 | S143: 142 | T143: 未指定 | U143: 大 阪 | X143: 42312-0-0 | Y143: 大阪府立芦間 | AA143: 118800 | AC143: 42312 | AD143: 0 | AE143: 大阪府立芦間 | AF143: 0 | AH143: 118800
J144: 関西学院千里国際高等部 | K144: 関西学院千里国際高等部 | L144: 47098-0-0 | M144: 私立高校 | O144: 1070000 | P144: 1070000 | Q144: 0 | R144: 〇 | S144: 143 | T144: 未指定 | U144: 大 阪 | X144: 42314-0-0 | Y144: 大阪府立成美 | AA144: 118800 | AC144: 42314 | AD144: 0 | AE144: 大阪府立成美 | AF144: 0 | AH144: 118800
J145: 大阪朝鮮高級学校 | K145: 大阪朝鮮高級 | L145: 89001-0-0 | M145: 私立各種学校 | O145: 312000 | P145: 312000 | Q145: 0 | R145: 〇 | S145: 144 | T145: 朝鮮高級 | U145: 大 阪 | X145: 42315-0-0 | Y145: 大阪府立槻の木 | AA145: 118800 | AC145: 42315 | AD145: 0 | AE145: 大阪府立槻の木 | AF145: 0 | AH145: 118800
J146: 英風 | K146: 英風 | L146: 47113-0-0 | M146: 私立高校 | N146: 通信制 | O146: 通信制シートへ⇒ | P146: 300000 | S146: 145 | U146: 大 阪 | X146: 42316-0-0 | Y146: 大阪府立港南造形 | AA146: 118800 | AC146: 42316 | AD146: 0 | AE146: 大阪府立港南造形 | AF146: 0 | AH146: 118800
J147: 大阪つくば開成 | K147: 大阪つくば開成 | L147: 47111-0-0 | M147: 私立高校 | N147: 通信制 | O147: 通信制シートへ⇒ | P147: 300000 | S147: 146 | U147: 大 阪 | X147: 42317-0-0 | Y147: 大阪府立枚方なぎさ | AA147: 118800 | AC147: 42317 | AD147: 0 | AE147: 大阪府立枚方なぎさ | AF147: 0 | AH147: 118800
J148: 科学技術学園 （大阪分室） | K148: 科学技術学園 | L148: 47096-0-0 | M148: 私立高校 | N148: 通信制 | O148: 通信制シートへ⇒ | P148: 225000 | S148: 147 | U148: 東 京 | X148: 42318-0-0 | Y148: 大阪府立かわち野 | AA148: 118800 | AC148: 42318 | AD148: 0 | AE148: 大阪府立かわち野 | AF148: 0 | AH148: 118800
J149: 近畿大阪 | K149: 近畿大阪 | L149: 47114-0-0 | M149: 私立高校 | N149: 通信制 | O149: 通信制シートへ⇒ | P149: 175000 | S149: 148 | U149: 大 阪 | X149: 42319-0-0 | Y149: 大阪府立緑風冠 | AA149: 118800 | AC149: 42319 | AD149: 0 | AE149: 大阪府立緑風冠 | AF149: 0 | AH149: 118800
J150: クラーク記念国際（クラークスマート大阪梅田） | K150: クラーク記念国際クラークスマート大阪梅田校 | L150: 47874-1-1 | M150: 私立高校 | N150: 通信制 | O150: 通信制シートへ⇒ | P150: 200000 | S150: 149 | U150: 北海道 | X150: 42320-0-0 | Y150: 大阪府立千里青雲 | AA150: 118800 | AC150: 42320 | AD150: 0 | AE150: 大阪府立千里青雲 | AF150: 0 | AH150: 118800
J151: クラーク記念国際（クラークスマート大阪梅田） | K151: クラーク記念国際クラークスマート大阪梅田校 | L151: 47874-1-2 | M151: 私立高校 | N151: 通信制 | O151: 通信制シートへ⇒ | P151: 400000 | S151: 150 | U151: 北海道 | X151: 42321-0-0 | Y151: 大阪府立北摂つばさ | AA151: 118800 | AC151: 42321 | AD151: 0 | AE151: 大阪府立北摂つばさ | AF151: 0 | AH151: 118800
J152: クラーク記念国際（クラークスマート大阪梅田） | K152: クラーク記念国際クラークスマート大阪梅田校 | L152: 47874-1-3 | M152: 私立高校 | N152: 通信制 | O152: 通信制シートへ⇒ | P152: 400000 | S152: 151 | U152: 北海道 | X152: 42322-0-0 | Y152: 大阪府立北かわち皐が丘 | AA152: 118800 | AC152: 42322 | AD152: 0 | AE152: 大阪府立北かわち皐が丘 | AF152: 0 | AH152: 118800
J153: クラーク記念国際（クラークスマート大阪天王寺） | K153: クラーク記念国際 クラークスマート大阪天王寺校 | L153: 47874-0-2 | M153: 私立高校 | N153: 通信制 | O153: 通信制シートへ⇒ | P153: 200000 | S153: 152 | U153: 北海道 | X153: 42323-0-0 | Y153: 大阪府立みどり清朋 | AA153: 118800 | AC153: 42323 | AD153: 0 | AE153: 大阪府立みどり清朋 | AF153: 0 | AH153: 118800
J154: クラーク記念国際（クラークスマート大阪天王寺） | K154: クラーク記念国際 クラークスマート大阪天王寺校 | L154: 47874-0-3 | M154: 私立高校 | N154: 通信制 | O154: 通信制シートへ⇒ | P154: 400000 | S154: 153 | U154: 北海道 | X154: 42324-0-0 | Y154: 大阪府立りんくう翔南 | AA154: 118800 | AC154: 42324 | AD154: 0 | AE154: 大阪府立りんくう翔南 | AF154: 0 | AH154: 118800
J155: 賢明学院 | K155: 賢明学院（通信制） | L155: 47082-1-0 | M155: 私立高校 | N155: 通信制 | O155: 通信制シートへ⇒ | P155: 250000 | S155: 154 | U155: 大 阪 | X155: 42325-0-0 | Y155: 大阪府立懐風館 | AA155: 118800 | AC155: 42325 | AD155: 0 | AE155: 大阪府立懐風館 | AF155: 0 | AH155: 118800
J156: 神須学園 | K156: 神須学園 | L156: 47108-0-0 | M156: 私立高校 | N156: 通信制 | O156: 通信制シートへ⇒ | P156: 300000 | S156: 155 | U156: 大 阪 | X156: 42601-0-0 | Y156: 大阪府立園芸 | AA156: 118800 | AC156: 42601 | AD156: 0 | AE156: 大阪府立園芸 | AF156: 0 | AH156: 118800
J157: 向陽台 | K157: 向陽台 | L157: 47055-0-0 | M157: 私立高校 | N157: 通信制 | O157: 通信制シートへ⇒ | P157: 297000 | S157: 156 | U157: 大 阪 | X157: 42602-0-0 | Y157: 大阪府立農芸 | AA157: 118800 | AC157: 42602 | AD157: 0 | AE157: 大阪府立農芸 | AF157: 0 | AH157: 118800
J158: 向陽台 （技能連携） | K158: 向陽台 | L158: 47055-0-2 | M158: 私立高校 | N158: 通信制 | O158: 通信制シートへ⇒ | P158: 264000 | S158: 157 | U158: 大 阪 | X158: 42653-0-0 | Y158: 大阪府立桃谷 | Z158: 通信制 | AA158: 118800 | AC158: 42653 | AD158: 0 | AE158: 大阪府立桃谷 | AF158: 0 | AG158: 通信制 | AH158: 118800
J159: 秋桜 | K159: 秋桜 | L159: 47104-0-0 | M159: 私立高校 | N159: 通信制 | O159: 通信制シートへ⇒ | P159: 300000 | S159: 158 | U159: 大 阪 | X159: 42653-0-1 | Y159: 大阪府立桃谷 | AA159: 118800 | AC159: 42653 | AD159: 0 | AE159: 大阪府立桃谷 | AF159: 1 | AH159: 118800
J160: 星槎国際 （大阪学習センター） | K160: 星槎国際 | L160: 47101-0-0 | M160: 私立高校 | N160: 通信制 | O160: 通信制シートへ⇒ | P160: 375000 | S160: 159 | U160: 北海道 | X160: 42653-2-0 | Y160: 大阪府立桃谷 | Z160: クリエイティブ | AA160: 118800 | AC160: 42653 | AD160: 2 | AE160: 大阪府立桃谷 | AF160: 0 | AG160: クリエイティブ | AH160: 118800
J161: 天王寺学館 | K161: 天王寺学館 | L161: 47102-0-0 | M161: 私立高校 | N161: 通信制 | O161: 通信制シートへ⇒ | P161: 272000 | S161: 160 | U161: 大 阪 | X161: 42653-2-1 | Y161: 大阪府立桃谷 | Z161: クリエイティブ | AA161: 118800 | AC161: 42653 | AD161: 2 | AE161: 大阪府立桃谷 | AF161: 1 | AG161: クリエイティブ | AH161: 118800
J162: 東朋学園 | K162: 東朋学園 | L162: 47112-0-0 | M162: 私立高校 | N162: 通信制 | O162: 通信制シートへ⇒ | P162: 250000 | S162: 161 | U162: 大 阪 | X162: 42653-2-2 | Y162: 大阪府立桃谷 | Z162: クリエイティブ | AA162: 118800 | AC162: 42653 | AD162: 2 | AE162: 大阪府立桃谷 | AF162: 2 | AG162: クリエイティブ | AH162: 118800
J163: 長尾谷 | K163: 長尾谷 | L163: 47100-0-0 | M163: 私立高校 | N163: 通信制 | O163: 通信制シートへ⇒ | P163: 225000 | S163: 162 | U163: 大 阪 | X163: 42653-3-0 | Y163: 大阪府立桃谷 | Z163: Ⅲ部他部併５単位以下 | AA163: 32400 | AC163: 42653 | AD163: 3 | AE163: 大阪府立桃谷 | AF163: 0 | AG163: Ⅲ部他部併５単位以下 | AH163: 32400
J164: 八洲学園 | K164: 八洲学園 | L164: 47099-0-0 | M164: 私立高校 | N164: 通信制 | O164: 通信制シートへ⇒ | P164: 250000 | S164: 163 | U164: 大 阪 | X164: 42653-3-31 | Y164: 大阪府立桃谷 | Z164: Ⅲ部他部１０単位以上 | AA164: 32400 | AC164: 42653 | AD164: 3 | AE164: 大阪府立桃谷 | AF164: 31 | AG164: Ⅲ部他部１０単位以上 | AH164: 32400
J165: 八洲学園 （技能連携） | K165: 八洲学園（技能連携） | L165: 47099-0-1 | M165: 私立高校 | N165: 通信制 | O165: 通信制シートへ⇒ | P165: 85000 | S165: 164 | U165: 大 阪 | X165: 42653-3-32 | Y165: 大阪府立桃谷 | Z165: Ⅲ部他部６～９単位 | AA165: 32400 | AC165: 42653 | AD165: 3 | AE165: 大阪府立桃谷 | AF165: 32 | AG165: Ⅲ部他部６～９単位 | AH165: 32400
J166: ルネサンス大阪 | K166: ルネサンス大阪 | L166: 47107-0-0 | M166: 私立高校 | N166: 通信制 | O166: 通信制シートへ⇒ | P166: 260000 | S166: 165 | U166: 大 阪 | X166: 42653-3-33 | Y166: 大阪府立桃谷 | Z166: 定時制 | AA166: 32400 | AC166: 42653 | AD166: 3 | AE166: 大阪府立桃谷 | AF166: 33 | AG166: 定時制 | AH166: 32400
J167: ＹＭＣＡ学院 | K167: ＹＭＣＡ学院 | L167: 47103-0-0 | M167: 私立高校 | N167: 通信制 | O167: 通信制シートへ⇒ | P167: 250000 | S167: 166 | U167: 大 阪 | X167: 42654-0-0 | Y167: 大阪府立大阪わかば | Z167: 多部制単位制 Ⅰ・Ⅱ部 | AA167: 0 | AC167: 42654 | AD167: 0 | AE167: 大阪府立大阪わかば | AF167: 0 | AG167: 多部制単位制 Ⅰ・Ⅱ部 | AH167: 0
J168: 愛知啓成 | K168: 愛知啓成 | L168: 47968-0-0 | M168: 私立高校 | O168: 409200 | P168: 409200 | Q168: 0 | R168: 〇 | S168: 167 | T168: 大阪府外 | U168: 愛 知 | X168: 42701-2-0 | Y168: 大阪府立西野田工科 | AA168: 118800 | AC168: 42701 | AD168: 2 | AE168: 大阪府立西野田工科 | AF168: 0 | AH168: 118800
J169: 会津北嶺 | K169: 会津北嶺 | L169: 48184-0-0 | M169: 私立高校 | O169: 336600 | P169: 336600 | Q169: 0 | R169: 〇 | S169: 168 | T169: 大阪府外 | U169: 福 島 | X169: 42701-3-0 | Y169: 大阪府立西野田工科 | AA169: 32400 | AC169: 42701 | AD169: 3 | AE169: 大阪府立西野田工科 | AF169: 0 | AH169: 32400
J170: 青森山田 | K170: 青森山田 | L170: 47901-0-0 | M170: 私立高校 | O170: 506400 | P170: 506400 | Q170: 0 | R170: 〇 | S170: 169 | T170: 大阪府外 | U170: 青 森 | X170: 42702-2-0 | Y170: 大阪府立淀川工科 | AA170: 118800 | AC170: 42702 | AD170: 2 | AE170: 大阪府立淀川工科 | AF170: 0 | AH170: 118800
J171: 青山 | K171: 青山 | L171: 47302-0-0 | M171: 私立高校 | O171: 396000 | P171: 396000 | Q171: 0 | R171: 〇 | S171: 170 | T171: 大阪府外 | U171: 三 重 | X171: 42703-2-0 | Y171: 大阪府立成城 | Z171: 0 | AA171: 118800 | AC171: 42703 | AD171: 2 | AE171: 大阪府立成城 | AF171: 0 | AH171: 118800
J172: 芦屋学園 | K172: 芦屋学園 | L172: 47509-0-0 | M172: 私立高校 | O172: 432000 | P172: 0 | Q172: -432000 | S172: 171 | T172: 大阪府外 | U172: 兵 庫 | X172: 42703-2-1 | Y172: 大阪府立成城 | Z172: クリエイティブ（３年生のみ） | AA172: 118800 | AC172: 42703 | AD172: 2 | AE172: 大阪府立成城 | AF172: 1 | AG172: クリエイティブ（３年生のみ） | AH172: 118800
J173: 綾羽 （全日制） | K173: 綾羽 | L173: 47833-0-1 | M173: 私立高校 | N173: 普通コース | O173: 400000 | P173: 400000 | Q173: 0 | R173: 〇 | S173: 172 | T173: 大阪府外 | U173: 滋 賀 | X173: 42703-2-2 | Y173: 大阪府立成城 | Z173: クリエイティブ | AA173: 118800 | AC173: 42703 | AD173: 2 | AE173: 大阪府立成城 | AF173: 2 | AG173: クリエイティブ | AH173: 118800
J174: 綾羽 （全日制） | K174: 綾羽 | L174: 47833-0-9 | M174: 私立高校 | N174: 情報コース | O174: 400000 | P174: 400000 | Q174: 0 | R174: 〇 | S174: 173 | T174: 大阪府外 | U174: 滋 賀 | X174: 42703-2-11 | Y174: 大阪府立成城 | AA174: 118800 | AC174: 42703 | AD174: 2 | AE174: 大阪府立成城 | AF174: 11 | AH174: 118800
J175: 綾羽 （全日制） | K175: 綾羽 | L175: 47833-0-10 | M175: 私立高校 | N175: 製菓コース | O175: 400000 | P175: 400000 | Q175: 0 | R175: 〇 | S175: 174 | T175: 大阪府外 | U175: 滋 賀 | X175: 42703-2-12 | Y175: 大阪府立成城 | AA175: 118800 | AC175: 42703 | AD175: 2 | AE175: 大阪府立成城 | AF175: 12 | AH175: 118800
J176: 綾羽 （定時制） | K176: 綾羽 | L176: 47833-0-3 | M176: 私立高校 | N176: 普通科 普通コース | O176: 311000 | P176: 311000 | Q176: 0 | R176: 〇 | S176: 175 | T176: 大阪府外 | U176: 滋 賀 | X176: 42703-2-13 | Y176: 大阪府立成城 | Z176: 0 | AA176: 118800 | AC176: 42703 | AD176: 2 | AE176: 大阪府立成城 | AF176: 13 | AH176: 118800
J177: 綾羽 （定時制） | K177: 綾羽 | L177: 47833-0-11 | M177: 私立高校 | N177: 普通科 美容コース | O177: 311000 | P177: 311000 | Q177: 0 | R177: 〇 | S177: 176 | T177: 大阪府外 | U177: 滋 賀 | X177: 42703-3-0 | Y177: 大阪府立成城 | Z177: 定時制 | AA177: 32400 | AC177: 42703 | AD177: 3 | AE177: 大阪府立成城 | AF177: 0 | AG177: 定時制 | AH177: 32400
J178: 綾羽 （定時制） | K178: 綾羽 | L178: 47833-0-4 | M178: 私立高校 | N178: 食物調理科 | O178: 322000 | P178: 322000 | Q178: 0 | R178: 〇 | S178: 177 | T178: 大阪府外 | U178: 滋 賀 | X178: 42704-2-0 | Y178: 大阪府立東住吉総合 | Z178: 0 | AA178: 118800 | AC178: 42704 | AD178: 2 | AE178: 大阪府立東住吉総合 | AF178: 0 | AH178: 118800
J179: 飯塚 | K179: 飯塚 | L179: 47920-0-0 | M179: 私立高校 | O179: 397200 | P179: 397200 | Q179: 0 | R179: 〇 | S179: 178 | T179: 大阪府外 | U179: 福 岡 | X179: 42704-2-1 | Y179: 大阪府立東住吉総合 | Z179: クリエイティブ | AA179: 118800 | AC179: 42704 | AD179: 2 | AE179: 大阪府立東住吉総合 | AF179: 1 | AG179: クリエイティブ | AH179: 118800
J180: 育英 | K180: 育英 | L180: 47532-0-0 | M180: 私立高校 | O180: 408000 | P180: 408000 | Q180: 0 | R180: 〇 | S180: 179 | T180: 大阪府外 | U180: 兵 庫 | X180: 42704-2-2 | Y180: 大阪府立東住吉総合 | Z180: クリエイティブ | AA180: 118800 | AC180: 42704 | AD180: 2 | AE180: 大阪府立東住吉総合 | AF180: 2 | AG180: クリエイティブ | AH180: 118800
J181: 育英西 | K181: 育英西 | L181: 47614-0-1 | M181: 私立高校 | N181: 標準・特設コース | O181: 636000 | P181: 636000 | Q181: 0 | R181: 〇 | S181: 180 | T181: 大阪府外 | U181: 奈 良 | X181: 42704-2-11 | Y181: 大阪府立東住吉総合 | AA181: 118800 | AC181: 42704 | AD181: 2 | AE181: 大阪府立東住吉総合 | AF181: 11 | AH181: 118800
J182: 育英西 | K182: 育英西 | L182: 47614-0-2 | M182: 私立高校 | N182: 立命館コース | O182: 726000 | P182: 726000 | Q182: 0 | R182: 〇 | S182: 181 | T182: 大阪府外 | U182: 奈 良 | X182: 42704-2-12 | Y182: 大阪府立東住吉総合 | AA182: 118800 | AC182: 42704 | AD182: 2 | AE182: 大阪府立東住吉総合 | AF182: 12 | AH182: 118800
J183: 育成調理師専門 | K183: 育成調理師 | L183: 89208-0-0 | M183: 私立専修学校 | O183: 425000 | P183: 425000 | Q183: 0 | R183: 〇 | S183: 182 | T183: 大阪府外 | U183: 兵 庫 | X183: 42704-2-13 | Y183: 大阪府立東住吉総合 | AA183: 118800 | AC183: 42704 | AD183: 2 | AE183: 大阪府立東住吉総合 | AF183: 13 | AH183: 118800
J184: 生野学園 | K184: 生野学園 | L184: 47520-0-0 | M184: 私立高校 | O184: 540000 | P184: 540000 | Q184: 0 | R184: 〇 | S184: 183 | T184: 大阪府外 | U184: 兵 庫 | X184: 42705-2-0 | Y184: 大阪府立今宮工科 | AA184: 118800 | AC184: 42705 | AD184: 2 | AE184: 大阪府立今宮工科 | AF184: 0 | AH184: 118800
J185: 出水中央 | K185: 出水中央 | L185: 48188-0-0 | M185: 私立高校 | O185: 480000 | P185: 480000 | Q185: =P185-O185 -> 0 | R185: 〇 | S185: 184 | T185: 大阪府外 | U185: 鹿児島 | X185: 42705-3-0 | Y185: 大阪府立今宮工科 | AA185: 32400 | AC185: 42705 | AD185: 3 | AE185: 大阪府立今宮工科 | AF185: 0 | AH185: 32400
J186: 磐田東 | K186: 磐田東 | L186: 48173-0-0 | M186: 私立高校 | O186: 420000 | P186: 420000 | Q186: 0 | R186: 〇 | S186: 185 | T186: 大阪府外 | U186: 静 岡 | X186: 42706-2-0 | Y186: 大阪府立茨木工科 | AA186: 118800 | AC186: 42706 | AD186: 2 | AE186: 大阪府立茨木工科 | AF186: 0 | AH186: 118800
J187: 石見智翠館 | K187: 石見智翠館 | L187: 47804-0-0 | M187: 私立高校 | O187: 402000 | P187: 402000 | Q187: 0 | R187: 〇 | S187: 186 | T187: 大阪府外 | U187: 島 根 | X187: 42706-3-0 | Y187: 大阪府立茨木工科 | AA187: 32400 | AC187: 42706 | AD187: 3 | AE187: 大阪府立茨木工科 | AF187: 0 | AH187: 32400
J188: 英明 | K188: 英明 | L188: 48012-0-1 | M188: 私立高校 | N188: 特別進学 | O188: 396000 | P188: 0 | Q188: -396000 | S188: 187 | T188: 大阪府外 | U188: 香 川 | X188: 42707-2-0 | Y188: 大阪府立城東工科 | AA188: 118800 | AC188: 42707 | AD188: 2 | AE188: 大阪府立城東工科 | AF188: 0 | AH188: 118800
J189: 英明 | K189: 英明 | L189: 48012-0-2 | M189: 私立高校 | N189: 進学 | O189: 388800 | P189: 0 | Q189: -388800 | S189: 188 | T189: 大阪府外 | U189: 香 川 | X189: 42708-2-0 | Y189: 大阪府立布施工科 | AA189: 118800 | AC189: 42708 | AD189: 2 | AE189: 大阪府立布施工科 | AF189: 0 | AH189: 118800
J190: 英明 | K190: 英明 | L190: 48012-0-3 | M190: 私立高校 | N190: 情報 | O190: 388800 | P190: 0 | Q190: -388800 | S190: 189 | T190: 大阪府外 | U190: 香 川 | X190: 42709-2-0 | Y190: 大阪府立藤井寺工科 | AA190: 118800 | AC190: 42709 | AD190: 2 | AE190: 大阪府立藤井寺工科 | AF190: 0 | AH190: 118800
J191: 英明 | K191: 英明 | L191: 48012-0-4 | M191: 私立高校 | N191: 総合 | O191: 386400 | P191: 0 | Q191: -386400 | S191: 190 | T191: 大阪府外 | U191: 香 川 | X191: 42709-3-0 | Y191: 大阪府立藤井寺工科 | AA191: 32400 | AC191: 42709 | AD191: 3 | AE191: 大阪府立藤井寺工科 | AF191: 0 | AH191: 32400
J192: 近江 | K192: 近江 | L192: 47809-0-0 | M192: 私立高校 | O192: 396000 | P192: 396000 | Q192: 0 | R192: 〇 | S192: 191 | T192: 大阪府外 | U192: 滋 賀 | X192: 42710-2-0 | Y192: 大阪府立堺工科 | AA192: 118800 | AC192: 42710 | AD192: 2 | AE192: 大阪府立堺工科 | AF192: 0 | AH192: 118800
J193: 大谷 | K193: 大谷 | L193: 47416-0-0 | M193: 私立高校 | O193: 552000 | P193: 552000 | Q193: =P193-O193 -> 0 | R193: 〇 | S193: 192 | T193: 大阪府外 | U193: 京 都 | X193: 42710-3-0 | Y193: 大阪府立堺工科 | Z193: 定時制 | AA193: 32400 | AC193: 42710 | AD193: 3 | AE193: 大阪府立堺工科 | AF193: 0 | AG193: 定時制 | AH193: 32400
J194: 大牟田 | K194: 大牟田 | L194: 48109-0-0 | M194: 私立高校 | O194: 396000 | P194: 396000 | Q194: 0 | R194: 〇 | S194: 193 | T194: 大阪府外 | U194: 福 岡 | X194: 42711-2-0 | Y194: 大阪府立和泉総合 | Z194: （１,２年生のみ） | AA194: 118800 | AC194: 42711 | AD194: 2 | AE194: 大阪府立和泉総合 | AF194: 0 | AG194: （１,２年生のみ） | AH194: 118800
J195: 岡山学芸館 | K195: =VLOOKUP(L195,$X$2:$AA$1419,2,FALSE) -> 岡山学芸館 | L195: 47880-0-0 | M195: 私立高校 | O195: 420000 | P195: =VLOOKUP(L195,$X$2:$AA$1419,4,FALSE) -> 420000 | Q195: 0 | R195: 〇 | S195: 194 | T195: 大阪府外 | U195: 岡 山 | V195: =IF($A$2="","",IF(ISNUMBER(FIND($A$2,J195)),ROW(A194),"")) ->  | X195: =AC195&"-"&AD195&"-"&AF195 -> 42711-2-1 | Y195: =AE195 -> 大阪府立和泉総合 | Z195: クリエイティブ（３年生のみ） | AA195: 118800 | AC195: 42711 | AD195: 2 | AE195: 大阪府立和泉総合 | AF195: 1 | AG195: クリエイティブ（３年生のみ） | AH195: 118800
J196: 岡山県共生 | K196: 岡山県共生 | L196: 47891-0-0 | M196: 私立高校 | O196: 396000 | P196: 396000 | Q196: 0 | R196: 〇 | S196: 195 | T196: 大阪府外 | U196: 岡 山 | X196: 42711-2-2 | Y196: 大阪府立和泉総合 | Z196: =AG196 -> クリエイティブ | AA196: 118800 | AC196: 42711 | AD196: 2 | AE196: 大阪府立和泉総合 | AF196: 2 | AG196: クリエイティブ | AH196: 118800
J197: 岡山県作陽 | K197: 作陽学園 | L197: 47806-0-1 | M197: 私立高校 | N197: 普通科 | O197: 396000 | P197: 396000 | Q197: 0 | R197: 〇 | S197: 196 | T197: 大阪府外 | U197: 岡 山 | X197: 42711-2-11 | Y197: 大阪府立和泉総合 | AA197: 118800 | AC197: 42711 | AD197: 2 | AE197: 大阪府立和泉総合 | AF197: 11 | AH197: 118800
J198: 岡山白陵 | K198: 岡山白陵 | L198: 47826-0-0 | M198: 私立高校 | O198: 408000 | P198: 0 | Q198: -408000 | S198: 197 | T198: 大阪府外 | U198: 岡 山 | V198: =IF($A$2="","",IF(ISNUMBER(FIND($A$2,J198)),ROW(A197),"")) ->  | X198: 42711-2-12 | Y198: 大阪府立和泉総合 | AA198: 118800 | AC198: 42711 | AD198: 2 | AE198: 大阪府立和泉総合 | AF198: 12 | AH198: 118800
J199: 岡山理科大学附属 | K199: 岡山理科大学附属 | L199: 47845-0-0 | M199: 私立高校 | O199: 297600 | P199: 297600 | Q199: 0 | R199: 〇 | S199: 198 | T199: 大阪府外 | U199: 岡 山 | X199: 42711-2-13 | Y199: 大阪府立和泉総合 | AA199: 118800 | AC199: 42711 | AD199: 2 | AE199: 大阪府立和泉総合 | AF199: 13 | AH199: 118800
J200: 沖縄尚学 | K200: 沖縄尚学 | L200: 48026-0-0 | M200: 私立高校 | O200: 345000 | P200: 345000 | Q200: 0 | R200: 〇 | S200: 199 | T200: 大阪府外 | U200: 沖 縄 | X200: 42711-3-0 | Y200: 大阪府立和泉総合 | Z200: クリエイティブ | AA200: 32400 | AC200: 42711 | AD200: 3 | AE200: 大阪府立和泉総合 | AF200: 0 | AG200: クリエイティブ | AH200: 32400
... 1166 more rows

Sheet 図形 (hidden)
E2: =IF(OR(全日制!AO98="〇",全日制!AO101="〇",全日制!BV57=1,全日制!BV58=1,全日制!BV59=1),"表示","非表示") -> 非表示
D10: 表示
D15: 非表示

Sheet 図形２ (hidden)
B2: =IF(OR(AND(全日制!$BV$56=1,全日制!$AO$99="〇"),AND(全日制!$BV$56=1,全日制!$AO$100="〇")),"表示","非表示") -> 非表示

Sheet クリア (hidden)
B2: =IF(OR(AND(全日制!$BV$56=1,全日制!$AO$99="〇"),AND(全日制!$BV$56=1,全日制!$AO$100="〇")),"表示３","非表示３") -> 非表示３

Sheet 選択矢印 (hidden)
A1: =IF(全日制!BV55=0,"示さない",IF(全日制!AT53="通信制シートへ⇒","示さない",IF(全日制!D27>=1,"示す","示さない"))) -> 示さない
D3: ↑ひとつだけ選択してください！

Sheet 通信制
BV1: アクティブセル
BR2: ✓ | BS2: 〇
E5: ◎ 用意するもの ・・・ | T5: 進 学 届
AC6: （借入手続き書類 | AL6: B | AN6: 様式第16号）
C12: １．進学する学校を検索し、選択欄に ✓ を入れてください。（表示されない場合は、下の手動入力へ。）
E15: ※ 近年、当会奨学生が進学した実績のある学校内で検索できます。
E18: ★ 進学する学校が表示されない場合は、手動で入力してください。
E20: ・学校名の一部入力で検索できます。 検索結果が多いときは、入力文字を増やしてください。 ・アルファベットは、全角大文字で入力してください。
AQ22: 最新欄に『〇』が表示されている場合は、令和５年度（最新）の情報です。
AQ23: 表示されていない場合は、令和４年度以前の情報です。進学校に問い合わせ
AQ24: するなどして最新の情報をご確認ください。
E25: 学 校 検 索 | AQ25: 随時、最新の情報に更新いたします。
D27: =COUNTA(E31:G42) -> 0 | BH27: ↓
E28: 選択 ↓ | H28: 学 校 名 | AF28: 地 域 | AJ28: 学校区分 | AP28: 年間単位数 | AV28: １単位当たりの授業料 （年額制は年間授業料） | BH28: 最新 | BM28: 学番
H31: ='学校検索（通信制用）'!C2 ->  | AF31: ='学校検索（通信制用）'!B2 ->  | AJ31: ='学校検索（通信制用）'!D2 ->  | AP31: ='学校検索（通信制用）'!E2 ->  | AV31: ='学校検索（通信制用）'!F2 ->  | BH31: ='学校検索（通信制用）'!G2 ->  | BM31: ='学校検索（通信制用）'!H2 -> 
H32: ='学校検索（通信制用）'!C3 ->  | AF32: ='学校検索（通信制用）'!B3 ->  | AJ32: ='学校検索（通信制用）'!D3 ->  | AP32: ='学校検索（通信制用）'!E3 ->  | AV32: ='学校検索（通信制用）'!F3 ->  | BH32: ='学校検索（通信制用）'!G3 ->  | BM32: ='学校検索（通信制用）'!H3 -> 
H33: ='学校検索（通信制用）'!C4 ->  | AF33: ='学校検索（通信制用）'!B4 ->  | AJ33: ='学校検索（通信制用）'!D4 ->  | AP33: ='学校検索（通信制用）'!E4 ->  | AV33: ='学校検索（通信制用）'!F4 ->  | BH33: ='学校検索（通信制用）'!G4 ->  | BM33: ='学校検索（通信制用）'!H4 -> 
H34: ='学校検索（通信制用）'!C5 ->  | AF34: ='学校検索（通信制用）'!B5 ->  | AJ34: ='学校検索（通信制用）'!D5 ->  | AP34: ='学校検索（通信制用）'!E5 ->  | AV34: ='学校検索（通信制用）'!F5 ->  | BH34: ='学校検索（通信制用）'!G5 ->  | BM34: ='学校検索（通信制用）'!H5 -> 
H35: ='学校検索（通信制用）'!C6 ->  | AF35: ='学校検索（通信制用）'!B6 ->  | AJ35: ='学校検索（通信制用）'!D6 ->  | AP35: ='学校検索（通信制用）'!E6 ->  | AV35: ='学校検索（通信制用）'!F6 ->  | BH35: ='学校検索（通信制用）'!G6 ->  | BM35: ='学校検索（通信制用）'!H6 -> 
H36: ='学校検索（通信制用）'!C7 ->  | AF36: ='学校検索（通信制用）'!B7 ->  | AJ36: ='学校検索（通信制用）'!D7 ->  | AP36: ='学校検索（通信制用）'!E7 ->  | AV36: ='学校検索（通信制用）'!F7 ->  | BH36: ='学校検索（通信制用）'!G7 ->  | BM36: ='学校検索（通信制用）'!H7 -> 
H37: ='学校検索（通信制用）'!C8 ->  | AF37: ='学校検索（通信制用）'!B8 ->  | AJ37: ='学校検索（通信制用）'!D8 ->  | AP37: ='学校検索（通信制用）'!E8 ->  | AV37: ='学校検索（通信制用）'!F8 ->  | BH37: ='学校検索（通信制用）'!G8 ->  | BM37: ='学校検索（通信制用）'!H8 -> 
H38: ='学校検索（通信制用）'!C9 ->  | AF38: ='学校検索（通信制用）'!B9 ->  | AJ38: ='学校検索（通信制用）'!D9 ->  | AP38: ='学校検索（通信制用）'!E9 ->  | AV38: ='学校検索（通信制用）'!F9 ->  | BH38: ='学校検索（通信制用）'!G9 ->  | BM38: ='学校検索（通信制用）'!H9 -> 
H39: ='学校検索（通信制用）'!C10 ->  | AF39: ='学校検索（通信制用）'!B10 ->  | AJ39: ='学校検索（通信制用）'!D10 ->  | AP39: ='学校検索（通信制用）'!E10 ->  | AV39: ='学校検索（通信制用）'!F10 ->  | BH39: ='学校検索（通信制用）'!G10 ->  | BM39: ='学校検索（通信制用）'!H10 -> 
H40: ='学校検索（通信制用）'!C11 ->  | AF40: ='学校検索（通信制用）'!B11 ->  | AJ40: ='学校検索（通信制用）'!D11 ->  | AP40: ='学校検索（通信制用）'!E11 ->  | AV40: ='学校検索（通信制用）'!F11 ->  | BH40: ='学校検索（通信制用）'!G11 ->  | BM40: ='学校検索（通信制用）'!H11 ->  | BU40: ✓ | BV40: =VLOOKUP(BU40,$E$31:$BG$42,32,FALSE) -> 
H41: ='学校検索（通信制用）'!C12 ->  | AF41: ='学校検索（通信制用）'!B12 ->  | AJ41: ='学校検索（通信制用）'!D12 ->  | AP41: ='学校検索（通信制用）'!E12 ->  | AV41: ='学校検索（通信制用）'!F12 ->  | BH41: ='学校検索（通信制用）'!G12 ->  | BM41: ='学校検索（通信制用）'!H12 ->  | BU41: =VLOOKUP(BU40,$E$31:$BG$42,38,FALSE) ->  | CA41: =IF(BU41="年額制",1,0) -> 
H42: ='学校検索（通信制用）'!C13 ->  | AF42: ='学校検索（通信制用）'!B13 ->  | AJ42: ='学校検索（通信制用）'!D13 ->  | AP42: ='学校検索（通信制用）'!E13 ->  | AV42: ='学校検索（通信制用）'!F13 ->  | BH42: ='学校検索（通信制用）'!G13 ->  | BM42: ='学校検索（通信制用）'!H13 -> 
E43: ↑ひとつだけ選択してください！
E49: 学 校 区 分
BR50: =SUM(BR51:BR53) -> 0
E51: 大 阪 府 内 校 | M51: 私立高校生等就学支援推進校 (※) に | AG51: 指 定 | AM51: =IF(ISERROR(IF(BV40="指定","〇","")),"",IF(BV40="指定","〇","")) ->  | BM51: 指 定 | BR51: =IF(OR(AM51="〇",AM76="〇"),1,"") -> 
BM52: 未指定 | BR52: =IF(OR(AM53="〇",AM77="〇"),1,"") -> 
AG53: 未 指 定 | AM53: =IF(ISERROR(IF(BV40="未指定","〇","")),"",IF(BV40="未指定","〇","")) ->  | BM53: 府 外 | BR53: =IF(OR(AM55="〇",AM78="〇"),1,"") -> 
E55: 大 阪 府 外 校 | AM55: =IF(ISERROR(IF(BV40="大阪府外","〇","")),"",IF(BV40="大阪府外","〇","")) -> 
BM58: =IF(OR(M61="*******",AND(M61="",P83="")),0,IF(M61<>"",M61,P83)) -> 0 | BQ58: 年間単位数
D59: ≪単位制≫ | M59: 年間単位数 | Y59: １単位当たりの授業料 | AP59: 年 間 授 業 料 | BM59: =IF(OR(Y61="**********",AND(Y61="",AB83="")),0,IF(Y61<>"",Y61,AB83)) -> 0 | BQ59: １単位の授業料
BM60: =BM58*BM59 -> 0 | BQ60: 単位制の授業料
M61: =IF(ISERROR(VLOOKUP(BU40,$E$31:$AU$42,38,FALSE)),"",IF(CA41=1,"*******",VLOOKUP(BU40,$E$31:$AU$42,38,FALSE))) ->  | V61: × | Y61: =IF(ISERROR(VLOOKUP(BU40,$E$31:$BG$42,44,FALSE)),"",IF(CA41=1,"**********",VLOOKUP(BU40,$E$31:$BG$42,44,FALSE))) ->  | AJ61: 円 | AM61: ＝ | AP61: =IF(OR(M61="",Y61=""),"",IF(CA41=1,"**********",M61*Y61)) ->  | BA61: 円 | BM61: =IF(OR(AND(AP66="",AS88=""),AP66="**********"),0,IF(AP66<>"",AP66,AS88)) -> 0 | BQ61: 年額制の授業料
BM63: =IF(BM60>0,BM60,BM61) -> 0 | BQ63: 年間授業料
D64: ≪年額制≫ | L64: ・・・・・・・・・・・・・・・・・・・・・・・・・・・・・・・・・・ | AP64: 年 間 授 業 料
AP66: =IF(BR50=0,"",IF(ISERROR(VLOOKUP(BU40,$E$31:$BG$42,44,FALSE)),"",IF(CA41=1,VLOOKUP(BU40,$E$31:$BG$42,44,FALSE),"**********"))) ->  | BA66: 円
D69: ★ 該当する学校がない場合は、こちらに入力してください。
F71: （ | H71: 上の ✓ は外してください！ | Z71: ）
AN72: =COUNTA(AM76:AO78) -> 0
E74: 学 校 区 分 | AM74: 選択↓
E76: 大 阪 府 内 校 | M76: 私立高校生等就学支援推進校 (※) に | AG76: 指 定
AG77: 未 指 定 | AQ77: 〇が２つ以上です！
E78: 大 阪 府 外 校
D81: ≪単位制の場合≫ | P81: 年間単位数 | AB81: １単位当たりの授業料 | AS81: 年 間 授 業 料 | BG81: どちらか一方のみ 入力してください。
Y83: × | AM83: 円 | AP83: ＝ | AS83: =IF(OR(P83="",AB83=""),"",P83*AB83) ->  | BD83: 円
D86: ≪年額制の場合≫ | AS86: 年 間 授 業 料
P87: ・・・・・・・・・・・・・・・・・・・・・・・・・・・・・・・・
BD88: 円
D92: （※）推進校とは、大阪府教育庁が指定する、高校生等の就学支援に積極的に協力する私立高等学校等や専修学校高等課程等で、
D94: 授業料支援補助金の対象となる学校です。
D96: 大阪府のホームページに推進校の一覧が掲載されています。
H98: ・私立高校生等就学支援推進校の一覧（全日制高校・通信制高校・中等教育学校）
H100: ・私立高校生等就学支援推進校の一覧（専修学校高等課程等）
C105: ２．『進学届』に印字されている金額と同じ箇所を選択してください。
E110: 国 就学支援金見込額 | Q110: 大阪府 授業料支援補助金見込額 | AC110: 合 計 | AO110: 選択↓
BV113: =SUM(BV114:BV117) -> 0
E114: 396000 | N114: 円 | Q114: 204000 | Z114: 円 | AC114: 600000 | AL114: 円 | AS114: 〇が２つ以上です！ | BV114: =IF(AO114="〇",1,"") -> 
E115: 118800 | N115: 円 | Q115: 281200 | Z115: 円 | AC115: 400000 | AL115: 円 | BV115: =IF(AO115="〇",1,"") -> 
E116: 118800 | N116: 円 | Q116: 0 | Z116: 円 | AC116: 118800 | AL116: 円
E117: 0 | N117: 円 | Q117: 0 | Z117: 円 | AC117: 0 | AL117: 円
AP118: =COUNTA(AO114:AR117) -> 0
C124: 貸付額シミュレーション結果
D128: =IF(AND(BR50=0,BM63=0,BV113=0),"・１の［学校区分］［年間授業料］、２の［進学届金額欄］が未入力です！",IF(AND(BR50=0,BM63<>0,BV113=0),"・１の［学校区分］、２の［進学届金額欄］が未入力です！",IF(AND(BR50>0,BM63=0,BV113=0),"・１の［年間授業料］、２の［進学届金額欄］が未入力です！",IF(AND(BR50=0,BM63=0,BV113<>0),"・１の［学校区分］［年間授業料］が未入力です！",IF(AND(BR50>0,BM63<>"",BV113=0),"・２の［進学届金額欄］が未入力です！",IF(AND(BR50=0,BM63<>"",BV113>0),"・１の［学校区分］が未入力です！",IF(AND(BR50>0,BM63=0,BV113>0),"・１の［年間授業料］が未入力です！",""))))))) -> ・１の［学校区分］［年間授業料］、２の［進学届金額欄］が未入力です！
E132: 世帯年収めやすは、 | Q132: =IF(AO114="〇","５９０万円未満",IF(AO115="〇","590万円以上、800万円未満",IF(AO116="〇","800万円以上、910万円未満",IF(AO117="〇","910万円以上、1,000万円未満","")))) -> 
K136: 年間授業料は、 | U136: =IF(BM63=0,"",BM63) ->  | AG136: 円
I142: 国の就学支援金は、 | U142: =IF(AND(BR51="",BR52="",BR53=""),"",IF(AND(OR(BM58=0,BM59=0),BM61=0),"",IF(AND(AO114="",AO115="",AO116="",AO117=""),"",IF(BM61<>0,VLOOKUP(1,$V$186:$AK$189,10,FALSE),AL142*25)))) ->  | AG142: 円 | AJ142: （ | AL142: =IF(AND(BR51="",BR52="",BR53=""),"",IF(AND(OR(BM58=0,BM59=0),BM61=0),"",IF(AND(AO114="",AO115="",AO116="",AO117=""),"",VLOOKUP(1,$V$180:$AK$183,10,FALSE)))) ->  | AS142: 円 × ２５単位）
J145: 保護者負担額は、 | U145: =IF(AND(BR51="",BR52="",BR53=""),"",IF(AND(OR(BM58=0,BM59=0),BM61=0),"",IF(AND(AO114="",AO115="",AO116="",AO117=""),"",IF(AND(BR51=1,BM61<>0,AO114="○"),0,IF(BM61<>0,BM61-U142,IF(AND(BR51<>"",BM58<=25,AO114="○"),0,BM60-U142)))))) ->  | AG145: 円 | AK145: 私立高校生等就学支援推進校に進学した場合、 年収めやす５９０万円未満世帯の保護者負担額は、０円です。
E150: 貸付限度額（年額）は、 | U150: =IF(AND(BR51="",BR52="",BR53=""),"",IF(AND(OR(BM58=0,BM59=0),BM61=0),"",IF(AND(AO114="",AO115="",AO116="",AO117=""),"",IF(OR(AND(BR51=1,AO114="○",BM58<=25),(AND(BR51=1,BM61<>0,AO114="○"))),100000,IF(AND(BR51="",BM61<>0),ROUNDUP(VLOOKUP(1,$V$186:$BV$189,47,FALSE),-3),ROUNDUP(VLOOKUP(1,$V$180:$BV$183,47,FALSE),-3)))))) ->  | AG150: 円 | AK150: =IF(OR(AO116="〇",AO117="〇"),"貸付限度額は、保護者負担額（千円未満は千円単位に切り上げ）または２４万円です。",IF(OR(AO114="〇",AO115="〇"),"貸付限度額は、保護者負担額（千円未満は千円単位に切り上げ）に「その他教育費 10万円」を加えた額です。","")) -> 
F154: ※希望する借入金額（年額）が貸付限度額未満の場合は、１万円単位でご記入ください。
D179: 単 位 制 | H179: 年収めやす | O179: 所 得 判 定 額 | V179: 判定 | X179: 国就学支援金最大 | AE179: 今回支援額 | AL179: 保護者負担 | AV179: ＜算出結果＞ | BC179: 貸付限度額 | BP179: ＜算出結果＞
H180: 590万円未満 | O180: 154,500円未満 | V180: =IF(AO114<>"",1,0) -> 0 | X180: 12030 | AE180: =IF($BM$59<X180,$BM$59,X180) -> 0 | AL180: =IF(AND(BR51=1,BM58<=25),"なし（差額は学校負担）","授業料－今回支援額") -> 授業料－今回支援額 | AV180: =IF(BM59=0,0,IF(AND(BR51=1,BM58<=25),0,IF(BM59>=X180,BM59-X180,IF(U145<>0,"あり",0)))) -> 0 | BC180: 授業料負担額＋100,000円 | BP180: =IF(AND(BR51=1,BM59<=25,AO114="○"),100000,U145+100000) -> 
H181: 800万円未満 | O181: 251,100円未満 | V181: =IF(AO115<>"",1,0) -> 0 | X181: 4812 | AE181: =IF($BM$59<X181,$BM$59,X181) -> 0 | AL181: 授業料－今回支援額 | AV181: =IF(BM59=0,0,IF(BM59<=X181,0,BM59-X181)) -> 0 | BC181: 授業料負担額＋100,000円 | BP181: =U145+100000 -> 
H182: 910万円未満 | O182: 304,200円未満 | V182: =IF(AO116<>"",1,0) -> 0 | X182: 4812 | AE182: =IF($BM$59<X182,$BM$59,X182) -> 0 | AL182: 授業料－今回支援額 | AV182: =IF(BM59=0,0,IF(BM59<=X182,0,BM59-X182)) -> 0 | BC182: 授業料負担額内（上限24万円） | BP182: =IF(U145>=240000,240000,U145) -> 240000
H183: 1,000万円未満 | O183: 347,100円未満 | V183: =IF(AO117<>"",1,0) -> 0 | X183: 0 | AE183: 0 | AL183: 授業料全額 | AV183: =BM59 -> 0 | BC183: 授業料負担額内（上限24万円） | BP183: =IF(U145>=240000,240000,U145) -> 240000
D185: 年 額 制 | H185: 年収めやす | O185: 所 得 判 定 額 | V185: 判定 | X185: 国就学支援金最大 | AE185: 今回支援額 | AL185: 保護者負担 | AV185: ＜算出結果＞ | BC185: 貸付限度額 | BP185: ＜算出結果＞
H186: 590万円未満 | O186: 154,500円未満 | V186: =IF(AO114<>"",1,0) -> 0 | X186: 297000 | AE186: =IF($BM$61>=X186,X186,$BM$61) -> 0 | AL186: 授業料－297,000円 | AV186: =BM61-AE186 -> 0 | BC186: 授業料負担額＋100,000円 | BP186: =AV186+100000 -> 100000
H187: 800万円未満 | O187: 251,100円未満 | V187: =IF(AO115<>"",1,0) -> 0 | X187: 118800 | AE187: =IF($BM$61>=X187,X187,$BM$61) -> 0 | AL187: 授業料－118,800円 | AV187: =BM61-AE187 -> 0 | BC187: 授業料負担額＋100,000円 | BP187: =AV187+100000 -> 100000
H188: 910万円未満 | O188: 304,200円未満 | V188: =IF(AO116<>"",1,0) -> 0 | X188: 118800 | AE188: =IF($BM$61>=X188,X188,$BM$61) -> 0 | AL188: 授業料－118,800円 | AV188: =BM61-AE188 -> 0 | BC188: 授業料負担額内（上限24万円） | BP188: =IF(AV188<240000,AV188,240000) -> 0
H189: 1,000万円未満 | O189: 347,100円未満 | V189: =IF(AO117<>"",1,0) -> 0 | X189: 0 | AE189: 0 | AL189: 授業料全額 | AV189: =BM61 -> 0 | BC189: 授業料負担額内（上限24万円） | BP189: =IF(AV189<240000,AV189,240000) -> 0

Sheet 学校検索（通信制用） (hidden)
A1: 検索文字列 | B1: 地域 | C1: 学 校 名 | D1: 区分 | E1: 年間 単位数 | F1: 1単位あたりの 授業料 | G1: 最新 | H1: 学番 | J1: 学 校 名 | K1: 照合用 | L1: 学番・枝番 ・学科 | M1: １単位 | N1: 年単位 | O1: 単位計 | P1: 授業料 | Q1: 照合用 | R1: 増減 | S1: 種別 | T1: 区分 | U1: 地域 | V1: 最新 | W1: 順番 | X1: 作業列 | Z1: NO | AA1: 学校名 | AB1: 学科名 | AC1: 1年生 | AE1: 学番 | AF1: 枝 | AG1: 学校名 | AH1: 学科 | AI1: 学科名 | AJ1: 1年生 | AK1: 👈貼付け
A2: =通信制!M25 -> 0 | B2: =IF(OR($A$2="",COUNT($X$2:$X$102)<ROW(A1)),"",INDEX($U$2:$U$103,SMALL($X$2:$X$102,ROW(A1)))) ->  | C2: =IF(OR($A$2="",COUNT($X$2:$X$102)<ROW(B1)),"",INDEX($J$2:$J$103,SMALL($X$2:$X$102,ROW(B1)))) ->  | D2: =IF(OR($A$2="",COUNT($X$2:$X$102)<ROW(C1)),"",INDEX($T$2:$T$103,SMALL($X$2:$X$102,ROW(C1)))) ->  | E2: =IF(OR($A$2="",COUNT($X$2:$X$102)<ROW(D1)),"",INDEX($N$2:$N$103,SMALL($X$2:$X$102,ROW(D1)))) ->  | F2: =IF(OR($A$2="",COUNT($X$2:$X$102)<ROW(E1)),"",INDEX($M$2:$M$103,SMALL($X$2:$X$102,ROW(E1)))) ->  | G2: =IF(OR($A$2="",COUNT($X$2:$X$102)<ROW(F1)),"",INDEX($V$2:$V$103,SMALL($X$2:$X$102,ROW(F1)))) ->  | H2: =IF(OR($A$2="",COUNT($X$2:$X$102)<ROW(G1)),"",INDEX($L$2:$L$103,SMALL($X$2:$X$102,ROW(G1)))) ->  | J2: 英風 | K2: =VLOOKUP(L2,$Z$2:$AC$1400,2,FALSE) -> 英風 | L2: 47113-0-0 | M2: 12000 | N2: 25 | O2: 74 | P2: 300000 | Q2: =VLOOKUP(L2,$Z$2:$AC$1400,4,FALSE) -> 300000 | R2: =Q2-P2 -> 0 | S2: 私立高校 | T2: 未指定 | U2: 大 阪 | V2: 〇 | W2: 1 | X2: =IF($A$2="","",IF(ISNUMBER(FIND($A$2,J2)),ROW(A1),"")) ->  | Z2: =AE2&"-"&AF2&"-"&AH2 -> 31301-0-0 | AA2: =AG2 -> 富山 | AB2: =AI2 ->  | AC2: =AJ2 -> 0 | AE2: 31301 | AF2: 0 | AG2: 富山 | AH2: 0 | AJ2: 0 | AL2: 必ず、1単位の授業料を 修正すること！！！！
J3: 大阪つくば開成 | K3: 大阪つくば開成 | L3: 47111-0-0 | M3: 12000 | N3: 25 | O3: 74 | P3: 300000 | Q3: 300000 | R3: 0 | S3: 私立高校 | T3: 指定 | U3: 大 阪 | V3: 〇 | W3: 2 | X3: =IF($A$2="","",IF(ISNUMBER(FIND($A$2,J3)),ROW(A2),"")) ->  | Z3: 31401-0-0 | AA3: 鳥羽商船 | AB3: =AI3 ->  | AC3: 234600 | AE3: 31401 | AF3: 0 | AG3: 鳥羽商船 | AH3: 0 | AJ3: 234600
J4: 賢明学院 | K4: 賢明学院（通信制） | L4: 47082-1-0 | M4: 10000 | N4: 25 | O4: 74 | P4: 250000 | Q4: 250000 | R4: 0 | S4: 私立高校 | T4: 指定 | U4: 大 阪 | V4: 〇 | W4: 3 | Z4: 31402-0-0 | AA4: 豊田工業 | AC4: 0 | AE4: 31402 | AF4: 0 | AG4: 豊田工業 | AH4: 0 | AJ4: 0
J5: 近畿大阪 | K5: 近畿大阪 | L5: 47114-0-0 | M5: 7000 | N5: 25 | O5: 74 | P5: 175000 | Q5: 175000 | R5: 0 | S5: 私立高校 | T5: 指定 | U5: 大 阪 | V5: 〇 | W5: 4 | Z5: 31501-0-0 | AA5: 明石工業 | AC5: 0 | AE5: 31501 | AF5: 0 | AG5: 明石工業 | AH5: 0 | AJ5: 0
J6: 神須学園 | K6: 神須学園 | L6: 47108-0-0 | M6: 12000 | N6: 25 | O6: 74 | P6: 300000 | Q6: 300000 | R6: 0 | S6: 私立高校 | T6: 未指定 | U6: 大 阪 | V6: 〇 | W6: 5 | Z6: 31502-0-0 | AA6: 奈良工業 | AC6: 234600 | AE6: 31502 | AF6: 0 | AG6: 奈良工業 | AH6: 0 | AJ6: 234600
J7: 向陽台 | K7: 向陽台 | L7: 47055-0-0 | M7: 297000 | N7: 年額制 | O7: 年 | P7: 297000 | Q7: 297000 | R7: 0 | S7: 私立高校 | T7: 指定 | U7: 大 阪 | V7: 〇 | W7: 6 | Z7: 31503-0-0 | AA7: 和歌山工業 | AC7: 234600 | AE7: 31503 | AF7: 0 | AG7: 和歌山工業 | AH7: 0 | AJ7: 234600
J8: 向陽台 （技能連携） | K8: 向陽台 | L8: 47055-0-2 | M8: 264000 | N8: 年額制 | O8: 年 | P8: 264000 | Q8: 264000 | R8: 0 | S8: 私立高校 | T8: 指定 | U8: 大 阪 | V8: 〇 | W8: 7 | Z8: 31504-0-0 | AA8: 舞鶴工業 | AC8: 234600 | AE8: 31504 | AF8: 0 | AG8: 舞鶴工業 | AH8: 0 | AJ8: 234600
J9: 秋桜 | K9: 秋桜 | L9: 47104-0-0 | M9: 12000 | N9: 25 | O9: 74 | P9: 300000 | Q9: 300000 | R9: 0 | S9: 私立高校 | T9: 指定 | U9: 大 阪 | V9: 〇 | W9: 8 | Z9: 31601-0-0 | AA9: 広島商船 | AC9: 234600 | AE9: 31601 | AF9: 0 | AG9: 広島商船 | AH9: 0 | AJ9: 234600
J10: 天王寺学館 | K10: 天王寺学館 | L10: 47102-0-0 | M10: 8500 | N10: 32 | O10: 96 | P10: 272000 | Q10: 272000 | R10: 0 | S10: 私立高校 | T10: 指定 | U10: 大 阪 | V10: 〇 | W10: 9 | Z10: 31602-0-0 | AA10: 松江工業 | AC10: 0 | AE10: 31602 | AF10: 0 | AG10: 松江工業 | AH10: 0 | AJ10: 0
J11: 東朋学園 | K11: 東朋学園 | L11: 47112-0-0 | M11: 10000 | N11: 25 | O11: 74 | P11: 250000 | Q11: 250000 | R11: 0 | S11: 私立高校 | T11: 未指定 | U11: 大 阪 | V11: 〇 | W11: 10 | Z11: 31603-0-0 | AA11: 大島商船 | AC11: 0 | AE11: 31603 | AF11: 0 | AG11: 大島商船 | AH11: 0 | AJ11: 0
J12: 長尾谷 | K12: 長尾谷 | L12: 47100-0-0 | M12: 9000 | N12: 25 | O12: 74 | P12: 225000 | Q12: 225000 | R12: 0 | S12: 私立高校 | T12: 指定 | U12: 大 阪 | V12: 〇 | W12: 11 | Z12: 31701-0-0 | AA12: 香川 詫間キャンパス | AC12: 234600 | AE12: 31701 | AF12: 0 | AG12: 香川 詫間キャンパス | AH12: 0 | AJ12: 234600
J13: 八洲学園 | K13: 八洲学園 | L13: 47099-0-0 | M13: 10000 | N13: 25 | O13: 74 | P13: 250000 | Q13: 250000 | R13: 0 | S13: 私立高校 | T13: 指定 | U13: 大 阪 | V13: 〇 | W13: 12 | Z13: 31701-1-0 | AA13: 香川 高松キャンパス | AC13: 234600 | AE13: 31701 | AF13: 1 | AG13: 香川 高松キャンパス | AH13: 0 | AJ13: 234600
J14: 八洲学園 （技能連携） | K14: 八洲学園（技能連携） | L14: 47099-0-1 | M14: 85000 | N14: 年額制 | O14: 年 | P14: 85000 | Q14: 85000 | R14: 0 | S14: 私立高校 | T14: 指定 | U14: 大 阪 | V14: 〇 | W14: 13 | Z14: 31702-0-0 | AA14: 弓削商船 | AC14: 234600 | AE14: 31702 | AF14: 0 | AG14: 弓削商船 | AH14: 0 | AJ14: 234600
J15: ＹＭＣＡ学院 | K15: ＹＭＣＡ学院 | L15: 47103-0-0 | M15: 10000 | N15: 25 | O15: 74 | P15: 250000 | Q15: 250000 | R15: 0 | S15: 私立高校 | T15: 指定 | U15: 大 阪 | V15: 〇 | W15: 14 | Z15: 31801-0-0 | AA15: 鹿児島工業 | AC15: 234600 | AE15: 31801 | AF15: 0 | AG15: 鹿児島工業 | AH15: 0 | AJ15: 234600
J16: ルネサンス大阪 | K16: ルネサンス大阪 | L16: 47107-0-0 | M16: 10000 | N16: 26 | O16: 76 | P16: 260000 | Q16: 260000 | R16: 0 | S16: 私立高校 | T16: 指定 | U16: 大 阪 | V16: 〇 | W16: 15 | Z16: 31803-0-0 | AA16: 東京工業 | AC16: 0 | AE16: 31803 | AF16: 0 | AG16: 東京工業 | AH16: 0 | AJ16: 0
J17: ＩＤ学園 | K17: ＩＤ学園 | L17: 48193-0-0 | M17: 6900 | N17: 25 | O17: 74 | P17: 172500 | Q17: 172500 | R17: =Q17-P17 -> 0 | S17: 私立高校 | T17: 大阪府外 | U17: 長 野 | V17: 〇 | W17: 16 | Z17: 31804-0-0 | AA17: 福島工業 | AC17: 0 | AE17: 31804 | AF17: 0 | AG17: 福島工業 | AH17: 0 | AJ17: 0
J18: 相生学院 | K18: 相生学院 | L18: 47553-0-0 | M18: 9000 | N18: 25 | O18: 74 | P18: 225000 | Q18: 225000 | R18: 0 | S18: 私立高校 | T18: 大阪府外 | U18: 兵 庫 | V18: 〇 | W18: 17 | Z18: 31805-0-0 | AA18: 新居浜工業 | AC18: 0 | AE18: 31805 | AF18: 0 | AG18: 新居浜工業 | AH18: 0 | AJ18: 0
J19: 飛鳥未来 | K19: 飛鳥未来 | L19: 47617-0-0 | M19: 8000 | N19: 25 | O19: 74 | P19: 200000 | Q19: 200000 | R19: 0 | S19: 私立高校 | T19: 大阪府外 | U19: 奈 良 | V19: 〇 | W19: 18 | Z19: 31806-0-0 | AA19: 一関工業 | AC19: 0 | AE19: 31806 | AF19: 0 | AG19: 一関工業 | AH19: 0 | AJ19: 0
J20: 飛鳥未来きずな | K20: 飛鳥未来きずな | L20: 48149-0-0 | M20: 8000 | N20: 25 | O20: 74 | P20: 200000 | Q20: 200000 | R20: 0 | S20: 私立高校 | T20: 大阪府外 | U20: 宮 城 | V20: 〇 | W20: 19 | Z20: 31807-0-0 | AA20: 米子工業 | AC20: 0 | AE20: 31807 | AF20: 0 | AG20: 米子工業 | AH20: 0 | AJ20: 0
J21: あずさ第一 | K21: あずさ第一 | L21: 48099-0-0 | M21: 8500 | N21: 25 | O21: 75 | P21: 212500 | Q21: 212500 | R21: 0 | S21: 私立高校 | T21: 大阪府外 | U21: 千 葉 | V21: 〇 | W21: 20 | Z21: 31808-0-0 | AA21: 長岡工業 | AC21: 234600 | AE21: 31808 | AF21: 0 | AG21: 長岡工業 | AH21: 0 | AJ21: 234600
J22: ＥＣＣ学園 | K22: ＥＣＣ学園 | L22: 48020-0-0 | M22: 10000 | N22: 25 | O22: 74 | P22: 250000 | Q22: =VLOOKUP(L22,$Z$2:$AC$1400,4,FALSE) -> 250000 | R22: 0 | S22: 私立高校 | T22: 大阪府外 | U22: 滋 賀 | V22: 〇 | W22: 21 | Z22: 32501-0-0 | AA22: 大阪公立大学工業 | AC22: 234600 | AE22: 32501 | AF22: 0 | AG22: 大阪公立大学工業 | AH22: 0 | AJ22: 234600
J23: Ｓ （普通科ベーシック） | K23: Ｓ | L23: 48182-0-0 | M23: 7200 | N23: 25 | O23: 75 | P23: 180000 | Q23: 180000 | R23: 0 | S23: 私立高校 | T23: 大阪府外 | U23: 茨 城 | V23: 〇 | W23: 22 | Z23: 37801-0-0 | AA23: 近畿大学工業 | AC23: 520000 | AE23: 37801 | AF23: 0 | AG23: 近畿大学工業 | AH23: 0 | AJ23: 520000
J24: Ｓ （普通科） | K24: Ｓ | L24: 48182-0-1 | M24: 12000 | N24: 25 | O24: 75 | P24: 300000 | Q24: 300000 | R24: 0 | S24: 私立高校 | T24: 大阪府外 | U24: 茨 城 | V24: 〇 | W24: 23 | Z24: 37801-0-1 | AA24: 近畿大学工業 | AB24: ４年生からの編入生 | AC24: 0 | AE24: 37801 | AF24: 0 | AG24: 近畿大学工業 | AH24: 1 | AI24: ４年生からの編入生 | AJ24: 0
J25: Ｎ （普通科ベーシック） | K25: Ｎ | L25: 48126-0-0 | M25: 7200 | N25: 25 | O25: 75 | P25: 180000 | Q25: 180000 | R25: 0 | S25: 私立高校 | T25: 大阪府外 | U25: 沖 縄 | V25: 〇 | W25: 24 | Z25: 37802-0-0 | AA25: 国際 金沢キャンパス | AC25: 0 | AE25: 37802 | AF25: 0 | AG25: 国際 金沢キャンパス | AH25: 0 | AJ25: 0
J26: Ｎ （普通科） | K26: Ｎ | L26: 48126-0-1 | M26: 12000 | N26: 25 | O26: 75 | P26: 300000 | Q26: 300000 | R26: 0 | S26: 私立高校 | T26: 大阪府外 | U26: 沖 縄 | V26: 〇 | W26: 25 | Z26: 41001-0-0 | AA26: 大阪教育大学附属天王寺校舎 | AC26: 115200 | AE26: 41001 | AF26: 0 | AG26: 大阪教育大学附属天王寺校舎 | AH26: 0 | AJ26: 115200
J27: ＮＨＫ学園 （スタンダードコース） | K27: ＮＨＫ学園 | L27: 47201-0-0 | M27: 12000 | N27: 25 | O27: 74 | P27: 300000 | Q27: 300000 | R27: 0 | S27: 私立高校 | T27: 大阪府外 | U27: 東 京 | V27: 〇 | W27: 26 | Z27: 41002-0-0 | AA27: 大阪教育大学附属池田校舎 | AC27: 115200 | AE27: 41002 | AF27: 0 | AG27: 大阪教育大学附属池田校舎 | AH27: 0 | AJ27: 115200
J28: ＮＨＫ学園 （ライフデザインコース） | K28: ＮＨＫ学園 | L28: 47201-0-1 | M28: 12000 | N28: 25 | O28: 74 | P28: 300000 | Q28: 300000 | R28: 0 | S28: 私立高校 | T28: 大阪府外 | U28: 東 京 | V28: 〇 | W28: 27 | Z28: 41003-0-0 | AA28: 大阪教育大学附属平野校舎 | AC28: 115200 | AE28: 41003 | AF28: 0 | AG28: 大阪教育大学附属平野校舎 | AH28: 0 | AJ28: 115200
J29: 科学技術学園 （大阪分室） | K29: 科学技術学園 | L29: 47096-0-0 | M29: 9000 | N29: 25 | O29: 74 | P29: 225000 | Q29: 225000 | R29: 0 | S29: 私立高校 | T29: 大阪府外 | U29: 東 京 | V29: 〇 | W29: 28 | Z29: 41101-0-0 | AA29: 京都教育大学附属 | AC29: 115200 | AE29: 41101 | AF29: 0 | AG29: 京都教育大学附属 | AH29: 0 | AJ29: 115200
J30: 鹿島朝日 | K30: 鹿島朝日 | L30: 48146-0-0 | M30: 8000 | N30: 25 | O30: 74 | P30: 200000 | Q30: 200000 | R30: 0 | S30: 私立高校 | T30: 大阪府外 | U30: 岡 山 | V30: 〇 | W30: 29 | Z30: 41102-0-0 | AA30: 奈良女子大学附属中等教育 | AC30: 115200 | AE30: 41102 | AF30: 0 | AG30: 奈良女子大学附属中等教育 | AH30: 0 | AJ30: 115200
J31: 鹿島学園 | K31: 鹿島学園 | L31: 47965-1-0 | M31: 8000 | N31: 25 | O31: 74 | P31: 200000 | Q31: 200000 | R31: 0 | S31: 私立高校 | T31: 大阪府外 | U31: 茨 城 | V31: 〇 | W31: 30 | Z31: 42001-0-0 | AA31: 大阪府立北野 | AC31: 118800 | AE31: 42001 | AF31: 0 | AG31: 大阪府立北野 | AH31: 0 | AJ31: 118800
J32: 鹿島山北 | K32: 鹿島山北 | L32: 48159-0-0 | M32: 8000 | N32: 25 | O32: 74 | P32: 200000 | Q32: 200000 | R32: 0 | S32: 私立高校 | T32: 大阪府外 | U32: 神奈川 | V32: 〇 | W32: 31 | Z32: 42002-0-0 | AA32: 大阪府立東淀川 | AC32: 118800 | AE32: 42002 | AF32: 0 | AG32: 大阪府立東淀川 | AH32: 0 | AJ32: 118800
J33: 神村学園高等部 | K33: 神村学園高等部 | L33: 47930-1-0 | M33: 10000 | N33: 25 | O33: 74 | P33: 250000 | Q33: 250000 | R33: 0 | S33: 私立高校 | T33: 大阪府外 | U33: 鹿児島 | V33: 〇 | W33: 32 | Z33: 42004-0-0 | AA33: 大阪府立柴島 | AC33: 118800 | AE33: 42004 | AF33: 0 | AG33: 大阪府立柴島 | AH33: 0 | AJ33: 118800
J34: 関西文化芸術 | K34: 関西文化芸術 | L34: 48153-0-0 | M34: 12000 | N34: 25 | O34: 75 | P34: 300000 | Q34: 300000 | R34: 0 | S34: 私立高校 | T34: 大阪府外 | U34: 奈 良 | V34: 〇 | W34: 33 | Z34: 42006-0-0 | AA34: 大阪府立大手前 | AC34: 118800 | AE34: 42006 | AF34: 0 | AG34: 大阪府立大手前 | AH34: 0 | AJ34: 118800
J35: 菊華 | K35: =VLOOKUP(L35,$Z$2:$AC$1400,2,FALSE) -> 菊華 | L35: 47912-1-0 | M35: 9000 | N35: 25 | O35: 74 | P35: 225000 | Q35: 0 | R35: -225000 | S35: 私立高校 | T35: 大阪府外 | U35: 愛 知 | W35: 34 | Z35: 42006-1-0 | AA35: 大阪府立大手前 | AC35: 118800 | AE35: 42006 | AF35: 1 | AG35: 大阪府立大手前 | AH35: 0 | AJ35: 118800
J36: 京都芸術大学附属 | K36: 京都芸術大学附属 | L36: 47442-0-0 | M36: 11000 | N36: 25 | O36: 74 | P36: 275000 | Q36: 275000 | R36: 0 | S36: 私立高校 | T36: 大阪府外 | U36: 京 都 | V36: 〇 | W36: 35 | Z36: 42007-0-0 | AA36: 大阪府立港 | AC36: 118800 | AE36: 42007 | AF36: 0 | AG36: 大阪府立港 | AH36: 0 | AJ36: 118800
J37: 京都美山 | K37: 京都美山 | L37: 47433-1-0 | M37: 12000 | N37: 26 | O37: 75 | P37: 312000 | Q37: 312000 | R37: 0 | S37: 私立高校 | T37: 大阪府外 | U37: 京 都 | V37: 〇 | W37: 36 | Z37: 42008-0-0 | AA37: 大阪府立市岡 | AC37: 118800 | AE37: 42008 | AF37: 0 | AG37: 大阪府立市岡 | AH37: 0 | AJ37: 118800
J38: クラーク記念国際 （クラークスマート大阪梅田・在宅コース） | K38: クラーク記念国際クラークスマート大阪梅田校 | L38: 47874-1-1 | M38: 8000 | N38: 25 | O38: 74 | P38: 200000 | Q38: 200000 | R38: 0 | S38: 私立高校 | T38: 大阪府外 | U38: 北海道 | V38: 〇 | W38: 37 | Z38: 42011-0-0 | AA38: 大阪府立清水谷 | AC38: 118800 | AE38: 42011 | AF38: 0 | AG38: 大阪府立清水谷 | AH38: 0 | AJ38: 118800
J39: クラーク記念国際 （クラークスマート大阪梅田・在宅コース以外） | K39: クラーク記念国際クラークスマート大阪梅田校 | L39: 47874-1-2 | M39: 16000 | N39: 25 | O39: 74 | P39: 400000 | Q39: 400000 | R39: 0 | S39: 私立高校 | T39: 大阪府外 | U39: 北海道 | V39: 〇 | W39: 38 | Z39: 42012-0-0 | AA39: 大阪府立高津 | AC39: 118800 | AE39: 42012 | AF39: 0 | AG39: 大阪府立高津 | AH39: 0 | AJ39: 118800
J40: クラーク記念国際 （クラークスマート大阪梅田・年額制） | K40: クラーク記念国際クラークスマート大阪梅田校 | L40: 47874-1-3 | M40: 400000 | N40: 年額制 | O40: 年 | P40: 400000 | Q40: 400000 | R40: 0 | S40: 私立高校 | T40: 大阪府外 | U40: 北海道 | V40: 〇 | W40: 39 | Z40: 42013-0-0 | AA40: 大阪府立夕陽丘 | AC40: 118800 | AE40: 42013 | AF40: 0 | AG40: 大阪府立夕陽丘 | AH40: 0 | AJ40: 118800
J41: クラーク記念国際 （クラークスマート大阪天王寺・単位習得コース） | K41: クラーク記念国際 クラークスマート大阪天王寺校 | L41: 47874-0-2 | M41: 8000 | N41: 25 | O41: 74 | P41: 200000 | Q41: 200000 | R41: 0 | S41: 私立高校 | T41: 大阪府外 | U41: 北海道 | V41: 〇 | W41: 40 | Z41: 42014-0-0 | AA41: 大阪府立今宮 | AC41: 118800 | AE41: 42014 | AF41: 0 | AG41: 大阪府立今宮 | AH41: 0 | AJ41: 118800
J42: クラーク記念国際 （クラークスマート大阪天王寺・ウィークエンドコース） | K42: クラーク記念国際 クラークスマート大阪天王寺校 | L42: 47874-0-3 | M42: 16000 | N42: 25 | O42: 74 | P42: 400000 | Q42: 400000 | R42: 0 | S42: 私立高校 | T42: 大阪府外 | U42: 北海道 | V42: 〇 | W42: 41 | Z42: 42016-0-0 | AA42: 大阪府立旭 | AC42: 118800 | AE42: 42016 | AF42: 0 | AG42: 大阪府立旭 | AH42: 0 | AJ42: 118800
J43: クラーク記念国際 （クラークスマート大阪天王寺・年額制） | K43: クラーク記念国際 クラークスマート大阪天王寺校 | L43: 47874-0-4 | M43: 400000 | N43: 年額制 | O43: 年 | P43: 400000 | Q43: 400000 | R43: 0 | S43: 私立高校 | T43: 大阪府外 | U43: 北海道 | V43: 〇 | W43: 42 | Z43: 42017-0-0 | AA43: 大阪府立茨田 | AC43: 118800 | AE43: 42017 | AF43: 0 | AG43: 大阪府立茨田 | AH43: 0 | AJ43: 118800
J44: クラーク記念国際 （京都キャンパス・総合進学ｺｰｽ・ｽﾏｰﾄｺｰｽ 年額制） | K44: クラーク記念国際京都キャンパス | L44: 47874-2-2 | M44: 400000 | N44: 年額制 | O44: 年 | P44: 400000 | Q44: 400000 | R44: 0 | S44: 私立高校 | T44: 大阪府外 | U44: 京 都 | V44: 〇 | W44: 43 | Z44: 42018-0-0 | AA44: 大阪府立天王寺 | AC44: 118800 | AE44: 42018 | AF44: 0 | AG44: 大阪府立天王寺 | AH44: 0 | AJ44: 118800
J45: クラーク記念国際 （神戸三宮キャンパス） | K45: クラーク記念国際神戸三宮キャンパス | L45: 47874-5-0 | M45: 400000 | N45: 年額制 | O45: 年 | P45: 400000 | Q45: 400000 | R45: 0 | S45: 私立高校 | T45: 大阪府外 | U45: 兵 庫 | V45: 〇 | W45: 44 | Z45: 42019-0-0 | AA45: 大阪府立阿倍野 | AC45: 118800 | AE45: 42019 | AF45: 0 | AG45: 大阪府立阿倍野 | AH45: 0 | AJ45: 118800
J46: 慶風 | K46: 慶風 | L46: 47709-1-0 | M46: 200000 | N46: 年額制 | O46: 年 | P46: 200000 | Q46: 200000 | R46: 0 | S46: 私立高校 | T46: 大阪府外 | U46: 和歌山 | V46: 〇 | W46: 45 | Z46: 42020-0-0 | AA46: 大阪府立住吉 | AC46: 118800 | AE46: 42020 | AF46: 0 | AG46: 大阪府立住吉 | AH46: 0 | AJ46: 118800
J47: さくら国際 | K47: さくら国際 | L47: 48106-0-0 | M47: 250000 | N47: 年額制 | O47: 年 | P47: 250000 | Q47: 250000 | R47: 0 | S47: 私立高校 | T47: 大阪府外 | U47: 長 野 | V47: 〇 | W47: 46 | Z47: 42022-0-0 | AA47: 大阪府立阪南 | AC47: 118800 | AE47: 42022 | AF47: 0 | AG47: 大阪府立阪南 | AH47: 0 | AJ47: 118800
J48: さくら国際（東京校・総合エンターテインメントコース） | K48: さくら国際 | L48: 48106-0-1 | M48: 910000 | N48: 年額制 | O48: 年 | P48: 910000 | Q48: 910000 | R48: 0 | S48: 私立高校 | T48: 大阪府外 | U48: 東 京 | V48: 〇 | W48: 47 | Z48: 42024-0-0 | AA48: 大阪府立東住吉 | AC48: 118800 | AE48: 42024 | AF48: 0 | AG48: 大阪府立東住吉 | AH48: 0 | AJ48: 118800
J49: 札幌静修学園 札幌静修 | K49: 札幌静修学園 札幌静修 | L49: 48195-1-0 | M49: 9000 | N49: 26 | O49: 76 | P49: 234000 | Q49: 234000 | R49: 0 | S49: 私立高校 | T49: 大阪府外 | U49: 北海道 | V49: 〇 | W49: 48 | Z49: 42025-0-0 | AA49: 大阪府立長吉 | AC49: 118800 | AE49: 42025 | AF49: 0 | AG49: 大阪府立長吉 | AH49: 0 | AJ49: 118800
J50: 滋慶学園 | K50: 滋慶学園 | L50: 48176-0-0 | M50: 12000 | N50: 25 | O50: 74 | P50: 300000 | Q50: 300000 | R50: 0 | S50: 私立高校 | T50: 大阪府外 | U50: 岡 山 | V50: 〇 | W50: 49 | Z50: 42026-0-0 | AA50: 大阪府立西成 | AC50: 118800 | AE50: 42026 | AF50: 0 | AG50: 大阪府立西成 | AH50: 0 | AJ50: 118800
J51: 松陰 | K51: 松陰 | L51: 48094-0-0 | M51: 12000 | N51: 25 | O51: 74 | P51: 300000 | Q51: 300000 | R51: 0 | S51: 私立高校 | T51: 大阪府外 | U51: 山 口 | V51: 〇 | W51: 50 | Z51: 42027-0-0 | AA51: 大阪府立平野 | AC51: 118800 | AE51: 42027 | AF51: 0 | AG51: 大阪府立平野 | AH51: 0 | AJ51: 118800
J52: ステップ | K52: ステップ | L52: 48197-0-0 | M52: 11000 | N52: 25 | O52: 74 | P52: 275000 | Q52: 275000 | R52: 0 | S52: 私立高校 | T52: 大阪府外 | U52: 長 野 | V52: 〇 | W52: 51 | Z52: 42029-0-0 | AA52: 大阪府教育センター付属 | AB52: 0 | AC52: 118800 | AE52: 42029 | AF52: 0 | AG52: 大阪府教育センター付属 | AH52: 0 | AJ52: 118800
J53: 駿台甲府 | K53: 駿台甲府 | L53: 48100-0-0 | M53: 10500 | N53: 25 | O53: 74 | P53: 262500 | Q53: 262500 | R53: 0 | S53: 私立高校 | T53: 大阪府外 | U53: 山 梨 | V53: 〇 | W53: 52 | Z53: 42030-0-0 | AA53: 大阪府立淀川清流 | AB53: 0 | AC53: 118800 | AE53: 42030 | AF53: 0 | AG53: 大阪府立淀川清流 | AH53: 0 | AJ53: 118800
J54: 星槎国際 （大阪学習センター） | K54: 星槎国際 | L54: 47101-0-0 | M54: 15000 | N54: 25 | O54: 74 | P54: 375000 | Q54: 375000 | R54: =Q54-P54 -> 0 | S54: 私立高校 | T54: 大阪府外 | U54: 北海道 | V54: 〇 | W54: 53 | Z54: 42031-0-0 | AA54: 大阪府立大正白稜 | AB54: 0 | AC54: 118800 | AE54: 42031 | AF54: 0 | AG54: 大阪府立大正白稜 | AH54: 0 | AJ54: 118800
J55: 第一学院 （高萩校） | K55: 第一学院 高萩校 | L55: 47964-0-0 | M55: 12000 | N55: 25 | O55: 75 | P55: 300000 | Q55: 300000 | R55: 0 | S55: 私立高校 | T55: 大阪府外 | U55: 茨 城 | V55: 〇 | W55: 54 | Z55: 42032-0-0 | AA55: 大阪府立 桜和 | AB55: 0 | AC55: 118800 | AE55: 42032 | AF55: 0 | AG55: 大阪府立 桜和 | AH55: 0 | AJ55: 118800
J56: 第一学院 （養父校） | K56: 第一学院 養父校 | L56: 47552-0-0 | M56: 12000 | N56: 25 | O56: 75 | P56: 300000 | Q56: 300000 | R56: 0 | S56: 私立高校 | T56: 大阪府外 | U56: 兵 庫 | V56: 〇 | W56: 55 | Z56: 42201-0-0 | AA56: 大阪府立豊中 | AC56: 118800 | AE56: 42201 | AF56: 0 | AG56: 大阪府立豊中 | AH56: 0 | AJ56: 118800
J57: 高松中央 | K57: 高松中央 | L57: 48144-1-0 | M57: 7000 | N57: 25 | O57: 74 | P57: 175000 | Q57: 175000 | R57: 0 | S57: 私立高校 | T57: 大阪府外 | U57: 香 川 | V57: 〇 | W57: 56 | Z57: 42201-1-0 | AA57: 大阪府立豊中 | AB57: 能勢分校 | AC57: 118800 | AE57: 42201 | AF57: 1 | AG57: 大阪府立豊中 | AH57: 0 | AI57: 能勢分校 | AJ57: 118800
J58: 日本ウェルネス（東京キャンパス・基本スタイル） | K58: 日本ウェルネス（東京キャンパス） | L58: 48113-0-0 | M58: 8000 | N58: 25 | O58: 74 | P58: 200000 | Q58: 200000 | R58: 0 | S58: 私立高校 | T58: 大阪府外 | U58: 愛 媛 | V58: 〇 | W58: 57 | Z58: 42202-0-0 | AA58: 大阪府立桜塚 | AC58: 118800 | AE58: 42202 | AF58: 0 | AG58: 大阪府立桜塚 | AH58: 0 | AJ58: 118800
J59: 日本教育学院 | K59: 日本教育学院 | L59: 48123-0-0 | M59: 8500 | N59: 25 | O59: 74 | P59: 212500 | Q59: 212500 | R59: 0 | S59: 私立高校 | T59: 大阪府外 | U59: 奈 良 | V59: 〇 | W59: 58 | Z59: 42202-1-0 | AA59: 大阪府立桜塚 | AC59: 32400 | AE59: 42202 | AF59: 1 | AG59: 大阪府立桜塚 | AH59: 0 | AJ59: 32400
J60: 日本航空 | K60: 日本航空 | L60: 47810-1-0 | M60: 10000 | N60: 25 | O60: 74 | P60: 250000 | Q60: 250000 | R60: 0 | S60: 私立高校 | T60: 大阪府外 | U60: 山 梨 | V60: 〇 | W60: 59 | Z60: 42204-0-0 | AA60: 大阪府立豊島 | AC60: 118800 | AE60: 42204 | AF60: 0 | AG60: 大阪府立豊島 | AH60: 0 | AJ60: 118800
J61: ヒューマンキャンパス | K61: ヒューマンキャンパス | L61: 48032-0-0 | M61: 12000 | N61: 25 | O61: 75 | P61: 300000 | Q61: 300000 | R61: 0 | S61: 私立高校 | T61: 大阪府外 | U61: 沖 縄 | V61: 〇 | W61: 60 | Z61: 42205-0-0 | AA61: 大阪府立刀根山 | AC61: 118800 | AE61: 42205 | AF61: 0 | AG61: 大阪府立刀根山 | AH61: 0 | AJ61: 118800
J62: ヒューマンキャンパスのぞみ | K62: ヒューマンキャンパスのぞみ | L62: 48191-0-0 | M62: 12000 | N62: 25 | O62: 75 | P62: 300000 | Q62: 300000 | R62: 0 | S62: 私立高校 | T62: 大阪府外 | U62: 千 葉 | V62: 〇 | W62: 61 | Z62: 42206-0-0 | AA62: 大阪府立池田 | AC62: 118800 | AE62: 42206 | AF62: 0 | AG62: 大阪府立池田 | AH62: 0 | AJ62: 118800
J63: 明誠 | K63: 明誠 | L63: 47979-1-0 | M63: 7000 | N63: 25 | O63: 74 | P63: 175000 | Q63: 175000 | R63: 0 | S63: 私立高校 | T63: 大阪府外 | U63: 島 根 | V63: 〇 | W63: 62 | Z63: 42207-0-0 | AA63: 大阪府立渋谷 | AC63: 118800 | AE63: 42207 | AF63: 0 | AG63: 大阪府立渋谷 | AH63: 0 | AJ63: 118800
J64: 明蓬館 | K64: 明蓬館 | L64: 48167-0-0 | M64: 10000 | N64: 25 | O64: 74 | P64: 250000 | Q64: 250000 | R64: 0 | S64: 私立高校 | T64: 大阪府外 | U64: 福 岡 | V64: 〇 | W64: 63 | Z64: 42208-0-0 | AA64: 大阪府立箕面 | AC64: 118800 | AE64: 42208 | AF64: 0 | AG64: 大阪府立箕面 | AH64: 0 | AJ64: 118800
J65: 目黒日本大学 | K65: 目黒日本大学 | L65: 48035-1-0 | M65: 9000 | N65: 25 | O65: 74 | P65: 225000 | Q65: 225000 | R65: 0 | S65: 私立高校 | T65: 大阪府外 | U65: 東 京 | V65: 〇 | W65: 64 | Z65: 42209-2-0 | AA65: 大阪府立箕面東 | AB65: 0 | AC65: 118800 | AE65: 42209 | AF65: 2 | AG65: 大阪府立箕面東 | AH65: 0 | AJ65: 118800
J66: 屋久島おおぞら | K66: 屋久島おおぞら | L66: 47978-0-0 | M66: 15000 | N66: 25 | O66: 74 | P66: 375000 | Q66: 375000 | R66: 0 | S66: 私立高校 | T66: 大阪府外 | U66: 鹿児島 | V66: 〇 | W66: 65 | Z66: =AE66&"-"&AF66&"-"&AH66 -> 42209-2-1 | AA66: =AG66 -> 大阪府立箕面東 | AB66: クリエイティブ | AC66: 118800 | AE66: 42209 | AF66: 2 | AG66: 大阪府立箕面東 | AH66: 1 | AI66: クリエイティブ | AJ66: 118800
J67: 八洲学園大学国際 | K67: 八洲学園大学国際 | L67: 47925-0-0 | M67: 8000 | N67: 25 | O67: 74 | P67: 200000 | Q67: 200000 | R67: 0 | S67: 私立高校 | T67: 大阪府外 | U67: 沖 縄 | V67: 〇 | W67: 66 | X67: =IF($A$2="","",IF(ISNUMBER(FIND($A$2,J67)),ROW(A66),"")) ->  | Z67: 42209-2-2 | AA67: 大阪府立箕面東 | AB67: =AI67 -> クリエイティブ | AC67: 118800 | AE67: 42209 | AF67: 2 | AG67: 大阪府立箕面東 | AH67: 2 | AI67: クリエイティブ | AJ67: 118800
J68: 代々木 | K68: 代々木 | L68: 48004-0-0 | M68: 264000 | N68: 年額制 | O68: 年 | P68: 264000 | Q68: 264000 | R68: =Q68-P68 -> 0 | S68: 私立高校 | T68: 大阪府外 | U68: 三 重 | V68: 〇 | W68: 67 | Z68: 42212-0-0 | AA68: 大阪府立吹田 | AC68: 118800 | AE68: 42212 | AF68: 0 | AG68: 大阪府立吹田 | AH68: 0 | AJ68: 118800
J69: ルネサンス 豊田 | K69: ルネサンス 豊田 | L69: 47990-1-0 | M69: 10000 | N69: 26 | O69: 76 | P69: 260000 | Q69: 260000 | R69: 0 | S69: 私立高校 | T69: 大阪府外 | U69: 愛 知 | V69: 〇 | W69: 68 | Z69: 42213-0-0 | AA69: 大阪府立千里 | AC69: 118800 | AE69: 42213 | AF69: 0 | AG69: 大阪府立千里 | AH69: 0 | AJ69: 118800
Z70: 42214-0-0 | AA70: 大阪府立吹田東 | AC70: 118800 | AE70: 42214 | AF70: 0 | AG70: 大阪府立吹田東 | AH70: 0 | AJ70: 118800
Z71: 42215-0-0 | AA71: 大阪府立北千里 | AC71: 118800 | AE71: 42215 | AF71: 0 | AG71: 大阪府立北千里 | AH71: 0 | AJ71: 118800
Z72: 42216-0-0 | AA72: 大阪府立摂津 | AC72: 118800 | AE72: 42216 | AF72: 0 | AG72: 大阪府立摂津 | AH72: 0 | AJ72: 118800
Z73: 42217-0-0 | AA73: 大阪府立春日丘 | AC73: 118800 | AE73: 42217 | AF73: 0 | AG73: 大阪府立春日丘 | AH73: 0 | AJ73: 118800
Z74: 42217-1-0 | AA74: 大阪府立春日丘 | AC74: 32400 | AE74: 42217 | AF74: 1 | AG74: 大阪府立春日丘 | AH74: 0 | AJ74: 32400
Z75: 42218-0-0 | AA75: 大阪府立茨木 | AC75: 118800 | AE75: 42218 | AF75: 0 | AG75: 大阪府立茨木 | AH75: 0 | AJ75: 118800
Z76: 42219-0-0 | AA76: 大阪府立茨木西 | AC76: 118800 | AE76: 42219 | AF76: 0 | AG76: 大阪府立茨木西 | AH76: 0 | AJ76: 118800
Z77: 42220-0-0 | AA77: 大阪府立三島 | AC77: 118800 | AE77: 42220 | AF77: 0 | AG77: 大阪府立三島 | AH77: 0 | AJ77: 118800
Z78: 42221-2-0 | AA78: 大阪府立大冠 | AC78: 118800 | AE78: 42221 | AF78: 2 | AG78: 大阪府立大冠 | AH78: 0 | AJ78: 118800
Z79: 42223-0-0 | AA79: 大阪府立高槻北 | AC79: 118800 | AE79: 42223 | AF79: 0 | AG79: 大阪府立高槻北 | AH79: 0 | AJ79: 118800
Z80: 42224-0-0 | AA80: 大阪府立島本 | AC80: 118800 | AE80: 42224 | AF80: 0 | AG80: 大阪府立島本 | AH80: 0 | AJ80: 118800
Z81: 42228-0-0 | AA81: 大阪府立門真西 | AC81: 118800 | AE81: 42228 | AF81: 0 | AG81: 大阪府立門真西 | AH81: 0 | AJ81: 118800
Z82: 42229-0-0 | AA82: 大阪府立寝屋川 | AC82: 118800 | AE82: 42229 | AF82: 0 | AG82: 大阪府立寝屋川 | AH82: 0 | AJ82: 118800
Z83: 42229-1-0 | AA83: 大阪府立寝屋川 | AC83: 32400 | AE83: 42229 | AF83: 1 | AG83: 大阪府立寝屋川 | AH83: 0 | AJ83: 32400
Z84: 42233-0-0 | AA84: 大阪府立野崎 | AC84: 118800 | AE84: 42233 | AF84: 0 | AG84: 大阪府立野崎 | AH84: 0 | AJ84: 118800
Z85: 42234-0-0 | AA85: 大阪府立枚方 | AC85: 118800 | AE85: 42234 | AF85: 0 | AG85: 大阪府立枚方 | AH85: 0 | AJ85: 118800
Z86: 42234-2-0 | AA86: 大阪府立枚方津田 | AC86: 118800 | AE86: 42234 | AF86: 2 | AG86: 大阪府立枚方津田 | AH86: 0 | AJ86: 118800
Z87: 42235-0-0 | AA87: 大阪府立長尾 | AC87: 118800 | AE87: 42235 | AF87: 0 | AG87: 大阪府立長尾 | AH87: 0 | AJ87: 118800
Z88: 42236-0-0 | AA88: 大阪府立牧野 | AC88: 118800 | AE88: 42236 | AF88: 0 | AG88: 大阪府立牧野 | AH88: 0 | AJ88: 118800
Z89: 42237-0-0 | AA89: 大阪府立四條畷 | AC89: 118800 | AE89: 42237 | AF89: 0 | AG89: 大阪府立四條畷 | AH89: 0 | AJ89: 118800
Z90: 42238-0-0 | AA90: 大阪府立交野 | AC90: 118800 | AE90: 42238 | AF90: 0 | AG90: 大阪府立交野 | AH90: 0 | AJ90: 118800
Z91: 42239-0-0 | AA91: 大阪府立布施 | AC91: 118800 | AE91: 42239 | AF91: 0 | AG91: 大阪府立布施 | AH91: 0 | AJ91: 118800
Z92: 42239-1-0 | AA92: 大阪府立布施 | AC92: 32400 | AE92: 42239 | AF92: 1 | AG92: 大阪府立布施 | AH92: 0 | AJ92: 32400
Z93: 42240-0-0 | AA93: 大阪府立花園 | AC93: 32400 | AE93: 42240 | AF93: 0 | AG93: 大阪府立花園 | AH93: 0 | AJ93: 32400
Z94: 42243-0-0 | AA94: 大阪府立布施北 | AC94: 32400 | AE94: 42243 | AF94: 0 | AG94: 大阪府立布施北 | AH94: 0 | AJ94: 32400
Z95: 42244-0-0 | AA95: 大阪府立山本 | AC95: 32400 | AE95: 42244 | AF95: 0 | AG95: 大阪府立山本 | AH95: 0 | AJ95: 32400
Z96: 42245-0-0 | AA96: 大阪府立八尾 | AC96: 32400 | AE96: 42245 | AF96: 0 | AG96: 大阪府立八尾 | AH96: 0 | AJ96: 32400
Z97: 42248-0-0 | AA97: 大阪府立生野 | AC97: 32400 | AE97: 42248 | AF97: 0 | AG97: 大阪府立生野 | AH97: 0 | AJ97: 32400
Z98: 42249-0-0 | AA98: 大阪府立松原 | AC98: 32400 | AE98: 42249 | AF98: 0 | AG98: 大阪府立松原 | AH98: 0 | AJ98: 32400
Z99: 42250-0-0 | AA99: 大阪府立藤井寺 | AC99: 32400 | AE99: 42250 | AF99: 0 | AG99: 大阪府立藤井寺 | AH99: 0 | AJ99: 32400
Z100: 42253-0-0 | AA100: 大阪府立河南 | AC100: 32400 | AE100: 42253 | AF100: 0 | AG100: 大阪府立河南 | AH100: 0 | AJ100: 32400
Z101: 42254-0-0 | AA101: 大阪府立富田林 | AC101: 32400 | AE101: 42254 | AF101: 0 | AG101: 大阪府立富田林 | AH101: 0 | AJ101: 32400
Z102: 42255-0-0 | AA102: 大阪府立長野 | AC102: 32400 | AE102: 42255 | AF102: 0 | AG102: 大阪府立長野 | AH102: 0 | AJ102: 32400
Z103: 42257-0-0 | AA103: 大阪府立美原 | AC103: 32400 | AE103: 42257 | AF103: 0 | AG103: 大阪府立美原 | AH103: 0 | AJ103: 32400
Z104: 42258-0-0 | AA104: 大阪府立登美丘 | AC104: 32400 | AE104: 42258 | AF104: 0 | AG104: 大阪府立登美丘 | AH104: 0 | AJ104: 32400
Z105: 42259-0-0 | AA105: 大阪府立泉陽 | AC105: 32400 | AE105: 42259 | AF105: 0 | AG105: 大阪府立泉陽 | AH105: 0 | AJ105: 32400
Z106: 42260-0-0 | AA106: 大阪府立三国丘 | AC106: 32400 | AE106: 42260 | AF106: 0 | AG106: 大阪府立三国丘 | AH106: 0 | AJ106: 32400
Z107: 42260-1-0 | AA107: 大阪府立三国丘 | AC107: 32400 | AE107: 42260 | AF107: 1 | AG107: 大阪府立三国丘 | AH107: 0 | AJ107: 32400
Z108: 42261-0-0 | AA108: 大阪府立泉北 | AC108: 118800 | AE108: 42261 | AF108: 0 | AG108: 大阪府立泉北 | AH108: 0 | AJ108: 118800
Z109: 42262-0-0 | AA109: 大阪府立鳳 | AC109: 118800 | AE109: 42262 | AF109: 0 | AG109: 大阪府立鳳 | AH109: 0 | AJ109: 118800
Z110: 42263-0-0 | AA110: 大阪府立堺東 | AC110: 118800 | AE110: 42263 | AF110: 0 | AG110: 大阪府立堺東 | AH110: 0 | AJ110: 118800
Z111: 42264-0-0 | AA111: 大阪府立金岡 | AC111: 118800 | AE111: 42264 | AF111: 0 | AG111: 大阪府立金岡 | AH111: 0 | AJ111: 118800
Z112: 42265-0-0 | AA112: 大阪府立東百舌鳥 | AC112: 118800 | AE112: 42265 | AF112: 0 | AG112: 大阪府立東百舌鳥 | AH112: 0 | AJ112: 118800
Z113: 42267-0-0 | AA113: 大阪府立伯太 | AC113: 118800 | AE113: 42267 | AF113: 0 | AG113: 大阪府立伯太 | AH113: 0 | AJ113: 118800
Z114: 42268-0-0 | AA114: 大阪府立高石 | AC114: 118800 | AE114: 42268 | AF114: 0 | AG114: 大阪府立高石 | AH114: 0 | AJ114: 118800
Z115: 42269-0-0 | AA115: 大阪府立泉大津 | AC115: 118800 | AE115: 42269 | AF115: 0 | AG115: 大阪府立泉大津 | AH115: 0 | AJ115: 118800
Z116: 42270-0-0 | AA116: 大阪府立和泉 | AC116: 118800 | AE116: 42270 | AF116: 0 | AG116: 大阪府立和泉 | AH116: 0 | AJ116: 118800
Z117: 42271-0-0 | AA117: 大阪府立岸和田 | AC117: 118800 | AE117: 42271 | AF117: 0 | AG117: 大阪府立岸和田 | AH117: 0 | AJ117: 118800
Z118: 42272-0-0 | AA118: 大阪府立久米田 | AC118: 118800 | AE118: 42272 | AF118: 0 | AG118: 大阪府立久米田 | AH118: 0 | AJ118: 118800
Z119: 42273-0-0 | AA119: 大阪府立貝塚 | AC119: 118800 | AE119: 42273 | AF119: 0 | AG119: 大阪府立貝塚 | AH119: 0 | AJ119: 118800
Z120: 42274-0-0 | AA120: 大阪府立貝塚南 | AC120: 118800 | AE120: 42274 | AF120: 0 | AG120: 大阪府立貝塚南 | AH120: 0 | AJ120: 118800
Z121: 42275-0-0 | AA121: 大阪府立佐野 | AC121: 118800 | AE121: 42275 | AF121: 0 | AG121: 大阪府立佐野 | AH121: 0 | AJ121: 118800
Z122: 42275-2-0 | AA122: 大阪府立日根野 | AC122: 118800 | AE122: 42275 | AF122: 2 | AG122: 大阪府立日根野 | AH122: 0 | AJ122: 118800
Z123: 42277-0-0 | AA123: 大阪府立泉鳥取 | AC123: 118800 | AE123: 42277 | AF123: 0 | AG123: 大阪府立泉鳥取 | AH123: 0 | AJ123: 118800
Z124: 42278-0-0 | AA124: 大阪府立堺西 | AC124: 118800 | AE124: 42278 | AF124: 0 | AG124: 大阪府立堺西 | AH124: 0 | AJ124: 118800
Z125: 42283-0-0 | AA125: 大阪府立岬 | AC125: 118800 | AE125: 42283 | AF125: 0 | AG125: 大阪府立岬 | AH125: 0 | AJ125: 118800
Z126: 42284-0-0 | AA126: 大阪府立芥川 | AC126: 118800 | AE126: 42284 | AF126: 0 | AG126: 大阪府立芥川 | AH126: 0 | AJ126: 118800
Z127: 42286-0-0 | AA127: 大阪府立香里丘 | AC127: 118800 | AE127: 42286 | AF127: 0 | AG127: 大阪府立香里丘 | AH127: 0 | AJ127: 118800
Z128: 42287-0-0 | AA128: 大阪府立西寝屋川 | AC128: 118800 | AE128: 42287 | AF128: 0 | AG128: 大阪府立西寝屋川 | AH128: 0 | AJ128: 118800
Z129: 42290-0-0 | AA129: 大阪府立金剛 | AC129: 118800 | AE129: 42290 | AF129: 0 | AG129: 大阪府立金剛 | AH129: 0 | AJ129: 118800
Z130: =AE130&"-"&AF130&"-"&AH130 -> 42291-0-0 | AA130: =AG130 -> 大阪府立狭山 | AC130: 118800 | AE130: 42291 | AF130: 0 | AG130: 大阪府立狭山 | AH130: 0 | AJ130: 118800
Z131: 42295-0-0 | AA131: 大阪府立阿武野 | AB131: =AI131 ->  | AC131: 118800 | AE131: 42295 | AF131: 0 | AG131: 大阪府立阿武野 | AH131: 0 | AJ131: 118800
Z132: 42296-0-0 | AA132: 大阪府立守口東 | AC132: 118800 | AE132: 42296 | AF132: 0 | AG132: 大阪府立守口東 | AH132: 0 | AJ132: 118800
Z133: 42299-0-0 | AA133: 大阪府立八尾北 | AC133: 118800 | AE133: 42299 | AF133: 0 | AG133: 大阪府立八尾北 | AH133: 0 | AJ133: 118800
Z134: 42300-0-0 | AA134: 大阪府立大塚 | AC134: 118800 | AE134: 42300 | AF134: 0 | AG134: 大阪府立大塚 | AH134: 0 | AJ134: 118800
Z135: 42301-0-0 | AA135: 大阪府立福泉 | AC135: 118800 | AE135: 42301 | AF135: 0 | AG135: 大阪府立福泉 | AH135: 0 | AJ135: 118800
Z136: 42302-0-0 | AA136: 大阪府立信太 | AC136: 118800 | AE136: 42302 | AF136: 0 | AG136: 大阪府立信太 | AH136: 0 | AJ136: 118800
Z137: 42305-0-0 | AA137: 大阪府立山田 | AC137: 118800 | AE137: 42305 | AF137: 0 | AG137: 大阪府立山田 | AH137: 0 | AJ137: 118800
Z138: 42307-0-0 | AA138: 大阪府立堺上 | AC138: 118800 | AE138: 42307 | AF138: 0 | AG138: 大阪府立堺上 | AH138: 0 | AJ138: 118800
Z139: 42308-0-0 | AA139: 大阪府立福井 | AC139: 118800 | AE139: 42308 | AF139: 0 | AG139: 大阪府立福井 | AH139: 0 | AJ139: 118800
Z140: 42309-0-0 | AA140: 大阪府立門真なみはや | AC140: 118800 | AE140: 42309 | AF140: 0 | AG140: 大阪府立門真なみはや | AH140: 0 | AJ140: 118800
Z141: 42310-0-0 | AA141: 大阪府立枚岡樟風 | AC141: 118800 | AE141: 42310 | AF141: 0 | AG141: 大阪府立枚岡樟風 | AH141: 0 | AJ141: 118800
Z142: 42311-0-0 | AA142: 大阪府立八尾翠翔 | AC142: 118800 | AE142: 42311 | AF142: 0 | AG142: 大阪府立八尾翠翔 | AH142: 0 | AJ142: 118800
Z143: 42312-0-0 | AA143: 大阪府立芦間 | AC143: 118800 | AE143: 42312 | AF143: 0 | AG143: 大阪府立芦間 | AH143: 0 | AJ143: 118800
Z144: 42314-0-0 | AA144: 大阪府立成美 | AC144: 118800 | AE144: 42314 | AF144: 0 | AG144: 大阪府立成美 | AH144: 0 | AJ144: 118800
Z145: 42315-0-0 | AA145: 大阪府立槻の木 | AC145: 118800 | AE145: 42315 | AF145: 0 | AG145: 大阪府立槻の木 | AH145: 0 | AJ145: 118800
Z146: 42316-0-0 | AA146: 大阪府立港南造形 | AC146: 118800 | AE146: 42316 | AF146: 0 | AG146: 大阪府立港南造形 | AH146: 0 | AJ146: 118800
Z147: 42317-0-0 | AA147: 大阪府立枚方なぎさ | AC147: 118800 | AE147: 42317 | AF147: 0 | AG147: 大阪府立枚方なぎさ | AH147: 0 | AJ147: 118800
Z148: 42318-0-0 | AA148: 大阪府立かわち野 | AC148: 118800 | AE148: 42318 | AF148: 0 | AG148: 大阪府立かわち野 | AH148: 0 | AJ148: 118800
Z149: 42319-0-0 | AA149: 大阪府立緑風冠 | AC149: 118800 | AE149: 42319 | AF149: 0 | AG149: 大阪府立緑風冠 | AH149: 0 | AJ149: 118800
Z150: 42320-0-0 | AA150: 大阪府立千里青雲 | AC150: 118800 | AE150: 42320 | AF150: 0 | AG150: 大阪府立千里青雲 | AH150: 0 | AJ150: 118800
Z151: 42321-0-0 | AA151: 大阪府立北摂つばさ | AC151: 118800 | AE151: 42321 | AF151: 0 | AG151: 大阪府立北摂つばさ | AH151: 0 | AJ151: 118800
Z152: 42322-0-0 | AA152: 大阪府立北かわち皐が丘 | AC152: 118800 | AE152: 42322 | AF152: 0 | AG152: 大阪府立北かわち皐が丘 | AH152: 0 | AJ152: 118800
Z153: 42323-0-0 | AA153: 大阪府立みどり清朋 | AC153: 118800 | AE153: 42323 | AF153: 0 | AG153: 大阪府立みどり清朋 | AH153: 0 | AJ153: 118800
Z154: 42324-0-0 | AA154: 大阪府立りんくう翔南 | AC154: 118800 | AE154: 42324 | AF154: 0 | AG154: 大阪府立りんくう翔南 | AH154: 0 | AJ154: 118800
Z155: 42325-0-0 | AA155: 大阪府立懐風館 | AC155: 118800 | AE155: 42325 | AF155: 0 | AG155: 大阪府立懐風館 | AH155: 0 | AJ155: 118800
Z156: 42601-0-0 | AA156: 大阪府立園芸 | AC156: 118800 | AE156: 42601 | AF156: 0 | AG156: 大阪府立園芸 | AH156: 0 | AJ156: 118800
Z157: 42602-0-0 | AA157: 大阪府立農芸 | AC157: 118800 | AE157: 42602 | AF157: 0 | AG157: 大阪府立農芸 | AH157: 0 | AJ157: 118800
Z158: 42653-0-0 | AA158: 大阪府立桃谷 | AB158: 通信制 | AC158: 118800 | AE158: 42653 | AF158: 0 | AG158: 大阪府立桃谷 | AH158: 0 | AI158: 通信制 | AJ158: 118800
Z159: 42653-0-1 | AA159: 大阪府立桃谷 | AC159: 118800 | AE159: 42653 | AF159: 0 | AG159: 大阪府立桃谷 | AH159: 1 | AJ159: 118800
Z160: 42653-2-0 | AA160: 大阪府立桃谷 | AB160: クリエイティブ | AC160: 118800 | AE160: 42653 | AF160: 2 | AG160: 大阪府立桃谷 | AH160: 0 | AI160: クリエイティブ | AJ160: 118800
Z161: 42653-2-1 | AA161: 大阪府立桃谷 | AB161: クリエイティブ | AC161: 118800 | AE161: 42653 | AF161: 2 | AG161: 大阪府立桃谷 | AH161: 1 | AI161: クリエイティブ | AJ161: 118800
Z162: 42653-2-2 | AA162: 大阪府立桃谷 | AB162: クリエイティブ | AC162: 118800 | AE162: 42653 | AF162: 2 | AG162: 大阪府立桃谷 | AH162: 2 | AI162: クリエイティブ | AJ162: 118800
Z163: 42653-3-0 | AA163: 大阪府立桃谷 | AB163: Ⅲ部他部併５単位以下 | AC163: 32400 | AE163: 42653 | AF163: 3 | AG163: 大阪府立桃谷 | AH163: 0 | AI163: Ⅲ部他部併５単位以下 | AJ163: 32400
Z164: 42653-3-31 | AA164: 大阪府立桃谷 | AB164: Ⅲ部他部１０単位以上 | AC164: 32400 | AE164: 42653 | AF164: 3 | AG164: 大阪府立桃谷 | AH164: 31 | AI164: Ⅲ部他部１０単位以上 | AJ164: 32400
Z165: 42653-3-32 | AA165: 大阪府立桃谷 | AB165: Ⅲ部他部６～９単位 | AC165: 32400 | AE165: 42653 | AF165: 3 | AG165: 大阪府立桃谷 | AH165: 32 | AI165: Ⅲ部他部６～９単位 | AJ165: 32400
Z166: 42653-3-33 | AA166: 大阪府立桃谷 | AB166: 定時制 | AC166: 32400 | AE166: 42653 | AF166: 3 | AG166: 大阪府立桃谷 | AH166: 33 | AI166: 定時制 | AJ166: 32400
Z167: 42654-0-0 | AA167: 大阪府立大阪わかば | AB167: 多部制単位制 Ⅰ・Ⅱ部 | AC167: 0 | AE167: 42654 | AF167: 0 | AG167: 大阪府立大阪わかば | AH167: 0 | AI167: 多部制単位制 Ⅰ・Ⅱ部 | AJ167: 0
Z168: 42701-2-0 | AA168: 大阪府立西野田工科 | AC168: 118800 | AE168: 42701 | AF168: 2 | AG168: 大阪府立西野田工科 | AH168: 0 | AJ168: 118800
Z169: 42701-3-0 | AA169: 大阪府立西野田工科 | AC169: 32400 | AE169: 42701 | AF169: 3 | AG169: 大阪府立西野田工科 | AH169: 0 | AJ169: 32400
Z170: 42702-2-0 | AA170: 大阪府立淀川工科 | AC170: 118800 | AE170: 42702 | AF170: 2 | AG170: 大阪府立淀川工科 | AH170: 0 | AJ170: 118800
Z171: 42703-2-0 | AA171: 大阪府立成城 | AB171: 0 | AC171: 118800 | AE171: 42703 | AF171: 2 | AG171: 大阪府立成城 | AH171: 0 | AJ171: 118800
Z172: 42703-2-1 | AA172: 大阪府立成城 | AB172: クリエイティブ（３年生のみ） | AC172: 118800 | AE172: 42703 | AF172: 2 | AG172: 大阪府立成城 | AH172: 1 | AI172: クリエイティブ（３年生のみ） | AJ172: 118800
Z173: 42703-2-2 | AA173: 大阪府立成城 | AB173: クリエイティブ | AC173: 118800 | AE173: 42703 | AF173: 2 | AG173: 大阪府立成城 | AH173: 2 | AI173: クリエイティブ | AJ173: 118800
Z174: 42703-2-11 | AA174: 大阪府立成城 | AC174: 118800 | AE174: 42703 | AF174: 2 | AG174: 大阪府立成城 | AH174: 11 | AJ174: 118800
Z175: 42703-2-12 | AA175: 大阪府立成城 | AC175: 118800 | AE175: 42703 | AF175: 2 | AG175: 大阪府立成城 | AH175: 12 | AJ175: 118800
Z176: 42703-2-13 | AA176: 大阪府立成城 | AB176: 0 | AC176: 118800 | AE176: 42703 | AF176: 2 | AG176: 大阪府立成城 | AH176: 13 | AJ176: 118800
Z177: 42703-3-0 | AA177: 大阪府立成城 | AB177: 定時制 | AC177: 32400 | AE177: 42703 | AF177: 3 | AG177: 大阪府立成城 | AH177: 0 | AI177: 定時制 | AJ177: 32400
Z178: 42704-2-0 | AA178: 大阪府立東住吉総合 | AB178: 0 | AC178: 118800 | AE178: 42704 | AF178: 2 | AG178: 大阪府立東住吉総合 | AH178: 0 | AJ178: 118800
Z179: 42704-2-1 | AA179: 大阪府立東住吉総合 | AB179: クリエイティブ | AC179: 118800 | AE179: 42704 | AF179: 2 | AG179: 大阪府立東住吉総合 | AH179: 1 | AI179: クリエイティブ | AJ179: 118800
Z180: 42704-2-2 | AA180: 大阪府立東住吉総合 | AB180: クリエイティブ | AC180: 118800 | AE180: 42704 | AF180: 2 | AG180: 大阪府立東住吉総合 | AH180: 2 | AI180: クリエイティブ | AJ180: 118800
Z181: 42704-2-11 | AA181: 大阪府立東住吉総合 | AC181: 118800 | AE181: 42704 | AF181: 2 | AG181: 大阪府立東住吉総合 | AH181: 11 | AJ181: 118800
Z182: 42704-2-12 | AA182: 大阪府立東住吉総合 | AC182: 118800 | AE182: 42704 | AF182: 2 | AG182: 大阪府立東住吉総合 | AH182: 12 | AJ182: 118800
Z183: 42704-2-13 | AA183: 大阪府立東住吉総合 | AC183: 118800 | AE183: 42704 | AF183: 2 | AG183: 大阪府立東住吉総合 | AH183: 13 | AJ183: 118800
Z184: 42705-2-0 | AA184: 大阪府立今宮工科 | AC184: 118800 | AE184: 42705 | AF184: 2 | AG184: 大阪府立今宮工科 | AH184: 0 | AJ184: 118800
Z185: 42705-3-0 | AA185: 大阪府立今宮工科 | AC185: 32400 | AE185: 42705 | AF185: 3 | AG185: 大阪府立今宮工科 | AH185: 0 | AJ185: 32400
Z186: 42706-2-0 | AA186: 大阪府立茨木工科 | AC186: 118800 | AE186: 42706 | AF186: 2 | AG186: 大阪府立茨木工科 | AH186: 0 | AJ186: 118800
Z187: 42706-3-0 | AA187: 大阪府立茨木工科 | AC187: 32400 | AE187: 42706 | AF187: 3 | AG187: 大阪府立茨木工科 | AH187: 0 | AJ187: 32400
Z188: 42707-2-0 | AA188: 大阪府立城東工科 | AC188: 118800 | AE188: 42707 | AF188: 2 | AG188: 大阪府立城東工科 | AH188: 0 | AJ188: 118800
Z189: 42708-2-0 | AA189: 大阪府立布施工科 | AC189: 118800 | AE189: 42708 | AF189: 2 | AG189: 大阪府立布施工科 | AH189: 0 | AJ189: 118800
Z190: 42709-2-0 | AA190: 大阪府立藤井寺工科 | AC190: 118800 | AE190: 42709 | AF190: 2 | AG190: 大阪府立藤井寺工科 | AH190: 0 | AJ190: 118800
Z191: 42709-3-0 | AA191: 大阪府立藤井寺工科 | AC191: 32400 | AE191: 42709 | AF191: 3 | AG191: 大阪府立藤井寺工科 | AH191: 0 | AJ191: 32400
Z192: 42710-2-0 | AA192: 大阪府立堺工科 | AC192: 118800 | AE192: 42710 | AF192: 2 | AG192: 大阪府立堺工科 | AH192: 0 | AJ192: 118800
Z193: 42710-3-0 | AA193: 大阪府立堺工科 | AB193: 定時制 | AC193: 32400 | AE193: 42710 | AF193: 3 | AG193: 大阪府立堺工科 | AH193: 0 | AI193: 定時制 | AJ193: 32400
Z194: =AE194&"-"&AF194&"-"&AH194 -> 42711-2-0 | AA194: =AG194 -> 大阪府立和泉総合 | AB194: （１,２年生のみ） | AC194: 118800 | AE194: 42711 | AF194: 2 | AG194: 大阪府立和泉総合 | AH194: 0 | AI194: （１,２年生のみ） | AJ194: 118800
Z195: 42711-2-1 | AA195: 大阪府立和泉総合 | AB195: =AI195 -> クリエイティブ（３年生のみ） | AC195: 118800 | AE195: 42711 | AF195: 2 | AG195: 大阪府立和泉総合 | AH195: 1 | AI195: クリエイティブ（３年生のみ） | AJ195: 118800
Z196: 42711-2-2 | AA196: 大阪府立和泉総合 | AB196: クリエイティブ | AC196: 118800 | AE196: 42711 | AF196: 2 | AG196: 大阪府立和泉総合 | AH196: 2 | AI196: クリエイティブ | AJ196: 118800
Z197: 42711-2-11 | AA197: 大阪府立和泉総合 | AC197: 118800 | AE197: 42711 | AF197: 2 | AG197: 大阪府立和泉総合 | AH197: 11 | AJ197: 118800
Z198: 42711-2-12 | AA198: 大阪府立和泉総合 | AC198: 118800 | AE198: 42711 | AF198: 2 | AG198: 大阪府立和泉総合 | AH198: 12 | AJ198: 118800
Z199: 42711-2-13 | AA199: 大阪府立和泉総合 | AC199: 118800 | AE199: 42711 | AF199: 2 | AG199: 大阪府立和泉総合 | AH199: 13 | AJ199: 118800
Z200: 42711-3-0 | AA200: 大阪府立和泉総合 | AB200: クリエイティブ | AC200: 32400 | AE200: 42711 | AF200: 3 | AG200: 大阪府立和泉総合 | AH200: 0 | AI200: クリエイティブ | AJ200: 32400
... 1159 more rows

Sheet 通信選択１ (hidden)
A1: =IF(通信制!BR50=0,"無１",IF(通信制!D27>0,"有１","無１")) -> 無１
D3: ↑ひとつだけ選択してください！

Sheet 単位 (hidden)
A1: =IF(通信制!BR50=0,"単無",IF(通信制!D27=0,"単無",IF(AND(通信制!D27>0,通信制!CA41=0),"単有","単無"))) -> 単無

Sheet 年額 (hidden)
A1: =IF(通信制!BR50=0,"年無",IF(通信制!D27=0,"年無",IF(AND(通信制!D27>0,通信制!CA41=1),"年有","年無"))) -> 年無
